Workbook

Sheet Woodcensus41
A1: No | B1: Road, Street etc | C1: Surname | D1: Christian Name | E1: Year of Birth | F1: Age | G1: Occupation | H1: Birth in County | I1: Foreign
A2: N1 | B2: Woodchester | C2: HARRISON | D2: Samuel | E2: =1841-F2 -> 1811 | F2: 30 | G2: Agricultural Labourer | H2: Y
A3: N1 | C3: HARRISON | D3: Ann | E3: 1816 | F3: 25 | H3: Y
A4: N1 | C4: HARRISON | D4: Sarah | E4: 1834 | F4: 7 | H4: Y
A5: N1 | C5: HARRISON | D5: Jane | E5: 1836 | F5: 5 | H5: Y
A6: N1 | C6: HARRISON | D6: Thomas | E6: 1839 | F6: 2 | H6: Y
A7: N2 | B7: Woodchester | C7: GOULD | D7: Charles | E7: 1786 | F7: 55 | G7: Agricultural Labourer | H7: Y
A8: N2 | C8: GOULD | D8: Elizabeth | E8: 1781 | F8: 60 | G8: Washerwoman | H8: Y
A9: N2 | C9: GOULD | D9: Joseph | E9: 1826 | F9: 15 | H9: Y
A10: N2 | C10: GOULD | D10: Enoch | E10: 1827 | F10: 14 | H10: Y
A11: N2 | C11: GOULD | D11: Alfred | E11: 1830 | F11: 11 | H11: Y
A12: N3 | B12: Woodchester | C12: CORDWELL | D12: George | E12: 1814 | F12: 27 | G12: Baker | H12: Y
A13: N3 | C13: CORDWELL | D13: Mary | E13: 1816 | F13: 25 | H13: Y
A14: N4 | B14: Selsley Road | C14: HALLIDAY | D14: Nathan | E14: 1776 | F14: 65 | G14: Woollen Cloth Worker | H14: Y
A15: N4 | C15: HALLIDAY | D15: Elizabeth | E15: 1776 | F15: 65 | H15: Y
A16: N4 | C16: BROWNING | D16: James | E16: 1771 | F16: 70 | G16: Woollen Cloth Worker | H16: Y
A17: N4 | C17: BROWNING | D17: Esther | E17: 1776 | F17: 65 | G17: Charwoman | H17: Y
A18: N4 | C18: BROWNING | D18: Eliza | E18: 1816 | F18: 25 | G18: Woollen Cloth Worker | H18: Y
A19: N5 | B19: Selsley Road | C19: SMITH | D19: John | E19: 1781 | F19: 60 | G19: Agricultural Labourer | H19: Y
A20: N5 | C20: SMITH | D20: Sarah | E20: 1791 | F20: 50 | H20: Y
A21: N5 | C21: SMITH | D21: Thomas | E21: 1816 | F21: 25 | G21: Agricultural Labourer | H21: Y
A22: N5 | C22: SMITH | D22: Peter | E22: 1766 | F22: 75 | G22: Blacksmith | H22: Y
A23: N6 | B23: Selsley Road | C23: EVANS | D23: Thomas | E23: 1766 | F23: 75 | G23: Gardener | H23: Y
A24: N6 | C24: EVANS | D24: Mary | E24: 1771 | F24: 70 | G24: Washerwoman | H24: Y
A25: N7 | C25: KING | D25: Caleb | E25: 1811 | F25: 30 | G25: Woollen Cloth Weaver | H25: Y
A26: N7 | C26: KING | D26: Rose | E26: 1806 | F26: 35 | H26: Y
A27: N8 | B27: Woodchester | C27: EDDLES | D27: John | E27: 1801 | F27: 40 | G27: Farmer | H27: Y
A28: N8 | C28: EDDLES | D28: Ann | E28: 1801 | F28: 40 | H28: Y
A29: N8 | C29: EDDLES | D29: Sarah | E29: 1833 | F29: 8 | H29: N | I29: F
A30: N8 | C30: EDDLES | D30: Hesther | E30: 1836 | F30: 5 | H30: N | I30: F
A31: N8 | C31: WOODFIELD | D31: Elizabeth | E31: 1826 | F31: 15 | G31: Servant
A32: N9 | B32: Woodchester | C32: Unoccupied
A33: N10 | B33: Woodchester | C33: Unoccupied
A34: N11 | B34: Woodchester | C34: Unoccupied
A35: N12 | B35: Woodchester | C35: WOODWARD | D35: Hester | E35: 1776 | F35: 65 | G35: Woollen Cloth Worker | H35: Y
A36: N12 | B36: Woodchester | C36: HERBERT | D36: Thomas | E36: 1806 | F36: 35 | G36: Woollen Cloth Weaver | H36: Y
A37: N12 | C37: HERBERT | D37: Patience | E37: 1811 | F37: 30 | G37: Woollen Cloth Weaver | H37: Y
A38: N12 | C38: HERBERT | D38: Charles | E38: 1833 | F38: 8 | H38: Y
A39: N12 | C39: HERBERT | D39: William | E39: 1835 | F39: 6 | H39: Y
A40: N12 | C40: HERBERT | D40: Ruth | E40: 1837 | F40: 4 | H40: Y
A41: N12 | C41: HERBERT | D41: Alfred | E41: 1839 | F41: 2 | H41: Y
A42: N12 | C42: HERBERT | D42: Henry | E42: 1841 | F42: 5days | H42: Y
A43: N12 | C43: CRIPS | D43: Sarah | E43: 1801 | F43: 40 | G43: Nurse | H43: Y
A44: N13 | B44: Woodchester | C44: WALKLEY | D44: Thomas | E44: 1801 | F44: 40 | G44: Woollen Cloth Worker | H44: Y
A45: N13 | C45: WALKLEY | D45: Hannah | E45: 1801 | F45: 40 | G45: Woollen Cloth Worker | H45: Y
A46: N13 | C46: WALKLEY | D46: Hannah | E46: 1811 | F46: 30 | G46: Servant | H46: Y
A47: N14 | C47: LEWIS | D47: Samuel | E47: 1806 | F47: 35 | G47: Pike Keeper | H47: Y
A48: N14 | C48: LEWIS | D48: Eliza | E48: 1811 | F48: 30 | H48: Y
A49: N14 | C49: LEWIS | D49: Charles | E49: 1833 | F49: 8 | H49: Y
A50: N14 | C50: LEWIS | D50: Elizabeth | E50: 1835 | F50: 6 | H50: Y
A51: N14 | C51: LEWIS | D51: Harriette | E51: 1838 | F51: 3 | H51: Y
A52: N14 | C52: LEWIS | D52: Mary Ann | E52: 1840 | F52: 1 | H52: Y
A53: N15 | C53: RODWAY | D53: Thomas | E53: 1796 | F53: 45 | G53: Agricultural Labourer | H53: Y
A54: N15 | C54: RODWAY | D54: Hannah?Harriet | E54: 1791 | F54: 50 | G54: Woollen Cloth Worker | H54: Y
A55: N15 | C55: RODWAY | D55: Samuel | E55: 1821 | F55: 20 | G55: Woollen Cloth Worker | H55: Y
A56: N15 | C56: RODWAY | D56: Thomas | E56: 1826 | F56: 15 | G56: Woollen Cloth Worker | H56: Y
A57: N15 | C57: RODWAY | D57: Elizabeth | E57: 1828 | F57: 13 | H57: Y
A58: N16 | B58: Woodchester | C58: HODGES | D58: Ann | E58: 1786 | F58: 55 | G58: Woollen Cloth Worker | H58: Y
A59: N17 | B59: Woodchester | C59: BURFORD | D59: Ann | E59: 1781 | F59: 60 | H59: Y
A60: N17 | C60: BURFORD | D60: Ann | E60: 1811 | F60: 30 | G60: Shop Keeper | H60: Y
A61: N17 | C61: BURFORD | D61: William | E61: 1816 | F61: 25 | G61: Shoe Maker | H61: Y
A62: N17 | C62: BURFORD | D62: Sarah | E62: 1821 | F62: 20 | G62: Dress Maker | H62: Y
A63: N17 | C63: BURFORD | D63: Ruth | E63: 1823 | F63: 18 | H63: Y
A64: N17 | C64: TESA? | D64: James | E64: 1796 | F64: 45 | G64: Painter | H64: N
A65: N17 | C65: TAYLOR | D65: Edward | E65: 1821 | F65: 20 | G65: Painter | H65: N
A66: N18 | B66: Woodchester | C66: WISE | D66: Susan | E66: 1791 | F66: 50 | G66: Woollen Cloth Weaver | H66: Y
A67: N18 | C67: WISE | D67: Charles | E67: 1821 | F67: 20 | G67: Pin Maker | H67: Y
A68: N18 | C68: WISE | D68: Joseph | E68: 1826 | F68: 15 | G68: Pin Maker | H68: Y
A69: N18 | C69: WISE | D69: Jane | E69: 1826 | F69: 15 | G69: Woollen Cloth Worker | H69: Y
A70: N18 | C70: VERY? | D70: James | E70: =1841-F70 -> 1816 | F70: 25 | G70: Woollen Cloth Worker | H70: Y
A71: N18 | C71: COLLETT | D71: John | E71: 1816 | F71: 25 | G71: Shoe Maker | H71: Y
A72: N18 | C72: PEGLER | D72: Joseph | E72: 1816 | F72: 25 | G72: Agricultural Labourer | H72: Y
A73: N19 | B73: Woodchester | C73: COLLETT | D73: Hannah | E73: 1791 | F73: 50 | G73: Washerwoman | H73: Y
A74: N19 | C74: COLLETT | D74: Edwin | E74: 1821 | F74: 20 | G74: Agricultural Labourer | H74: Y
A75: N19 | C75: COLLETT | D75: Caroline | E75: 1827 | F75: 14 | H75: Y
A76: N19 | C76: COLLETT | D76: Susan | E76: 1831 | F76: 10 | H76: Y
A77: N19 | C77: SMITH | D77: Peter | E77: 1826 | F77: 15 | G77: Tailor | H77: Y
A78: N20 | C78: HOLLOWAY | D78: Joseph | E78: 1756 | F78: 85 | G78: Woollen Cloth Worker | H78: N | I78: F
A79: N20 | C79: HOLLOWAY | D79: Elizabeth | E79: 1766 | F79: 75 | G79: Woollen Cloth Worker | H79: N
A80: N21 | B80: Woodchester | C80: DANGERFIELD | D80: Robert | E80: 1808 | F80: 33 | G80: Agricultural Labourer | H80: Y
A81: N21 | C81: DANGERFIELD | D81: Ann | E81: 1806 | F81: 35 | G81: Woollen Cloth Worker | H81: Y
A82: N21 | C82: DANGERFIELD | D82: William | E82: 1830 | F82: 11 | H82: Y
A83: N21 | C83: DANGERFIELD | D83: Emma | E83: 1831 | F83: 10 | H83: Y
A84: N21 | C84: DANGERFIELD | D84: Sarah | E84: 1834 | F84: 7 | H84: Y
A85: N21 | C85: DANGERFIELD | D85: Eli | E85: 1836 | F85: 5 | H85: Y
A86: N21 | C86: DANGERFIELD | D86: John | E86: 1821 | F86: 20 | G86: Tailor | H86: Y
A87: N22 | B87: Woodchester | C87: BIRD | D87: Leonard | E87: 1821 | F87: 20 | G87: Tailor | H87: Y
A88: N22 | C88: BIRD | D88: Hannah | E88: 1821 | F88: 20 | G88: Woollen Cloth Worker | H88: Y
A89: N22 | C89: BIRD | D89: George | E89: 1840 | F89: 8mths | H89: Y
A90: N22 | C90: WORKMAN | D90: Miriam | E90: 1777 | F90: 64 | G90: Woollen Cloth Worker | H90: Y
A91: N22 | C91: VIRGO | D91: George | E91: 1821 | F91: 20 | G91: ? | H91: Y
A92: N23 | B92: Woodchester | C92: WINDOW | D92: Sarah | E92: 1776 | F92: 65 | G92: Woollen Cloth Worker | H92: Y
A93: N23 | C93: DANGERFIELD | D93: Hannah | E93: 1811 | F93: 30 | G93: Woollen Cloth Worker | H93: Y
A94: N23 | C94: DANGERFIELD | D94: Charlotte | E94: 1827 | F94: 14 | H94: Y
A95: N23 | C95: DANGERFIELD | D95: Thomas | E95: 1829 | F95: 12 | H95: Y
A96: N24 | B96: Woodchester | C96: HAINES | D96: Alice | E96: 1777 | F96: 64 | G96: School Mistress | H96: Y
A97: N24 | C97: BAGHOTT | D97: John Paul | E97: 1839 | F97: 2 | H97: Y
A98: N24? | B98: Woodchester | C98: HILL | D98: Sarah | E98: 1801 | F98: 40 | G98: Charwoman | H98: Y
A99: N24? | C99: HILL | D99: Margaret | E99: 1826 | F99: 15 | G99: Pin Header | H99: Y
A100: N24? | C100: HILL | D100: Joseph | E100: 1833 | F100: 8 | H100: Y
A101: N24? | C101: HILL | D101: Jane | E101: 1837 | F101: 4 | H101: Y
A102: N25 | B102: Woodchester | C102: HARRIS | D102: Edward | E102: 1806 | F102: 35 | G102: Tin Worker | H102: Y
A103: N25 | C103: HARRIS | D103: Martha | E103: 1811 | F103: 30 | H103: Y
A104: N25 | C104: HARRIS | D104: Sarah | E104: 1839 | F104: 2 | H104: Y
A105: N26 | B105: Woodchester | C105: RUTLEDGE | D105: Sarah | E105: 1816 | F105: 25 | H105: N | I105: Ireland
A106: N26 | C106: RUTLEDGE | D106: Henry | E106: 1841 | F106: 1week | H106: Y
A107: N27 | B107: Woodchester | C107: CORDWELL | D107: Isaac | E107: 1786 | F107: 55 | G107: Stone Mason | H107: Y
A108: N27 | C108: HARRISON | D108: Fanny | E108: 1833 | F108: 8 | H108: Y
A109: N27? | C109: WILKINS | D109: Charles | E109: 1816 | F109: 25 | G109: Agricultural Labourer | H109: Y
A110: N27? | C110: WILKINS | D110: Mary | E110: 1816 | F110: 25 | G110: Woollen Cloth Worker | H110: Y
A111: N27? | C111: WILKINS | D111: Sarah | E111: 1840 | F111: 1 | H111: Y
A112: N28 | B112: Woodchester | C112: WALKLEY | D112: James | E112: 1803 | F112: 38 | G112: Agricultural Labourer | H112: Y
A113: N28 | C113: WALKLEY | D113: Mary | E113: 1803 | F113: 38 | G113: Washerwoman | H113: Y
A114: N28 | C114: WALKLEY | D114: Ann | E114: 1829 | F114: 12 | H114: Y
A115: N28 | C115: WALKLEY | D115: Ellen | E115: 1832 | F115: 9 | H115: Y
A116: N28 | C116: WALKLEY | D116: William | E116: 1834 | F116: 7 | H116: Y
A117: N28 | C117: WALKLEY | D117: George | E117: 1836 | F117: 5 | H117: Y
A118: N29 | B118: Woodchester | C118: RODWAY | D118: Sarah | E118: 1762 | F118: 79 | G118: Woollen Cloth Worker | H118: Y
A119: N29 | C119: RODWAY | D119: Winifred | E119: 1816 | F119: 25 | G119: Woollen Cloth Worker | H119: Y
A120: N29 | C120: RODWAY | D120: William | E120: 1829 | F120: 12 | H120: Y
A121: N29 | C121: BIDDLE | D121: Mary | E121: 1788 | F121: 53 | G121: FP? | H121: Y
A122: N30 | B122: Woodchester | C122: MILLS | D122: John | E122: 1776 | F122: 65 | G122: Woollen Cloth Worker | H122: Y
A123: N31 | B123: Woodchester | C123: WORKMAN | D123: Henry | E123: 1791 | F123: 50 | G123: Plumber | H123: Y
A124: N31 | C124: WORKMAN | D124: Mary | E124: 1791 | F124: 50 | H124: Y
A125: N32 | H125: Y
A126: N33 | B126: Woodchester | C126: WORKMAN | D126: George | E126: 1800 | F126: 41 | G126: Carpenter & Builder | H126: Y
A127: N33 | C127: WORKMAN | D127: Ann | E127: 1813 | F127: 28 | H127: Y
A128: N33 | C128: WORKMAN | D128: Francis | E128: 1839 | F128: 2 | H128: Y
A129: N33 | C129: WORKMAN | D129: Henry | E129: 1840 | F129: 1 | H129: Y
A130: N33 | C130: TRULL | D130: Jane | E130: 1826 | F130: 15 | G130: Servant | H130: Y
A131: N34 | B131: Woodchester | C131: FORD | D131: Frederick | E131: 1806 | F131: 35 | G131: Clergyman | H131: N
A132: N34 | C132: FORD | D132: Anne | E132: 1816 | F132: 25 | H132: N
A133: N34 | C133: FORD | D133: Harriet | E133: 1835 | F133: 6 | H133: N
A134: N34 | C134: FORD | D134: Agnes | E134: =1841-F134 -> 1836 | F134: 5 | H134: N
A135: N34 | C135: FORD | D135: John | E135: =1841-F135 -> 1837 | F135: 4 | H135: N
A136: N34 | C136: FORD | D136: Frederick | E136: =1841-F136 -> 1840 | F136: 1 | H136: N
A137: N34 | C137: FORD | D137: Emily | E137: 1841 | F137: 6mths | H137: Y
A138: N34 | C138: TREMLOW? | D138: Emily | E138: =1841-F138 -> 1831 | F138: 10 | H138: N
A139: N34 | C139: TREMLOW? | D139: Charlotte | E139: =1841-F139 -> 1832 | F139: 9 | H139: N
A140: N34 | C140: TREMLOW? | D140: Ann | E140: =1841-F140 -> 1833 | F140: 8 | H140: N
A141: N34 | C141: TREMLOW? | D141: Eliza | E141: =1841-F141 -> 1835 | F141: 6 | H141: N
A142: N34 | C142: TREMLOW? | D142: Frederick | E142: =1841-F142 -> 1837 | F142: 4 | H142: N
A143: N34 | C143: BAGHOTT | D143: Alice | E143: =1841-F143 -> 1816 | F143: 25 | G143: Family Servant | H143: Y
A144: N34 | C144: NIBLETT | D144: Mary | E144: 1816 | F144: 25 | G144: Family Servant | H144: N
A145: N34 | C145: GAZARD | D145: Susan | E145: 1816 | F145: 25 | G145: Family Servant | H145: Y
A146: N34 | C146: OAKLEY | D146: Martha | E146: 1821 | F146: 20 | G146: Family Servant | H146: Y
A147: N34 | C147: HALL | D147: Anne | E147: 1826 | F147: 15 | G147: Family Servant | H147: Y
A148: N34 | C148: MAYER | D148: Fanny | E148: 1816 | F148: 25 | G148: Governess | H148: Y
A149: N34 | C149: REDFORD | D149: Thomas | E149: 1824 | F149: 17 | G149: Servant | H149: Y
A150: N35 | B150: Priory | C150: HENDERSON | D150: John | E150: 1796 | F150: 45 | G150: Superintendent | H150: N
A151: N35 | C151: HENDERSON | D151: Harriet | E151: 1796 | F151: 45 | H151: N
A152: N35 | C152: HENDERSON | D152: Emma Grace | E152: 1821 | F152: 20 | H152: N
A153: N35 | C153: HENDERSON | D153: George | E153: 1823 | F153: 18 | H153: N
A154: N35 | C154: HENDERSON | D154: Sophia | E154: 1824 | F154: 17 | H154: N
A155: N35 | C155: HENDERSON | D155: Letitia | E155: 1825 | F155: 16 | H155: N
A156: N35 | C156: HENDERSON | D156: Francis | E156: 1828 | F156: 13 | H156: N
A157: N35 | C157: HENDERSON | D157: John | E157: 1826 | F157: 15 | H157: N
A158: N35 | C158: HENDERSON | D158: Georgina | E158: 1830 | F158: 11 | H158: N
A159: N35 | C159: HENDERSON | D159: Edward | E159: 1832 | F159: 9 | H159: N
A160: N35 | C160: HENDERSON | D160: William | E160: 1834 | F160: 7 | H160: N
A161: N35 | C161: HENDERSON | D161: Margaret | E161: 1836 | F161: 5 | H161: N
A162: N35 | C162: WEST | D162: Sophia May | E162: 1827 | F162: 14 | H162: N
A163: N35 | C163: BAILEY | D163: Eliza | E163: 1821 | F163: 20 | G163: Family Servant | H163: N
A164: N36 | B164: Woodchester | C164: BASSET | D164: Thomas | E164: 1801 | F164: 40 | G164: Gardener | H164: Y
A165: N36 | C165: BASSET | D165: Elizabeth | E165: 1801 | F165: 40 | H165: Y
A166: N36 | C166: BASSET | D166: Louisa | E166: 1830 | F166: 11 | H166: Y
A167: N36 | C167: NIBLETT | D167: Charlotte | E167: 1826 | F167: 15 | G167: Family Servant | H167: Y
A168: N37 | B168: Woodchester | C168: WILLIAMS | D168: John | E168: 1781 | F168: 60 | G168: Rector | H168: N
A169: N37 | C169: WILLIAMS | D169: Elizabeth | E169: 1788 | F169: 53 | H169: Y
A170: N37 | C170: WILLIAMS | D170: Herbert | E170: 1823 | F170: 18 | H170: Y
A171: N37 | C171: WILLIAMS | D171: Alfred | E171: 1825 | F171: 16 | H171: Y
A172: N37 | C172: WILLIAMS | D172: Sarah Jane | E172: 1829 | F172: 12 | H172: Y
A173: N37 | C173: COOKE | D173: Mary | E173: 1786 | F173: 55 | H173: Y
A174: N37 | C174: BOULTON | D174: Ann | E174: 1821 | F174: 20 | G174: Family Servant | H174: Y
A175: N37 | C175: MILLS | D175: Fanny | E175: 1821 | F175: 20 | G175: Family Servant | H175: Y
A176: N38 | B176: Woodchester | C176: BOULTON | D176: James | E176: 1811 | F176: 30 | G176: Cattle Dealer | H176: Y
A177: N38 | C177: BOULTON | D177: Ann | E177: 1811 | F177: 30 | H177: Y
A178: N38 | C178: BOULTON | D178: Charlotte | E178: 1840 | F178: 1 | H178: Y
A179: N38 | C179: LUCAS | D179: Jane | E179: 1826 | F179: 15 | G179: Family Servant | H179: Y
A180: N39 | B180: Woodchester | C180: ROBERTS | D180: Thomas | E180: 1791 | F180: 50 | G180: Woollen Cloth Worker | H180: Y
A181: N39 | C181: ROBERTS | D181: Mavise? | E181: 1792 | F181: 49 | G181: Woollen Cloth Worker | H181: Y
A182: N39 | C182: ROBERTS | D182: Charles | E182: 1808 | F182: 33 | G182: Woollen Cloth Worker | H182: Y
A183: N39 | C183: ROBERTS | D183: Ann | E183: 1814 | F183: 27 | G183: Woollen Cloth Worker | H183: Y
A184: N39 | C184: ROBERTS | D184: Dina | E184: 1816 | F184: 25 | G184: Woollen Cloth Worker | H184: Y
A185: N40 | B185: Woodchester | C185: FAULKS | D185: Thomas | E185: 1811 | F185: 30 | G185: Woollen Cloth Weaver | H185: Y
A186: N40 | C186: FAULKS | D186: Eliza | E186: 1811 | F186: 30 | G186: Woollen Cloth Weaver | H186: Y
A187: N40 | C187: FAULKS | D187: Jane | E187: 1835 | F187: 6 | H187: Y
A188: N40 | C188: FAULKS | D188: Sarah | E188: 1841 | F188: 3mths | H188: Y
A189: N41 | B189: Southfields | C189: BIRD | D189: Oliver | E189: 1796 | F189: 45 | G189: Woollen Manufacturer | H189: N
A190: N41 | C190: BIRD | D190: Catherine | E190: 1796 | F190: 45 | H190: N
A191: N41 | C191: BIRD | D191: Catherine | E191: 1827 | F191: 14 | H191: N
A192: N41 | C192: BIRD | D192: Thomas | E192: 1829 | F192: 12 | H192: N
A193: N41 | C193: BIRD | D193: Margaret | E193: 1831 | F193: 10 | H193: N
A194: N41 | C194: BIRD | D194: William | E194: 1833 | F194: 8 | H194: Y
A195: N41 | C195: BIRD | D195: Ellen | E195: 1834 | F195: 7 | H195: Y
A196: N41 | C196: BIRD | D196: Emily | E196: 1835 | F196: 6 | H196: Y
A197: N41 | C197: BIRD | D197: George | E197: 1836 | F197: 5 | H197: Y
A198: N41 | C198: STAMFORD | D198: Ann | E198: 1823 | F198: 18 | G198: Governess | H198: N
A199: N41 | C199: PUCKMERE | D199: Jane | E199: 1821 | F199: 20 | G199: Family Servant | H199: Y
A200: N41 | C200: HOLYLAND | D200: Elijah | E200: 1821 | F200: 20 | G200: Family Servant | H200: Y
... 852 more rows

Sheet woodcensus51
A1: No | B1: Road, Street etc | C1: Surname | D1: Christian Name | E1: Relationship to Head | F1: Married Status | G1: Year of Birth | H1: Age | I1: Occupation | J1: Occ Type | K1: Birth
A2: N1 | B2: Rectory | C2: WILLIAMS | D2: John | E2: Head | F2: M | G2: =1851-H2 -> 1779 | H2: 72 | I2: Rector | K2: Sidmouth
A3: N1 | C3: WILLIAMS | D3: Elizabeth | E3: Wife | F3: M | G3: =1851-H3 -> 1788 | H3: 63 | K3: Stroud
A4: N1 | C4: WILLIAMS | D4: Sarah Jane | E4: Dau | F4: U | G4: 1829 | H4: 22 | K4: Painswick | O4: Age | P4: Total | Q4: School | R4: Cloth | S4: Pins | T4: Servant | U4: Agricultural | V4: Apprentice | W4: Misc | X4: Not Recorded
A5: N1 | C5: ALDRIDGE | D5: Eliza | E5: Servant | F5: U | G5: 1828 | H5: 23 | I5: Servant | K5: Stroud | O5: 5 | P5: =COUNTIFS($H$2:$H$1095,$O5) -> 15 | Q5: =COUNTIFS($H$2:$H$1095,$O5,$J$2:$J$1095,Q$4) -> 13 | R5: =COUNTIFS($H$2:$H$1095,$O5,$J$2:$J$1095,R$4) -> 0 | S5: 0 | T5: 0 | U5: 0 | V5: 0 | W5: 0 | X5: =P5-SUM(Q5:W5) -> 2
O6: 6 | P6: =COUNTIFS($H$2:$H$1095,$O6) -> 23 | Q6: =COUNTIFS($H$2:$H$1095,$O6,$J$2:$J$1095,Q$4) -> 21 | R6: 0 | S6: 0 | T6: 0 | U6: 0 | V6: 0 | W6: 0 | X6: =P6-SUM(Q6:W6) -> 2
A7: N2 | B7: Priory | C7: BASSETT | D7: Thomas | E7: H | F7: M | G7: 1799 | H7: 52 | I7: Gardener | K7: Stroud | O7: 7 | P7: 20 | Q7: 15 | R7: 0 | S7: 0 | T7: 0 | U7: 0 | V7: 0 | W7: 0 | X7: 5
A8: N2 | C8: BASSETT | D8: Elizabeth | E8: W | F8: M | G8: 1807 | H8: 44 | I8: Laundress | K8: Rodborough | O8: 8 | P8: 14 | Q8: 14 | R8: 0 | S8: 0 | T8: 0 | U8: 0 | V8: 0 | W8: 0 | X8: 0
A9: N2 | C9: BASSETT | D9: Louisa | E9: D | F9: U | G9: 1832 | H9: 19 | I9: Seamstress | K9: Woodchester | O9: 9 | P9: 24 | Q9: 21 | R9: 2 | S9: 0 | T9: 0 | U9: 0 | V9: 0 | W9: 0 | X9: 1
O10: 10 | P10: 23 | Q10: 19 | R10: 2 | S10: 0 | T10: 0 | U10: 0 | V10: 0 | W10: 1 | X10: 1
A11: N3 | B11: Selsley Hill | C11: BURFORD | D11: Richard | E11: H | F11: M | G11: 1793 | H11: 58 | I11: Sawyer | K11: Stanley | O11: 11 | P11: 23 | Q11: 12 | R11: 3 | S11: 3 | T11: 1 | U11: 1 | V11: 0 | W11: 0 | X11: 3
A12: N3 | C12: BURFORD | D12: Esther | E12: W | F12: M | G12: 1791 | H12: 60 | K12: Stonehouse | O12: 12 | P12: 23 | Q12: 12 | R12: 6 | S12: 1 | T12: 1 | U12: 0 | V12: 1 | W12: 1 | X12: 1
A13: N3 | C13: BURFORD | D13: William | E13: S | F13: W | G13: 1817 | H13: 34 | I13: Sawyer | K13: Stanley | O13: 13 | P13: 25 | Q13: 10 | R13: 10 | S13: 3 | T13: 1 | U13: 0 | V13: 0 | W13: 0 | X13: 1
A14: N3 | C14: BURFORD | D14: Teresa | E14: D | F14: U | G14: 1828 | H14: 23 | I14: Cloth Worker | K14: Stanley | O14: 14 | P14: 22 | Q14: 6 | R14: 7 | S14: 1 | T14: 2 | U14: 1 | V14: 0 | W14: 3 | X14: 2
A15: N3 | C15: BURFORD | D15: Henry | E15: S | F15: U | G15: 1834 | H15: 17 | I15: Sawyer | K15: Stanley | O15: 15 | P15: 21 | Q15: 4 | R15: 7 | S15: 2 | T15: 3 | U15: 1 | V15: 1 | W15: 1 | X15: 2
A16: N3 | C16: BURFORD | D16: Eliza | E16: D | F16: U | G16: 1841 | H16: 10 | I16: Scholar | J16: School | K16: Easington | O16: 16 | P16: 19 | Q16: 2 | R16: 7 | S16: 0 | T16: 3 | U16: 1 | V16: 1 | W16: 2 | X16: 3
A18: N4 | B18: Woodchester Lawn | C18: GILLIARD | D18: William | E18: H | F18: M | G18: 1813 | H18: 38 | I18: Master Private School | K18: Devonport
A19: N4 | C19: GILLIARD | D19: Augusta | E19: W | F19: M | G19: 1821 | H19: 30 | K19: Woodchester
A20: N4 | C20: GILLIARD | D20: Augusta | E20: D | F20: U | G20: 1841 | H20: 10 | K20: Painswick
A21: N4 | C21: GILLIARD | D21: Isabel | E21: D | F21: U | G21: 1845 | H21: 6 | K21: Cheltenham
A22: N4 | C22: GILLIARD | D22: William | E22: S | G22: 1846 | H22: 5 | K22: Cheltenham
A23: N4 | C23: GILLIARD | D23: Blanche | E23: D | G23: 1847 | H23: 4 | K23: Cheltenham
A24: N4 | C24: GILLIARD | D24: Eustace | E24: S | G24: 1849 | H24: 2 | K24: Woodchester
A25: N4 | C25: BAYLICE | D25: Mary | E25: Governess | F25: U | G25: 1798 | H25: 53 | I25: Governess | K25: Manchester
A26: N4 | C26: RICKARDS | D26: Mary | E26: Nurse | F26: W | G26: 1815 | H26: 36 | I26: Nurse | K26: Minchinhampton
A27: N4 | C27: POWER | D27: Eliza | E27: Cook | F27: U | G27: 1832 | H27: 19 | I27: Cook | K27: Stroud
A28: N4 | C28: HARVEY | D28: Ann | E28: Housemaid | F28: U | G28: 1832 | H28: 19 | I28: Housemaid | K28: Horsley
A29: N4 | C29: HARVEY | D29: Elizabeth | E29: Nursenaid | F29: U | G29: 1838 | H29: 13 | I29: Nursemaid | J29: Servant | K29: Berkeley
A30: N4
A31: N4 | C31: BARFIELD | D31: Edward | E31: Pupil | F31: U | G31: 1836 | H31: 15 | I31: PUPIL | J31: School | K31: Berks | L31: Chatham
A32: N4 | C32: MARMENT | D32: William | E32: Pupil | F32: U | G32: 1837 | H32: 14 | I32: PUPIL | J32: School | K32: Stanley
A33: N4 | C33: BEVAN | D33: Joseph | E33: Pupil | F33: U | G33: 1837 | H33: 14 | I33: PUPIL | J33: School | K33: Liverpool
A34: N4 | C34: GAISFORD | D34: Charles | E34: Pupil | F34: U | G34: 1838 | H34: 13 | I34: PUPIL | J34: School | K34: Berkeley
A35: N4 | C35: MARMENT | D35: John | E35: Pupil | F35: U | G35: 1838 | H35: 13 | I35: PUPIL | J35: School | K35: Stanley
A36: N4 | C36: GAISFORD | D36: Thomas | E36: Pupil | F36: U | G36: 1840 | H36: 11 | I36: PUPIL | J36: School | K36: Berkeley
A37: N4 | C37: SMITH | D37: Thomas | E37: Pupil | F37: U | G37: 1839 | H37: 12 | I37: PUPIL | J37: School | K37: Stroud
A38: N4 | C38: LEECH | D38: Charles | E38: Pupil | F38: U | G38: 1840 | H38: 11 | I38: PUPIL | J38: School | K38: London
A40: N5 | B40: Selsley Road | C40: WALL | D40: Hester | E40: H | F40: U | G40: 1813 | H40: 38 | I40: School Mistress | K40: Stroud
A42: N5 | C42: HAWKINS | D42: Georgina | E42: Pupil | F42: U | G42: 1832 | H42: 19 | I42: PUPIL | K42: Stroud
A43: N5 | C43: HAWKINS | D43: Marianne | E43: Pupil | G43: 1840 | H43: 11 | I43: PUPIL | J43: School | K43: Stroud
A44: N5 | C44: HAWKINS | D44: Emily | E44: Pupil | G44: 1842 | H44: 9 | I44: PUPIL | J44: School | K44: Stroud
A45: N5 | C45: STEVENS | D45: William | E45: Pupil | G45: 1844 | H45: 7 | I45: PUPIL | J45: School | K45: Chepstow
A46: N5 | C46: STEVENS | D46: George | E46: Pupil | G46: 1843 | H46: 8 | I46: PUPIL | J46: School | K46: Chepstow
A47: N5 | C47: PURNEL | D47: Sarah | E47: Servant | F47: U | G47: 1790 | H47: 61 | I47: Visitor, Housekeeper | K47: Horsley
A48: N5 | C48: CHURCHES | D48: Sarah | E48: Visitor | F48: U | G48: 1817 | H48: 34 | I48: Servant | K48: Minchinhampton
A50: N6 | B50: Selsley Road | C50: BROWNING | D50: Esther | E50: H | F50: W | G50: 1778 | H50: 73 | I50: Charwoman, Widow | K50: Stanley
G51: 1851
A52: N6 | C52: BASSETT | D52: Charles | E52: H | F52: M | G52: 1823 | H52: 28 | I52: Lab at the gas house | K52: Randwick
A53: N6 | C53: BASSETT | D53: Eliza | E53: W | F53: M | G53: 1816 | H53: 35 | I53: Cloth Worker | K53: Woodchester
A54: N6 | C54: BASSETT | D54: Charles | E54: S | G54: 1848 | H54: 3 | K54: Woodchester
A55: N6 | C55: LOED | D55: Adolphus | E55: S | G55: 1842 | H55: 9 | I55: Scholar | J55: School | K55: Woodchester | L55: Stepson
A57: N7 | B57: Selsley Road | C57: BROWNING | D57: Charles | E57: H | F57: M | G57: 1814 | H57: 37 | I57: Cloth Worker | K57: Woodchester
A58: N7 | C58: BROWNING | D58: Eliza | E58: W | F58: M | G58: 1816 | H58: 35 | I58: Cloth Worker, Farmer
A59: N7 | C59: BROWNING | D59: Thomas | E59: S | F59: U | G59: 1836 | H59: 15 | I59: App Iron Foundry | J59: Apprentice | K59: Woodchester
A60: N7 | C60: BROWNING | D60: Henry | E60: S | G60: 1838 | H60: 13 | I60: Cloth Worker | J60: Cloth | K60: Woodchester
A61: N7 | C61: BROWNING | D61: Elizabeth | E61: D | G61: 1840 | H61: 11 | I61: Pin Sticker | J61: Pins | K61: Woodchester
A62: N7 | C62: BROWNING | D62: Maria | E62: D | G62: 1842 | H62: 9 | I62: Scholar | J62: School | K62: Woodchester
A63: N7 | C63: BROWNING | D63: Ann | E63: D | G63: 1844 | H63: 7 | I63: Scholar | J63: School | K63: Woodchester
A64: N7 | C64: BROWNING | D64: William | E64: S | G64: 1847 | H64: 4 | I64: Scholar | J64: School | K64: Woodchester
A66: N8 | B66: Selsley Road | C66: SMITH | D66: John | E66: H | F66: M | G66: 1782 | H66: 69 | I66: gardener | K66: Woodchester
A67: N8 | C67: SMITH | D67: Sarah | E67: W | F67: M | G67: =1851-H67 -> 1787 | H67: 64 | I67: Laundress | K67: Stroud
A68: N8 | C68: SMITH | D68: Joshua | E68: Visitor | F68: M | G68: 1817 | H68: 34 | I68: Wheelwright | K68: Stroud | M68: Visitor
A69: N8 | C69: SMITH | D69: Harriet | E69: Visitor | F69: M | G69: 1821 | H69: 30 | I69: Laundress | K69: Stroud | M69: Visitor
A70: N8 | C70: SMITH | D70: Maria | E70: Visitor | G70: 1844 | H70: 7 | I70: Scholar | J70: School | K70: Stroud | M70: Visitor
A72: N9 | B72: Selsley Road | C72: BROWNING | D72: Anthony | E72: H | F72: M | G72: 1809 | H72: 42 | I72: Gardener | K72: Woodchester
A73: N9 | C73: BROWNING | D73: Charlotte | E73: W | F73: M | G73: 1809 | H73: 42 | K73: Woodchester
A74: N9 | C74: BROWNING | D74: Alfred | E74: S | F74: U | G74: 1837 | H74: 14 | I74: Cloth Worker | J74: Cloth | K74: Woodchester
A75: N9 | C75: BROWNING | D75: Enoch | E75: S | G75: 1838 | H75: 13 | I75: Cloth Worker | J75: Cloth | K75: Woodchester
A76: N9 | C76: BROWNING | D76: Dorcas | E76: D | G76: 1841 | H76: 10 | I76: Scholar | J76: School | K76: Woodchester
A77: N9 | C77: BROWNING | D77: Margaret | E77: D | G77: 1843 | H77: 8 | I77: Scholar | J77: School | K77: Woodchester
A78: N9 | C78: BROWNING | D78: Agnes | E78: D | G78: 1845 | H78: 6 | I78: Scholar | J78: School | K78: Woodchester
A79: N9 | C79: BROWNING | D79: Ellen | E79: D | G79: 1847 | H79: 4 | I79: Scholar | J79: School | K79: Woodchester
A80: N9 | C80: BROWNING | D80: Anthony | E80: S | G80: 1848 | H80: 3 | I80: Scholar | J80: School | K80: Woodchester
A81: N9 | C81: BROWNING | D81: James | E81: S | G81: 1851 | H81: 3m | K81: Woodchester
A83: N10 | B83: Selsley Road | C83: CORDWELL | D83: George | E83: H | F83: W | G83: 1815 | H83: 36 | I83: Baker | K83: Woodchester | M83: Widr
A84: N10 | C84: CORDWELL | D84: Ebenezer | E84: S | G84: 1843 | H84: 8 | I84: Scholar | J84: School | K84: Woodchester | L84: Son
A86: N11 | B86: Selsley Road | C86: LUCAS | D86: Joseph | E86: H | F86: M | G86: 1819 | H86: 32 | I86: Brewer | K86: Rodborough
A87: N11 | C87: LUCAS | D87: Sarah | E87: W | F87: M | G87: 1817 | H87: 34 | K87: Paddington
A88: N11 | C88: BINGHAM | D88: Eliza | E88: Visitor | F88: U | G88: 1815 | H88: 36 | K88: Paddington | M88: Visitor
A90: N12 | B90: Selsley Road | C90: GRISE | D90: Samuel | E90: H | F90: M | G90: 1807 | H90: 44 | I90: Cloth Worker | K90: Bromsgrove
A91: N12 | C91: GRISE | D91: Mary | E91: W | F91: M | G91: 1806 | H91: 45 | I91: Cloth Worker | K91: Stroud
A93: N13 | B93: Selsley Road | C93: LEIGHTON | D93: William | E93: H | F93: U | G93: 1787 | H93: 64 | I93: Independent | K93: Woodchester
A94: N13 | C94: LEIGHTON | D94: Mary | E94: Sister | F94: U | G94: 1792 | H94: 59 | I94: Independent | K94: Woodchester
A96: N14 | B96: Selsley Road | C96: WORKMAN | D96: George | E96: H | F96: M | G96: 1801 | H96: 50 | I96: Builder | K96: Stonehouse
A97: N14 | C97: WORKMAN | D97: Anne | E97: W | F97: M | G97: 1813 | H97: 38 | K97: Eastington
A98: N14 | C98: WORKMAN | D98: Francis | E98: S | G98: 1840 | H98: 11 | I98: Scholar | J98: School | K98: Woodchester
A99: N14 | C99: WORKMAN | D99: Henry | E99: S | G99: 1841 | H99: 10 | I99: Scholar | J99: School | K99: Woodchester
A100: N14 | C100: WORKMAN | D100: Charles | E100: S | G100: 1843 | H100: 8 | I100: Scholar | J100: School | K100: Woodchester
A101: N14 | C101: WORKMAN | D101: George | E101: S | G101: 1846 | H101: 5 | I101: Scholar | J101: School | K101: Woodchester
A102: N14 | C102: WORKMAN | D102: Anne | E102: D | G102: 1847 | H102: 4 | I102: Scholar | J102: School | K102: Woodchester
A103: N14 | C103: WORKMAN | D103: Mary | E103: D | G103: 1849 | H103: 2 | K103: Woodchester
A104: N14 | C104: WORKMAN | D104: James | E104: S | G104: 1851 | H104: 9m | K104: Woodchester
A105: N14 | C105: GRIFFIN | D105: George | E105: Servant | F105: U | G105: 1831 | H105: 20 | I105: Servant | K105: Minchinhampton
A106: N14 | C106: NEAL | D106: Sophia | E106: Servant | F106: U | G106: 1836 | H106: 15 | I106: Servant | J106: Servant | K106: Owlpen
A108: N15 | B108: Selsley Road | C108: HAINES | D108: Edward | E108: H | F108: M | G108: 1817 | H108: 34 | I108: Tinplate Worker | K108: Woodchester
A109: N15 | C109: HAINES | D109: Martha | E109: W | F109: M | G109: 1813 | H109: 38 | I109: Laundress | K109: Woodchester
A110: N15 | C110: HAINES | D110: Sarah | E110: D | G110: 1840 | H110: 11 | I110: Scholar | J110: School | K110: Woodchester
A111: N15 | C111: HAINES | D111: Frederick | E111: S | G111: 1842 | H111: 9 | I111: Scholar | J111: School | K111: Woodchester
A112: N15 | C112: HAINES | D112: Alice | E112: D | G112: 1847 | H112: 4 | I112: Scholar | J112: School | K112: Woodchester
A114: N16 | B114: Selsley Road | C114: WHITE | D114: Elijah | E114: H | F114: M | G114: 1821 | H114: 30 | I114: Carpenter | K114: Randwick
A115: N16 | C115: WHITE | D115: Alice | E115: W | F115: M | G115: 1819 | H115: 32 | I115: School Mistress | K115: Woodchester
A116: N16 | C116: BAGHOTT | D116: John | E116: S | G116: 1838 | H116: 13 | I116: Scholar | J116: School | K116: Woodchester | M116: Son
A117: N16 | C117: WHITE | D117: Catherine | E117: D | G117: 1850 | H117: 13m | K117: Woodchester | M117: daughter
A119: N17 | B119: Selsley Road | C119: CORDWELL | D119: Isaac | E119: H | F119: M | G119: 1782 | H119: 69 | I119: Stone Mason | K119: Woodchester
A120: N17 | C120: CORDWELL | D120: Sarah | E120: W | F120: M | G120: 1777 | H120: 74 | I120: ex Laundress | K120: Sodbury
A122: N18 | B122: Selsley Road | C122: ROBERTS | D122: Charles | E122: H | G122: 1810 | H122: 41 | I122: Cloth Worker | K122: Stanley
A123: N18 | C123: ROBERTS | D123: Winifred | E123: W | G123: 1806 | H123: 45 | I123: Cloth Worker | K123: Woodchester
A124: N18 | C124: RODWAY | D124: George | E124: Stepson | G124: 1842 | H124: 9 | I124: Scholar | J124: School | K124: Woodchester | M124: Step
A126: N19 | B126: Selsley Road | C126: COLLETT | D126: Thomas | E126: H | F126: M | G126: 1812 | H126: 39 | I126: Plumber | K126: Stanley
A127: N19 | C127: COLLETT | D127: Elizabeth | E127: W | F127: M | G127: 1816 | H127: 35 | I127: Laundress | K127: Stroud
A128: N19 | C128: COLLETT | D128: James | E128: S | G128: 1838 | H128: 13 | I128: Cloth Worker | J128: Cloth | K128: Woodchester
A129: N19 | C129: COLLETT | D129: Adelaide | E129: D | G129: 1839 | H129: 12 | I129: Dressmaker App | J129: Apprentice | K129: Woodchester
A130: N19 | C130: COLLETT | D130: Henry | E130: S | G130: 1842 | H130: 9 | I130: Scholar | J130: School | K130: Woodchester
A132: N20 | B132: Selsley Road | C132: PERKINS | D132: Alfred | E132: H | G132: =1851-H132 -> 1821 | H132: 30 | I132: Pin Manufacturer | K132: Eastington
A133: N20 | C133: PERKINS | D133: Pennenah | E133: W | G133: 1822 | H133: 29 | I133: Milliner & Staymaker | K133: Wotton under Edge
A134: N20 | C134: PERKINS | D134: Ann | E134: D | G134: 1844 | H134: 7 | I134: Scholar | J134: School | K134: Stanley
A135: N20 | C135: PERKINS | D135: Catherine | E135: D | G135: 1845 | H135: 6 | I135: Scholar | J135: School | K135: Stanley
A136: N20 | C136: PERKINS | D136: Fanny | E136: D | G136: 1848 | H136: 3 | K136: Stanley
A137: N20 | C137: PERKINS | D137: Mary | E137: D | G137: 1850 | H137: 1 | K137: Woodchester
A138: N20 | C138: PERKINS | D138: Celicia | E138: D | G138: 1851 | H138: 5 days | K138: Woodchester
A139: N20 | C139: HORWOOD | D139: Sarah | E139: Visitor | G139: 1791 | H139: 60 | I139: Nurse | K139: Somerset ?? | M139: Visitor
A140: N20 | C140: HARRIS | D140: Mary A | E140: Servant | G140: 1832 | H140: 19 | I140: Servant | K140: Minchinhampton
A142: N21 | B142: Selsley Road | C142: WORKMAN | D142: Mary | E142: H | F142: W | G142: 1786 | H142: 65 | I142: Fundholder | K142: Woodchester | M142: Widow
A143: N21 | C143: WORKMAN | D143: Kate | E143: Niece | F143: U | G143: 1827 | H143: 24 | K143: Woodchester | M143: Niece
A145: N22 | B145: Selsley Road | C145: RODWAY | D145: Thomas | E145: H | F145: M | G145: 1794 | H145: 57 | I145: Pensioner | K145: Woodchester
A146: N22 | C146: RODWAY | D146: Hannah | E146: W | F146: M | G146: 1792 | H146: 59 | I146: Cloth Worker | K146: Cam
A147: N22 | C147: RODWAY | D147: Elizabeth | E147: D | F147: U | G147: 1830 | H147: 21 | I147: Dressmaker | K147: Woodchester
A148: N22 | C148: RODWAY | D148: Sarah | E148: Visitor | F148: W | G148: 1764 | H148: 87 | I148: Cloth Worker | K148: Woodchester | M148: Widow
A150: N23 | B150: Selsley Road | C150: HAINES | D150: Margaret | E150: H | F150: W | G150: 1802 | H150: 49 | I150: Charwoman | K150: Fort Royal, West Indies | M150: Widow
A152: N24 | B152: Selsley Road | C152: BURFORD | D152: William | E152: H | F152: U | G152: 1814 | H152: 37 | I152: Shoemaker | K152: Stroud
A153: N24 | C153: BURFORD | D153: Ann | E153: Mother | F153: W | G153: 1780 | H153: 71 | I153: Cloth Worker | K153: Stanley | M153: Mother | N153: Widow
A155: N25 | B155: Selsley Road | C155: HARVEY | D155: Mary | E155: H | F155: W | G155: 1795 | H155: 56 | I155: Shopkeeper | K155: Rodborough | M155: Widow
A156: N25 | C156: BASTIN | D156: Sophia | E156: Visitor | F156: U | G156: 1828 | H156: 23 | I156: Varnisher | K156: Rodborough | M156: Visitor
A158: N26 | B158: Selsley Road | C158: RETFORD | D158: James | E158: H | F158: M | G158: 1811 | H158: 40 | I158: Gardener | K158: Woodchester | M158: Married | N158: or | O158: RELFORD
A159: N26 | C159: RETFORD | D159: Thomas | E159: S | G159: 1841 | H159: 10 | I159: Errand boy | J159: Misc | K159: Woodchester
A160: N26 | C160: RETFORD | D160: Fanny | E160: D | G160: 1846 | H160: 5 | I160: Scholar | J160: School | K160: Woodchester
A162: N27 | B162: Selsley Road | C162: DANGERFIELD | D162: Robert | E162: H | F162: M | G162: 1806 | H162: 45 | I162: Agricultural labourer | K162: Stanley
A163: N27 | C163: DANGERFIELD | D163: Ann | E163: W | F163: M | G163: 1805 | H163: 46 | I163: Cloth Worker | K163: Woodchester
A164: N27 | C164: DANGERFIELD | D164: William | E164: S | F164: U | G164: 1830 | H164: 21 | I164: Cloth Worker | K164: Woodchester
A165: N27 | C165: DANGERFIELD | D165: John | E165: S | G165: 1839 | H165: 12 | I165: Errand boy | J165: Misc | K165: Woodchester
A166: N27 | C166: DANGERFIELD | D166: Dorcas | E166: D | G166: 1847 | H166: 4 | I166: Scholar | J166: School | K166: Woodchester
A167: N27 | C167: WILEY | D167: Joseph | E167: Visitor | G167: 1839 | H167: 12 | I167: Scholar | J167: School | K167: Rodborough | M167: Visitor
A169: N28 | B169: Selsley Road | C169: COLLETT | D169: Hannah | E169: H | F169: W | G169: 1788 | H169: 63 | I169: Pauper | K169: Stanley | M169: Widow
A170: N28 | C170: COLLETT | D170: Susanna | E170: D | F170: U | G170: 1829 | H170: 22 | I170: Servant | K170: Woodchester
A172: N29 | B172: Selsley Road | C172: HILL | D172: Sarah | E172: H | F172: U | G172: 1802 | H172: 49 | I172: Laundress | K172: Cam | M172: unmarried
A173: N29 | C173: HILL | D173: Margaret | E173: D | F173: U | G173: 1824 | H173: 27 | I173: Pin Sticker | K173: Cam
A174: N29 | C174: HILL | D174: Joseph | E174: S | F174: U | G174: 1833 | H174: 18 | I174: Cloth Worker | K174: Cam
A175: N29 | C175: HILL | D175: Jane | E175: D | G175: 1837 | H175: 14 | I175: Pin Sticker | J175: Pins | K175: Woodchester
A177: N30 | B177: Selsley Road | C177: HARRISON | D177: Samuel | E177: H | F177: M | G177: 1806 | H177: 45 | I177: Agricultural labourer | K177: Minchinhampton
A178: N30 | C178: HARRISON | D178: Ann | E178: W | F178: M | G178: 1813 | H178: 38 | I178: Cloth Worker | K178: Woodchester
A179: N30 | C179: HARRISON | D179: Sarah | E179: D | F179: U | G179: 1834 | H179: 17 | I179: Servant | K179: Woodchester
A180: N30 | C180: HARRISON | D180: Mary | E180: D | G180: 1836 | H180: 15 | I180: Cloth Worker | J180: Cloth | K180: Woodchester
A181: N30 | C181: HARRISON | D181: Louisa | E181: D | G181: 1845 | H181: 6 | I181: Scholar | J181: School | K181: Woodchester
A182: N30 | C182: HARRISON | D182: James | E182: S | G182: 1847 | H182: 4 | I182: Scholar | J182: School | K182: Woodchester
A183: N30 | C183: HARRISON | D183: Charlotte | E183: D | G183: 1851 | H183: 4m | K183: Woodchester
A185: N31 | B185: Selsley Road | C185: HAINES | D185: Hannah | E185: H | F185: W | G185: 1811 | H185: 40 | I185: Cloth Worker | K185: Woodchester | M185: Widow
A186: N31 | C186: WINDOW | D186: Sarah | E186: Visitor | F186: W | G186: 1771 | H186: 80 | I186: Cloth Worker | K186: Woodchester | M186: Visitor | N186: Widow
A188: N32 | B188: Selsley Road | C188: COLLETT | D188: Edwin | E188: H | F188: M | G188: 1820 | H188: 31 | I188: Coachman | K188: Woodchester
A189: N32 | C189: COLLETT | D189: Martha | E189: W | F189: M | G189: 1829 | H189: 22 | I189: Laundress | K189: Rodborough
A191: N33 | B191: Selsley Road | C191: DUNN | D191: Thomas | E191: H | F191: W | G191: 1803 | H191: 48 | I191: Cloth Worker | K191: Trowbridge | M191: Widr
A192: N33 | C192: DUNN | D192: Caroline | E192: D | F192: U | G192: 1832 | H192: 19 | I192: Home | K192: Bethnal Green, London
A193: N33 | C193: DUNN | D193: Thomas | E193: S | G193: 1844 | H193: 7 | K193: Woodchester
A194: N33 | C194: DUNN | D194: Amey | E194: D | G194: 1848 | H194: 3 | K194: Woodchester
A195: N33 | C195: DUNN | D195: Eliza | E195: Visitor | F195: U | G195: =1851-H195 -> 1788 | H195: 63 | K195: Trowbridge | M195: Visitor
A196: N33 | C196: MILES | D196: Ann | E196: Servant | F196: U | G196: 1827 | H196: 24 | I196: Servant | K196: Woodchester
A197: N33 | C197: CLIFFORD | D197: Harriet | E197: Servant | F197: U | G197: 1837 | H197: 14 | I197: Servant | J197: Servant | K197: Woodchester
A199: N34 | B199: Home Field | C199: HEAVEN | D199: John | E199: H | F199: M | G199: 1799 | H199: 52 | I199: Gardener | K199: Charvill
A200: N34 | C200: HEAVEN | D200: Ann | E200: W | F200: M | G200: 1805 | H200: 46 | I200: Cloth Worker | K200: Avening
A201: N34 | C201: HEAVEN | D201: Ellen | E201: D | F201: U | G201: 1832 | H201: 19 | K201: Rodborough
A202: N34 | C202: HEAVEN | D202: Henry | E202: S | F202: U | G202: 1833 | H202: 18 | I202: Gardener | K202: Rodborough
A203: N34 | C203: HEAVEN | D203: Patience | E203: D | G203: 1840 | H203: 11 | I203: Scholar | J203: School | K203: Woodchester
A204: N34 | C204: HEAVEN | D204: Thomas | E204: S | G204: 1846 | H204: 5 | I204: Scholar | J204: School | K204: Woodchester
A206: N35 | B206: Berrymore Cottage | C206: WEARE | D206: James | E206: H | F206: M | G206: 1789 | H206: 62 | I206: Cloth Worker | K206: Bisley
A207: N35 | C207: WEARE | D207: Maria | E207: W | F207: M | G207: 1793 | H207: 58 | K207: Stroud
A208: N35 | C208: WEARE | D208: Mary J | E208: D | F208: U | G208: 1833 | H208: 18 | I208: Milliner's Apprentice | K208: Woodchester
A209: N35 | C209: BISHOP | D209: Francis | E209: Visitor | G209: 1844 | H209: 7 | I209: Annuitant at school | J209: School | K209: Clapham Surrey | M209: Visitor
A211: N36 | B211: Berrymore Cottage | C211: GREENLAND | D211: William | E211: H | F211: M | G211: 1822 | H211: 29 | I211: Engine Driver | K211: Woodchester
A212: N36 | C212: GREENLAND | D212: Ruth | E212: W | F212: M | G212: 1823 | H212: 28 | K212: Woodchester
A213: N36 | C213: GREENLAND | D213: Aida | E213: D | G213: 1845 | H213: 6 | I213: Scholar | J213: School | K213: Woodchester
A215: N37 | B215: Selsley Road | C215: SMITH | D215: George | E215: H | F215: M | G215: 1794 | H215: 57 | I215: Parish clerk | K215: Dursley
A216: N37 | C216: SMITH | D216: Sarah | E216: W | F216: M | G216: 1793 | H216: 58 | I216: School Mistress | K216: Stroud
A217: N37 | C217: SMITH | D217: Georgiana | E217: D | F217: U | G217: 1834 | H217: 17 | I217: Home | K217: Woodchester
A218: N37 | C218: SMITH | D218: Christiana | E218: D | G218: 1837 | H218: 14 | I218: Scholar | J218: School | K218: Woodchester
A219: N37 | C219: SMITH | D219: Julia | E219: D | G219: 1842 | H219: 9 | I219: Scholar | J219: School | K219: Woodchester
A220: N37 | C220: SMITH | D220: George | E220: Son Visitor | F220: U | G220: 1834 | H220: 17 | I220: Tailors app | K220: Woodchester | M220: Son | N220: Visitor
A222: N38 | B222: Selsley Road | C222: POWER | D222: Steven | E222: H | F222: M | G222: 1809 | H222: 42 | I222: Labourer | K222: Portsmouth
A223: N38 | C223: POWER | D223: Emma | E223: W | F223: M | G223: 1796 | H223: 55 | K223: London
A224: N38 | C224: POWER | D224: Thomas | E224: S | G224: 1838 | H224: 13 | I224: Cloth Worker | J224: Cloth | K224: Stroud
A226: N39 | B226: Selsley Road | C226: CORDWELL | D226: James | E226: H | F226: M | G226: 1821 | H226: 30 | I226: Grocer & tea dealer | K226: Woodchester | N226: ??
A227: N39 | C227: CORDWELL | D227: Ann | E227: W | F227: M | G227: 1818 | H227: 33 | K227: Coaley
A228: N39 | C228: HODGES | D228: Ann | E228: Visitor | F228: U | G228: 1783 | H228: 68 | I228: Cloth Worker | K228: Rodborough | N228: Visitor
A230: N40 | B230: Selsley Road | C230: JONES | D230: Eli | E230: H | F230: M | G230: 1818 | H230: 33 | I230: Hand loom weaver | K230: Minchinhampton
A231: N40 | C231: JONES | D231: Ann | E231: W | F231: M | G231: 1811 | H231: 40 | I231: Straw Milliner | K231: Stroud
A233: N41 | B233: Selsley Road | C233: CHANDLER | D233: Samuel | E233: H | F233: M | G233: 1794 | H233: 57 | I233: Cloth Worker | K233: Randwick
A234: N41 | C234: CHANDLER | D234: Ann | E234: W | F234: M | G234: 1788 | H234: 63 | K234: Bisley
A236: N42 | B236: Selsley Road | C236: EARL | D236: John | E236: H | F236: M | G236: 1791 | H236: 60 | I236: Cloth Worker | K236: Avening
A237: N42 | C237: EARL | D237: Ann | E237: W | F237: M | G237: 1788 | H237: 63 | I237: Cloth Worker | K237: Woodchester
A239: N43 | B239: Selsley Road | C239: JONES | D239: James | E239: H | F239: M | G239: 1789 | H239: 62 | I239: Hand loom weaver | K239: Westbury
A240: N43 | C240: JONES | D240: Mary | E240: W | F240: M | G240: 1801 | H240: 50 | I240: Hand loom weaver | K240: Minchinhampton
A242: N44 | B242: Selsley Road | C242: DYER | D242: Enoch | E242: H | F242: M | G242: 1802 | H242: 49 | I242: Hand loom weaver | K242: Horsley | N242: His and Hers ?
... 823 more rows

Sheet Woodcensus61
A1: No | B1: Road, Street etc | C1: Surname | D1: Christian Name | E1: Relationship to Head | F1: Married Status | G1: Year of Birth | H1: Age | I1: Occupation | J1: Occ Type | K1: Birth
A2: N1 | B2: Church Road | C2: CARTER | D2: Thomas | E2: H | F2: M | G2: =1861-H2 -> 1801 | H2: 60 | I2: Wool Dyer | K2: Rodborough
A3: N1 | C3: CARTER | D3: Esther | E3: W | F3: M | G3: =1861-H3 -> 1820 | H3: 41 | K3: Nailsworth
A4: N2 | B4: Church Road | C4: RIDE | D4: James | E4: H | F4: M | G4: =1861-H4 -> 1804 | H4: 57 | I4: Scripture Reader | K4: Horsley | O4: Age | P4: Total | Q4: School | R4: Cloth | S4: Pins | T4: Servant | U4: Agricultural | V4: Apprentice | W4: Misc | X4: Not Recorded
A5: N2 | C5: RIDE | D5: Ann | E5: W | F5: M | G5: =1861-H5 -> 1823 | H5: 38 | K5: Little Sodbury | O5: 5 | P5: =COUNTIFS($H$2:$H$780,$O5) -> 11 | Q5: =COUNTIFS($H$2:$H$780,$O5,$J$2:$J$780,Q$4) -> 6 | R5: =COUNTIFS($H$2:$H$780,$O5,$J$2:$J$780,R$4) -> 0 | S5: 0 | T5: 0 | U5: 0 | V5: 0 | W5: 0 | X5: =P5-SUM(Q5:W5) -> 5
A6: N2 | C6: RIDE | D6: Harriet | E6: D | F6: U | G6: 1846 | H6: 15 | I6: Pulpit Teacher | J6: Misc | K6: Horsley | O6: 6 | P6: =COUNTIFS($H$2:$H$780,$O6) -> 20 | Q6: =COUNTIFS($H$2:$H$780,$O6,$J$2:$J$780,Q$4) -> 12 | R6: 0 | S6: 0 | T6: 0 | U6: 0 | V6: 0 | W6: 0 | X6: =P6-SUM(Q6:W6) -> 8
A7: N2 | C7: RIDE | D7: Mary Ann | E7: D | G7: 1849 | H7: 12 | I7: Scholar | J7: School | K7: Kingscote | O7: 7 | P7: 14 | Q7: 11 | R7: 0 | S7: 0 | T7: 0 | U7: 0 | V7: 0 | W7: 0 | X7: 3
A8: N2 | C8: RIDE | D8: John | E8: S | G8: 1851 | H8: 10 | I8: Scholar | J8: School | K8: Kingscote | O8: 8 | P8: 15 | Q8: 14 | R8: 0 | S8: 0 | T8: 0 | U8: 0 | V8: 0 | W8: 0 | X8: 1
A9: N2 | C9: RIDE | D9: Thomas | E9: S | G9: 1853 | H9: 8 | I9: Scholar | J9: School | K9: Kingscote | O9: 9 | P9: 15 | Q9: 9 | R9: 0 | S9: 0 | T9: 0 | U9: 0 | V9: 0 | W9: 0 | X9: 6
A10: N2 | C10: RIDE | D10: James | E10: S | G10: 1858 | H10: 3 | K10: Kings Stanley | O10: 10 | P10: 27 | Q10: 17 | R10: 0 | S10: 0 | T10: 2 | U10: 0 | V10: 0 | W10: 1 | X10: 7
A11: N3 | B11: Church Road | C11: DUNN | D11: Thomas P | E11: H | G11: 1803 | H11: 58 | I11: Woollen Flock Dealer | K11: Trowbridge | O11: 11 | P11: 15 | Q11: 10 | R11: 0 | S11: 1 | T11: 0 | U11: 0 | V11: 0 | W11: 0 | X11: 4
A12: N3 | C12: DUNN | D12: Grace Carruthers | E12: M | G12: 1808 | H12: 53 | K12: Stroud | O12: 12 | P12: 11 | Q12: 6 | R12: 2 | S12: 0 | T12: 0 | U12: 0 | V12: 0 | W12: 1 | X12: 2
A13: N3 | C13: DUNN | D13: Caroline | E13: D | G13: 1832 | H13: 29 | K13: Kachery???? | O13: 13 | P13: 17 | Q13: 7 | R13: 2 | S13: 2 | T13: 2 | U13: 0 | V13: 0 | W13: 2 | X13: 2
A14: N3 | C14: DUNN | D14: Amy | E14: D | G14: 1847 | H14: 14 | K14: Woodchester | O14: 14 | P14: 16 | Q14: 4 | R14: 7 | S14: 0 | T14: 2 | U14: 0 | V14: 0 | W14: 2 | X14: 1
A15: N3 | C15: ROBERTS | D15: Jane | E15: Servant | G15: 1837 | H15: 24 | I15: General Servant | K15: Kings Stanley | O15: 15 | P15: 20 | Q15: 1 | R15: 8 | S15: 0 | T15: 2 | U15: 0 | V15: 2 | W15: 4 | X15: 3
A16: N4 | B16: Royal Oak | C16: LUCAS | D16: Joseph | E16: H | F16: M | G16: 1813 | H16: 48 | I16: Victualler | K16: Rodborough | O16: 16 | P16: 11 | Q16: 2 | R16: 2 | S16: 2 | T16: 2 | U16: 0 | V16: 0 | W16: 1 | X16: 2
A17: N4 | C17: LUCAS | D17: Sarah | E17: W | F17: M | G17: 1815 | H17: 46 | K17: Paddington
A18: N4 | C18: BINGHAM | D18: Eliza | E18: Sister in Law | F18: W | G18: 1813 | H18: 48 | K18: Paddington
A19: N5 | B19: The Rectory | C19: EVANS | D19: George H | E19: H | F19: M | G19: 1806 | H19: 55 | I19: Rector | K19: Ireland, Tyrone
A20: N5 | C20: EVANS | D20: Maria | E20: W | F20: M | G20: 1822 | H20: 39 | K20: Nova Scotia
A21: N5 | C21: EVANS | D21: Harriet | E21: D | G21: 1847 | H21: 14 | I21: Scholar | J21: School | K21: East Indies
A22: N5 | C22: EVANS | D22: Loftus | E22: S | G22: 1854 | H22: 7 | I22: Scholar | J22: School | K22: Bath
A23: N5 | C23: EVANS | D23: Caroline | E23: D | G23: 1858 | H23: 3 | K23: East Indies
A24: N5 | C24: EVANS | D24: Charles | E24: S | G24: 1859 | H24: 2 | K24: Woodchester
A25: N5 | C25: EVANS | D25: George | E25: S | G25: 1861 | H25: 1mth | K25: Woodchester
A26: N5 | C26: WEST | D26: Henrietta | E26: Visitor | F26: U | G26: 1835 | H26: 26 | K26: Ireland
A27: N5 | C27: PUCKLE | D27: Elinor | E27: Visitor | F27: U | G27: 1850 | H27: 11 | I27: Scholar | J27: School | K27: East Indies
A28: N5 | C28: CRIPPS | D28: Susan | E28: Servant | F28: U | G28: 1831 | H28: 30 | I28: Nurse | K28: Painswick
A29: N5 | C29: RIZEBY | D29: Elizabeth | E29: Servant | F29: U | G29: 1837 | H29: 24 | I29: Housemaid | K29: Avening
A30: N5 | C30: TUFFLEY | D30: Mary | E30: Servant | F30: U | G30: 1844 | H30: 17 | I30: Under Nurse | K30: Lechlade
A31: N5 | C31: PATTEN | D31: Catherine | E31: Servant | F31: U | G31: 1836 | H31: 25 | I31: Cook | K31: Leominster
A32: N6 | B32: Priory | C32: CHOLMELEY | D32: Henry | E32: H | F32: W | G32: 1810 | H32: 51 | I32: Magistrate & Retd Army Captain | K32: Grantham
A33: N6 | C33: CHOLMELEY | D33: Catherine | E33: D | G33: 1855 | H33: 6 | I33: Scholar | J33: School | K33: Woodchester
A34: N6 | C34: CHOLMELEY | D34: Olivia | E34: D | G34: 1856 | H34: 5 | I34: Scholar | J34: School | K34: Woodchester
A35: N6 | C35: WAY | D35: Drusilla | E35: Sister in Law | F35: U | G35: 1805 | H35: 56 | I35: Fund Holder | K35: Middlesex, St Clements
A36: N6 | C36: VICK | D36: Harriet | E36: Visitor | F36: U | G36: 1814 | H36: 47 | I36: Lady's Maid | K36: Cainscross
A37: N6 | C37: THOMAS | D37: Emma | E37: Servant | F37: U | G37: 1824 | H37: 37 | I37: Nurse | K37: Henbury
A38: N6 | C38: MOTTRAM | D38: Jane | E38: Servant | F38: U | G38: 1835 | H38: 26 | I38: Cook | K38: Stafford
A39: N6 | C39: STEPHENS | D39: Susan | E39: Servant | F39: U | G39: 1827 | H39: 34 | I39: Housemaid | K39: Cirencester
A40: N6 | C40: PARSONS | D40: Alfred | E40: Servant | F40: U | G40: 1824 | H40: 37 | I40: Butler | K40: Bolney
A41: N6 | C41: PEGLER | D41: William | E41: Servant | F41: U | G41: 1844 | H41: 17 | I41: Groom | K41: Quedgley
A42: N7 | B42: Cottage | C42: HOLMES | D42: George | E42: H | F42: M | G42: 1809 | H42: 52 | I42: Gardener (Domestic) | K42: Kent
A43: N7 | C43: HOLMES | D43: Sarah | E43: W | F43: M | G43: 1818 | H43: 43 | K43: Rodborough
A44: N7 | C44: HOLMES | D44: Lydia | E44: D | G44: 1856 | H44: 5 | I44: Scholar | J44: School | K44: Rodborough
A45: N7 | C45: RUBBER | D45: Sarah | E45: Mother in Law | F45: W | G45: 1774 | H45: 87 | K45: Cainscross
A46: N8 | B46: Southfields Lane | C46: SMITH | D46: Thomas | E46: H | F46: M | G46: 1815 | H46: 46 | I46: Agricultural Labourer | K46: Woodchester
A47: N8 | C47: SMITH | D47: Sarah | E47: W | F47: M | G47: 1817 | H47: 44 | I47: Woollen Cloth Worker | K47: Stanley
A48: N8 | C48: SMITH | D48: Eli | E48: S | F48: U | G48: 1846 | H48: 15 | I48: Woollen Cloth Worker | J48: Cloth | K48: Woodchester
A49: N8 | C49: SMITH | D49: Amelia | E49: D | G49: 1848 | H49: 13 | I49: Scholar | J49: School | K49: Woodchester
A50: N9 | B50: Southfields Lane | C50: TUCKER | D50: William | E50: H | F50: U | G50: 1808 | H50: 53 | I50: Clerk to Woollen Cloth Factory | K50: Rodborough
A51: N10 | B51: Southfields Lane | C51: HEAVEN | D51: John | E51: H | F51: M | G51: 1802 | H51: 59 | I51: Gardener (Domestic) | K51: Charfield
A52: N10 | C52: HEAVEN | D52: Anne | E52: W | F52: M | G52: 1808 | H52: 53 | I52: Woollen Cloth Worker | K52: Nailsworth
A53: N10 | C53: HEAVEN | D53: Thomas | E53: S | F53: U | G53: 1846 | H53: 15 | I53: Woollen Cloth Worker | J53: Cloth | K53: Woodchester
A54: N11 | B54: Southfields Lane | C54: CHANDLER | D54: Samuel | E54: H | F54: M | G54: 1794 | H54: 67 | I54: Gent living in freehold prop | K54: Randwick
A55: N11 | C55: CHANDLER | D55: Anne | E55: W | F55: M | G55: 1786 | H55: 75 | K55: Bisley
A56: N11 | C56: FISHER | D56: James | E56: Gson | F56: U | G56: 1836 | H56: 25 | I56: Machine Tailor | K56: Woodchester
A57: N11 | C57: FISHER | D57: Emma | E57: Gdau | F57: U | G57: 1847 | H57: 14 | I57: Tailoress | J57: Misc | K57: Woodchester
A58: N12 | B58: Southfields Lane | C58: EARL | D58: John | E58: H | F58: M | G58: 1790 | H58: 71 | I58: Gent living in freehold prop | K58: Avening
A59: N12 | C59: EARL | D59: Nancy Ann | E59: W | F59: M | G59: 1788 | H59: 73 | K59: Woodchester
A60: N13 | B60: Southfields Lane | C60: LEA | D60: John | E60: H | F60: M | G60: 1807 | H60: 54 | I60: Woollen Cloth Weaver | K60: Lypiatt
A61: N13 | C61: LEA | D61: Sarah | E61: W | F61: M | G61: 1811 | H61: 50 | I61: Woollen Cloth Weaver | K61: Minchinhampton
A62: N13 | C62: LEA | D62: Ann | E62: D | F62: U | G62: 1840 | H62: 21 | I62: Woollen Cloth Weaver | K62: Bradley
A63: N14 | B63: Southfields Lane | C63: STEPHENS | D63: Frederick | E63: H | F63: M | G63: 1819 | H63: 42 | I63: Woollen Cloth Weaver | K63: Uley
A64: N14 | C64: STEPHENS | D64: Mary Ann | E64: W | F64: M | G64: 1818 | H64: 43 | I64: Woollen Cloth Weaver | K64: Randwick
A65: N14 | C65: STEPHENS | D65: Joseph | E65: S | F65: U | G65: 1846 | H65: 15 | I65: Woollen Cloth Weaver | J65: Cloth | K65: Stroud
A66: N14 | C66: STEPHENS | D66: Alfred | E66: S | G66: 1848 | H66: 13 | I66: Woollen Cloth Weaver | J66: Cloth | K66: Stroud
A67: N14 | C67: STEPHENS | D67: Catherine | E67: D | G67: 1851 | H67: 10 | I67: Scholar | J67: School | K67: Kingswood
A68: N14 | C68: STEPHENS | D68: Rhoda | E68: D | G68: 1855 | H68: 6 | I68: Scholar | J68: School | K68: Kingswood
A69: N15 | B69: Southfields Lane | C69: BIRD | D69: Oliver | E69: H | F69: M | G69: =1861-H69 -> 1793 | H69: 68 | I69: Woollen Cloth Manufacturer | K69: Pickering
A70: N15 | C70: BIRD | D70: Catherine | E70: W | F70: M | G70: 1794 | H70: 67 | K70: Kirby Moorside
A71: N15 | C71: BIRD | D71: Catherine | E71: D | F71: U | G71: 1828 | H71: 33 | K71: Pickering
A72: N15 | C72: BIRD | D72: Thomas | E72: S | F72: U | G72: 1829 | H72: 32 | I72: Woollen Cloth Manufacturer | K72: Pickering
A73: N15 | C73: BIRD | D73: Margaret | E73: D | F73: U | G73: 1831 | H73: 30 | K73: Pickering
A74: N15 | C74: BIRD | D74: Emily | E74: D | F74: U | G74: 1835 | H74: 26 | K74: Woodchester
A75: N15 | C75: BIRD | D75: Henry | E75: S | F75: U | G75: 1842 | H75: 19 | K75: Woodchester
A76: N15 | C76: LUDLOW | D76: Lucy | E76: Servant | F76: U | G76: 1841 | H76: 20 | K76: Beverstone
A77: N16 | B77: Southfields Lane | C77: BERKELEY | D77: John | E77: H | F77: M | G77: 1812 | H77: 49 | I77: Gardener (Domestic) | K77: Kingswood
A78: N16 | C78: BERKELEY | D78: Elizabeth | E78: W | F78: M | G78: 1806 | H78: 55 | K78: Minchinhampton
A79: N16 | C79: BERKELEY | D79: Albert | E79: S | G79: 1848 | H79: 13 | I79: Errand Boy | J79: Misc | K79: Woodchester
A80: N17 | B80: Southfields Lane | C80: BOWN | D80: Daniel | E80: H | F80: M | G80: 1791 | H80: 70 | I80: Woollen Cloth Weaver | K80: Avening
A81: N17 | C81: BOWN | D81: Mary | E81: W | F81: M | G81: 1801 | H81: 60 | I81: Woollen Cloth Weaver | K81: Horsley
A82: N18 | B82: Southfields Lane | C82: NEALE | D82: Benjamin | E82: H | F82: M | G82: 1791 | H82: 70 | I82: Woollen Cloth Weaver | K82: Horsley
A83: N18 | C83: NEALE | D83: Sarah | E83: W | F83: M | G83: 1811 | H83: 50 | I83: Woollen Cloth Worker | K83: Avening
A84: N19 | B84: Churches Mill | C84: HAINES | D84: Margaret | E84: H | F84: W | G84: 1805 | H84: 56 | I84: Wool Picker | K84: West Indies
A85: N20 | B85: Churches Mill | C85: EVANS | D85: George | E85: H | F85: M | G85: 1806 | H85: 55 | I85: Woollen Cloth Weaver | K85: Minchinhampton
A86: N20 | C86: EVANS | D86: Eliza | E86: W | F86: M | G86: 1807 | H86: 54 | I86: Shirt Maker | K86: Dursley
A87: N20 | C87: EVANS | D87: Martha | E87: D | F87: U | G87: 1843 | H87: 18 | I87: Woollen Cloth Weaver | K87: Minchinhampton
A88: N21 | B88: Churches Mill | C88: WHITE | D88: Harriet | E88: H | G88: 1809 | H88: 52 | I88: Woollen Cloth Weaver | K88: Littleworth
A89: N21 | C89: WHITE | D89: Emily | E89: D | G89: 1842 | H89: 19 | I89: Woollen Cloth Weaver | K89: Woodchester
A90: N21 | C90: WHITE | D90: Eunice | E90: D | G90: 1844 | H90: 17 | I90: Woollen Cloth Sewer | K90: Woodchester
A91: N21 | C91: WHITE | D91: David | E91: S | G91: 1853 | H91: 8 | I91: Scholar | J91: School | K91: Woodchester
A92: N22 | B92: Churches Mill | C92: GALE | D92: Jesse | E92: H | F92: M | G92: 1830 | H92: 31 | I92: Woollen Cloth Pressman | K92: Stroud
A93: N22 | C93: GALE | D93: Eliza | E93: W | F93: M | G93: 1827 | H93: 34 | I93: Woollen Cloth Worker | K93: Woodchester
A94: N22 | C94: GALE | D94: Meryl | E94: D | G94: 1852 | H94: 9 | I94: Scholar | J94: School | K94: Rodborough
A95: N22 | C95: GALE | D95: Percival | E95: S | G95: 1853 | H95: 8 | I95: Scholar | J95: School | K95: Pagan Hill
A96: N22 | C96: GALE | D96: Edward | E96: S | G96: 1855 | H96: 6 | I96: Scholar | J96: School | K96: Pagan Hill
A97: N22 | C97: GALE | D97: George | E97: S | G97: 1857 | H97: 4 | I97: Scholar | J97: School | K97: Pagan Hill
A98: N22 | C98: GALE | D98: William | E98: S | G98: 1861 | H98: 6mths | K98: Pagan Hill
A99: N22 | C99: HABGOOD | D99: Sarah | E99: Mother in Law | F99: W | G99: 1861 | I99: Woollen Cloth Worker | K99: Rodborough
A100: N23 | B100: Churches Mill | C100: WHITE | D100: William | E100: H | F100: M | G100: 1809 | H100: 52 | I100: Woollen Cloth Weaver | K100: Woodchester
A101: N23 | C101: WHITE | D101: Hannah | E101: W | F101: M | G101: 1813 | H101: 48 | I101: Laundress | K101: Woodchester
A102: N23 | C102: WHITE | D102: Ann | E102: D | F102: U | G102: 1834 | H102: 27 | I102: Woollen Cloth Worker | K102: Woodchester
A103: N23 | C103: WHITE | D103: William | E103: S | F103: U | G103: 1845 | H103: 16 | I103: Family & gents servant | J103: Servant | K103: Woodchester
A104: N23 | C104: WHITE | D104: Blanch | E104: D | G104: 1850 | H104: 11 | I104: Scholar | J104: School | K104: Woodchester
A105: N23 | C105: WHITE | D105: Rose | E105: D | G105: 1853 | H105: 8 | I105: Scholar | J105: School | K105: Woodchester
A106: N24 | B106: Churches Mill | C106: GARLAND | D106: William | E106: H | F106: M | G106: 1813 | H106: 48 | I106: Bread Baker | K106: Thornbury
A107: N24 | C107: GARLAND | D107: Sarah | E107: W | F107: M | G107: 1826 | H107: 35 | K107: Minchinhampton
A108: N24 | C108: GARLAND | D108: Mary | E108: D | G108: 1860 | H108: 11mths | K108: Woodchester
A109: N24 | C109: JAMES | D109: Sarah | E109: Mother in Law | G109: 1801 | H109: 60 | K109: Crawley
A110: N24 | C110: BERKELEY | D110: George | E110: Ap | F110: W | G110: 1844 | H110: 17 | I110: Bread Baker | K110: Woodchester
A111: N25 | B111: Churches Mill | C111: HAILS | D111: Abraham | E111: H | F111: M | G111: 1800 | H111: 61 | I111: Woollen Cloth Weaver | K111: Uley
A112: N25 | C112: HAILS | D112: Hannah | E112: W | F112: M | G112: 1812 | H112: 49 | I112: Woollen Cloth Worker | K112: Woodchester
A113: N26 | B113: Churches Mill | C113: BROWNING | D113: Enoch | E113: H | F113: M | G113: 1838 | H113: 23 | I113: Wool Stapler | K113: Woodchester
A114: N26 | C114: BROWNING | D114: Harriet | E114: W | F114: M | G114: 1837 | H114: 24 | K114: Woodchester
A115: N26 | C115: BROWNING | D115: Edward C | E115: S | G115: 1860 | H115: 10mths | K115: Woodchester
A116: N27 | B116: Churches Mill | C116: BALL | D116: William | E116: H | F116: M | G116: 1784 | H116: 77 | I116: Blacksmith | K116: Coaley
A117: N27 | C117: BALL | D117: Martha | E117: W | F117: M | G117: 1780 | H117: 81 | K117: Minchinhampton
A118: N27 | C118: CURTIS | D118: Sophie | E118: Visitor | F118: M | G118: 1830 | H118: 31 | K118: Cainscross
A119: N28 | B119: Churches Mill | C119: HABGOOD | D119: George | E119: H | F119: M | G119: 1834 | H119: 27 | I119: Mechanic at Iron Foundry | K119: Woodchester
A120: N28 | C120: HABGOOD | D120: Eliza | E120: W | F120: M | G120: 1837 | H120: 24 | K120: Uley
A121: N28 | C121: HABGOOD | D121: Arthur | E121: S | G121: 1859 | H121: 2 | K121: Woodchester
A122: N28 | C122: HABGOOD | D122: Albert | E122: D | G122: 1860 | H122: 1 | K122: Woodchester
A123: N29 | B123: Cross | C123: BROWNING | D123: Charles | E123: H | F123: M | G123: 1813 | H123: 48 | I123: Woollen Cloth Worker | K123: Woodchester
A124: N29 | C124: BROWNING | D124: Eliza | E124: W | F124: M | G124: 1815 | H124: 46 | K124: Woodchester
A125: N29 | C125: BROWNING | D125: Thomas | E125: S | F125: U | G125: 1835 | H125: 26 | I125: Engine Driver | K125: Woodchester
A126: N29 | C126: BROWNING | D126: Marie | E126: D | F126: U | G126: 1841 | H126: 20 | I126: ? At Pin Factory | K126: Woodchester
A127: N29 | C127: BROWNING | D127: William | E127: S | G127: 1847 | H127: 14 | I127: Woollen Cloth Worker | J127: Cloth | K127: Woodchester
A128: N29 | C128: BROWNING | D128: Charles | E128: S | G128: 1853 | H128: 8 | I128: Scholar | J128: School | K128: Woodchester
A129: N29 | C129: BROWNING | D129: Albert | E129: S | G129: 1857 | H129: 4 | I129: Scholar | J129: School | K129: Woodchester
A130: N29 | C130: BROWNING | D130: Esther | E130: D | G130: 1857 | H130: 4 | I130: Scholar | J130: School | K130: Woodchester
A131: N29 | C131: BROWNING | D131: Nathan | E131: S | G131: 1858 | H131: 3 | K131: Woodchester
A132: N30 | B132: Cross | C132: GRISE | D132: Mary | E132: H | F132: W | G132: 1809 | H132: 52 | I132: Wool Worker | K132: Stroud
A133: N31 | B133: Cross | C133: LONG | D133: Rhoda | E133: H | F133: W | G133: =1861-H133 -> 1804 | H133: 57 | I133: Woollen Cloth Worker | K133: Dursley
A134: N31 | C134: LONG | D134: William | E134: Gson | G134: 1854 | H134: 7 | I134: Scholar | J134: School | K134: Dursley
A135: N32 | B135: Cross | C135: BARNFIELD | D135: Charles | E135: H | F135: M | G135: 1836 | H135: 25 | I135: Labourer at Iron Foundry | K135: Cam
A136: N32 | C136: BARNFIELD | D136: Ann | E136: W | F136: M | G136: 1836 | H136: 25 | I136: Woollen Cloth Worker | K136: Dursley
A137: N32 | C137: BARNFIELD | D137: Alfred | E137: S | G137: 1861 | H137: 4mths | K137: Woodchester
A138: N33 | B138: Cross | C138: TURNER | D138: John | E138: H | F138: M | G138: 1839 | H138: 22 | I138: Woollen Flock Worker | K138: Horsley
A139: N33 | C139: TURNER | D139: Ann | E139: W | F139: M | G139: 1839 | H139: 22 | I139: Woollen Cloth Worker | K139: Woodchester
A140: N33 | C140: TURNER | D140: Frederick E | E140: S | G140: 1860 | H140: 1 | K140: Woodchester
A141: N34 | B141: Tower House | C141: McTAGGART | D141: Ellen | E141: H | F141: W | G141: 1815 | H141: 46 | I141: Fund Holder | K141: East Indies
A142: N34 | C142: TOD | D142: Charlotte | E142: Visitor | F142: U | G142: 1822 | H142: 39 | I142: Fund Holder | K142: East Indies
A143: N34 | C143: PERKINS | D143: Sarah | E143: Servant | F143: U | G143: 1817 | H143: 44 | I143: Cook | K143: Woodchester
A144: N34 | C144: PESHETT? | D144: Sarah | E144: Servant | F144: U | G144: 1840 | H144: 21 | I144: Housemaid | K144: Tetbury
A145: N34 | C145: BARRETT | D145: Thomas | E145: Servant | F145: U | G145: 1836 | H145: 25 | I145: Footman | K145: Tetbury
A146: N35 | B146: Woodchester House | C146: WISE | D146: Edward | E146: H | F146: M | G146: 1808 | H146: 53 | I146: Woollen Cloth Manufacturer | K146: Fairford
A147: N35 | C147: WISE | D147: Elizabeth | E147: W | F147: M | G147: 1827 | H147: 34 | K147: Liverpool
A148: N35 | C148: WISE | D148: Edward | E148: S | G148: 1852 | H148: 9 | I148: Scholar | J148: School | K148: Woodchester
A149: N35 | C149: WISE | D149: Edith | E149: D | G149: 1855 | H149: 6 | I149: Scholar | J149: School | K149: Woodchester
A150: N35 | C150: WISE | D150: Wilhilmina | E150: D | G150: 1858 | H150: 3 | K150: Woodchester
A151: N35 | C151: SAINSBURY | D151: Ann | E151: Servant | F151: W | G151: 1830 | H151: 31 | I151: Cook | K151: Devonshire
A152: N35 | C152: BURROUGHS | D152: Sarah Ann | E152: Servant | F152: U | G152: 1835 | H152: 26 | I152: Nurse | K152: Minchinhampton
A153: N35 | C153: FIELD | D153: Jane | E153: Servant | F153: U | G153: 1841 | H153: 20 | I153: Housemaid | K153: Ebley
A154: N36 | B154: Lagger Lane | C154: MATTHEWS | D154: William | E154: H | F154: M | G154: 1793 | H154: 68 | I154: Boot & Shoe Maker | K154: Woodchester
A155: N36 | C155: MATTHEWS | D155: Ann | E155: W | F155: M | G155: 1804 | H155: 57 | I155: Woollen Cloth Worker | K155: Woodchester
A156: N36 | C156: MATTHEWS | D156: William | E156: S | F156: U | G156: 1833 | H156: 28 | I156: Woollen Cloth Worker | K156: Woodchester
A157: N36 | C157: MATTHEWS | D157: Elizabeth | E157: D | F157: U | G157: 1835 | H157: 26 | I157: Woollen Cloth Worker | K157: Woodchester
A158: N36 | C158: MATTHEWS | D158: Hannah | E158: D | G158: 1852 | H158: 9 | I158: Scholar | J158: School | K158: Woodchester
A159: N36 | C159: MATTHEWS | D159: Harriet | E159: Gdau | G159: 1858 | H159: 3 | I159: Scholar | J159: School | K159: Kings Stanley
A160: N37 | B160: Lagger Lane | C160: POWER | D160: John | E160: H | F160: M | G160: 1805 | H160: 56 | I160: Master Gardener | K160: Stroud
A161: N37 | C161: POWER | D161: Anne | E161: W | F161: M | G161: 1809 | H161: 52 | K161: Stroud
A162: N37 | C162: POWER | D162: Henry | E162: S | F162: U | G162: 1844 | H162: 17 | I162: Baker | K162: Stroud
A163: N37 | C163: POWER | D163: Edwin | E163: S | G163: 1847 | H163: 14 | I163: Scholar | J163: School | K163: Stroud
A164: N37 | C164: POWER | D164: Charles | E164: S | G164: 1848 | H164: 13 | I164: Scholar | J164: School | K164: Stroud
A165: N37 | C165: WHITTEMORE | D165: Jane | E165: Sister in Law | F165: M | G165: 1821 | H165: 40 | I165: Laundress | K165: Stroud
A166: N38 | B166: Lagger Lane | C166: OSBORNE | D166: Sarah | E166: H | F166: W | G166: 1774 | H166: 87 | I166: Formerly Woollen cloth Worker | K166: Woodchester
A167: N38 | C167: MARMONT | D167: Mary | E167: D | F167: U | G167: 1801 | H167: 60 | I167: Formerly Woollen cloth Worker | K167: Woodchester
A168: N39 | B168: Lagger Lane | C168: WIGHT | D168: Samuel | E168: H | F168: M | G168: 1819 | H168: 42 | I168: Agricultural Labourer | K168: Stonehouse
A169: N39 | C169: WIGHT | D169: Mary | E169: W | F169: M | G169: 1807 | H169: 54 | I169: Woollen Cloth Worker | K169: Woodchester
A170: N39 | C170: WIGHT | D170: James | E170: S | F170: U | G170: 1841 | H170: 20 | I170: Agricultural Labourer | K170: Woodchester
A171: N40 | B171: Lagger Lane | C171: SPACKMAN | D171: Hannah | E171: H | F171: U | G171: 1833 | H171: 28 | I171: Woollen Cloth Worker | K171: Woodchester
A172: N41 | B172: Lagger Lane | C172: MAIDSTONE | D172: Henry | E172: H | F172: M | G172: 1826 | H172: 35 | I172: Woollen Cloth Worker | K172: Dursley
A173: N41 | C173: MAIDSTONE | D173: Mary | E173: W | F173: M | G173: 1827 | H173: 34 | K173: Woodchester
A174: N41 | C174: MAIDSTONE | D174: Henry | E174: S | G174: 1851 | H174: 10 | I174: Scholar | J174: School | K174: Woodchester
A175: N41 | C175: MAIDSTONE | D175: Sarah | E175: D | G175: 1858 | H175: 3 | K175: Woodchester
A176: N41 | C176: MAIDSTONE | D176: Reginald | E176: S | G176: 1860 | H176: 8mths | K176: Woodchester
A177: N42 | B177: North side of Bospin Lane | C177: HORWOOD | D177: Joseph | E177: H | F177: M | G177: 1818 | H177: 43 | I177: Agricultural Labourer | K177: Woodchester
A178: N42 | C178: HORWOOD | D178: Mary | E178: W | F178: M | G178: 1828 | H178: 33 | I178: Charwoman | K178: Woodchester
A179: N42 | C179: HORWOOD | D179: James | E179: S | G179: 1848 | H179: 13 | I179: Scholar | J179: School | K179: Woodchester
A180: N42 | C180: HORWOOD | D180: Maria | E180: D | G180: 1850 | H180: 11 | K180: Woodchester
A181: N42 | C181: HORWOOD | D181: Martha | E181: D | G181: 1852 | H181: 9 | K181: Woodchester
A182: N42 | C182: HORWOOD | D182: Mary Ann | E182: D | G182: 1855 | H182: 6 | K182: Woodchester
A183: N42 | C183: HORWOOD | D183: Jane | E183: D | G183: 1857 | H183: 4 | K183: Woodchester
A184: N42 | C184: HORWOOD | D184: Mary | E184: D | G184: 1859 | H184: 2 | K184: Woodchester
A185: N42 | C185: HORWOOD | D185: Elizabeth | E185: D | G185: 1861 | H185: 7days | K185: Woodchester
A186: N43 | B186: North side of Bospin Lane | C186: GOULDING | D186: James | E186: H | F186: M | G186: 1827 | H186: 34 | I186: Agricultural Labourer | K186: Woodchester
A187: N43 | C187: GOULDING | D187: Ann Esther | E187: W | F187: M | G187: 1829 | H187: 32 | K187: Woodchester
A188: N43 | C188: GOULDING | D188: Georgiana | E188: D | G188: 1849 | H188: 12 | I188: Scholar | J188: School | K188: Woodchester
A189: N43 | C189: GOULDING | D189: Emma | E189: D | G189: 1852 | H189: 9 | K189: Woodchester
A190: N43 | C190: GOULDING | D190: James | E190: S | G190: 1854 | H190: 7 | K190: Woodchester
A191: N43 | C191: GOULDING | D191: Ann | E191: D | G191: 1855 | H191: 6 | K191: Woodchester
A192: N43 | C192: GOULDING | D192: William | E192: S | G192: 1858 | H192: 3 | K192: Woodchester
A193: N43 | C193: GOULDING | D193: Arthur | E193: S | G193: 1860 | H193: 1 | K193: Woodchester
A194: N44 | B194: North side of Bospin Lane | C194: VIRGO | D194: Caroline A | E194: H | F194: U | G194: 1836 | H194: 25 | I194: Woollen Cloth Worker | K194: Woodchester
A195: N44 | C195: VIRGO | D195: Thomas | E195: S | G195: 1860 | H195: 1 | K195: Stroud
A196: N44 | C196: VIRGO | D196: Henry | E196: Brother | F196: U | G196: 1842 | H196: 19 | I196: Agricultural Labourer | K196: Woodchester
A197: N45 | B197: Bown Hill Farm | C197: RACTLIFFE | D197: Matilda | E197: H | F197: W | G197: =1861-H197 -> 1801 | H197: 60 | I197: Farmer | K197: Waddon
A198: N45 | C198: RACTLIFFE | D198: Nathaniel | E198: S | F198: U | G198: 1839 | H198: 22 | I198: Farmer's Son | K198: Woodchester
A199: N45 | C199: RACTLIFFE | D199: Enoch | E199: S | F199: U | G199: 1842 | H199: 19 | I199: Farmer's Son | K199: Woodchester
A200: N45 | C200: RACTLIFFE | D200: James | E200: S | F200: U | G200: 1843 | H200: 18 | I200: Farmer's Son | K200: Woodchester
... 707 more rows

Sheet Woodcensus71
A1: No | B1: Road, Street etc | C1: Surname | D1: Christian Name | E1: Relationship to Head | F1: Married Status | G1: Age | H1: Occupation | I1: Occ Type | J1: Place of Birth
A2: N1 | B2: Tower House Bospin Lane | C2: MCTAGGART | D2: Helen Emma | E2: H | F2: Widow | G2: 59 | H2: Fundholder | J2: Calcutta, E Indies
A3: N1 | C3: MATTHEWS | D3: Harriet Jane | E3: Sister | F3: Widow | G3: 55 | H3: Government Securities? | J3: Calcutta, E Indies
A4: N1 | C4: CARTER | D4: Matilda | E4: Servant | F4: U | G4: 19 | H4: Housemaid | J4: Rodborough | O4: Age | P4: Total | Q4: School | R4: Cloth | S4: Pins | T4: Servant | U4: Agricultural | V4: Apprentice | W4: Misc | X4: Not Recorded
A5: N1 | C5: HAYWARD | D5: Ellen | E5: Servant | F5: U | G5: 19 | H5: Cook | J5: Whilford | O5: 5 | P5: =COUNTIFS($G$2:$G$875,$O5) -> 19 | Q5: =COUNTIFS($G$2:$G$875,$O5,$I$2:$I$875,Q$4) -> 18 | R5: =COUNTIFS($G$2:$G$875,$O5,$I$2:$I$875,R$4) -> 0 | S5: 0 | T5: 0 | U5: 0 | V5: 0 | W5: 0 | X5: =P5-SUM(Q5:W5) -> 1
A6: N2 | B6: 1 Bospin Lane | C6: COLLINS | D6: Ann | E6: H | F6: Widow | G6: 60 | H6: Flock Worker | J6: Newbury, Berks | O6: 6 | P6: =COUNTIFS($G$2:$G$875,$O6) -> 19 | Q6: =COUNTIFS($G$2:$G$875,$O6,$I$2:$I$875,Q$4) -> 17 | R6: 0 | S6: 0 | T6: 0 | U6: 0 | V6: 0 | W6: 0 | X6: =P6-SUM(Q6:W6) -> 2
A7: N2 | C7: HERBERT | D7: Esther | E7: D | F7: U | G7: 34 | H7: Cloth Worker | J7: Newbury, Berks | O7: 7 | P7: 19 | Q7: 17 | R7: 0 | S7: 0 | T7: 0 | U7: 0 | V7: 0 | W7: 0 | X7: 2
A8: N3 | B8: 2 Bospin Lane | C8: HERBERT | D8: Eliza | E8: H | F8: Widow | G8: 36 | H8: Cloth Worker | J8: Newbury, Berks | O8: 8 | P8: 22 | Q8: 22 | R8: 0 | S8: 0 | T8: 0 | U8: 0 | V8: 0 | W8: 0 | X8: 0
A9: N3 | C9: HERBERT | D9: Charlotte | E9: D | G9: 11 | H9: Scholar | I9: School | J9: Stanley | O9: 9 | P9: 17 | Q9: 16 | R9: 0 | S9: 0 | T9: 0 | U9: 0 | V9: 0 | W9: 0 | X9: 1
A10: N3 | C10: HERBERT | D10: Mary | E10: D | G10: 9 | H10: Scholar | I10: School | J10: Stanley | O10: 10 | P10: 23 | Q10: 19 | R10: 0 | S10: 0 | T10: 0 | U10: 2 | V10: 0 | W10: 0 | X10: 2
A11: N3 | C11: HERBERT | D11: George | E11: S | G11: 7 | H11: Scholar | I11: School | J11: Woodchester | O11: 11 | P11: 12 | Q11: 8 | R11: 1 | S11: 0 | T11: 0 | U11: 0 | V11: 0 | W11: 0 | X11: 3
A12: N3 | C12: HERBERT | D12: Thomas | E12: S | G12: 5 | H12: Scholar | I12: School | J12: Woodchester | O12: 12 | P12: 16 | Q12: 7 | R12: 1 | S12: 1 | T12: 2 | U12: 2 | V12: 0 | W12: 1 | X12: 2
A13: N3 | C13: HERBERT | D13: Henry | E13: S | G13: 3 | H13: Scholar | I13: School | J13: Woodchester | O13: 13 | P13: 16 | Q13: 8 | R13: 1 | S13: 2 | T13: 1 | U13: 1 | V13: 0 | W13: 3 | X13: 0
A14: N3 | C14: HERBERT | D14: Eliza | E14: D | G14: 1 | J14: Woodchester | O14: 14 | P14: 19 | Q14: 4 | R14: 8 | S14: 3 | T14: 2 | U14: 1 | V14: 1 | W14: 0 | X14: 0
A15: N4 | B15: 3 Bospin Lane | C15: CRATCHLEY | D15: Sarah | E15: H | F15: Widow | G15: 56 | H15: Cloth Worker | J15: Woodchester | O15: 15 | P15: 18 | Q15: 3 | R15: 6 | S15: 2 | T15: 1 | U15: 0 | V15: 0 | W15: 5 | X15: 1
A16: N4 | C16: CRATCHLEY | D16: Henry | E16: S | G16: 19 | H16: Cloth Worker | J16: Woodchester | O16: 16 | P16: 19 | Q16: 5 | R16: 6 | S16: 2 | T16: 4 | U16: 0 | V16: 0 | W16: 1 | X16: 1
A17: N4 | C17: CRATCHLEY | D17: William | E17: S | G17: 12 | H17: Errand Boy | I17: Misc | J17: Woodchester
A18: N4 | C18: HABGOOD | D18: James | E18: Lodger | F18: U | G18: 73 | H18: Labourer | J18: Rodborough
A19: N5 | B19: 4 Bospin Lane | C19: GOULDING | D19: Esther | E19: H | F19: M | G19: 42 | H19: Labourer's Wife (deserted) | J19: Woodchester
A20: N5 | C20: GOULDING | D20: Georgiana | E20: D | G20: 21 | H20: Cloth Worker | J20: Woodchester
A21: N5 | C21: GOULDING | D21: Emma | E21: D | G21: 19 | H21: Cloth Worker | J21: Woodchester
A22: N5 | C22: GOULDING | D22: Frank | E22: S | G22: 17 | H22: Flock Worker | J22: Woodchester
A23: N5 | C23: GOULDING | D23: William | E23: S | G23: 12 | H23: Ag lab | I23: Agricultural | J23: Woodchester
A24: N5 | C24: GOULDING | D24: Arthur | E24: S | G24: 10 | H24: Ag lab | I24: Agricultural | J24: Woodchester
A25: N5 | C25: GOULDING | D25: Ann | E25: D | G25: 6 | J25: Woodchester
A26: N5 | C26: GOULDING | D26: Celia | E26: D | G26: 1 | J26: Woodchester
A27: N5 | C27: GOULDING | D27: Henry | E27: Grandson | G27: 8mths | J27: Woodchester
A28: N6 | B28: 1 Lagger Lane | C28: BARNFIELD | D28: Charles | E28: H | F28: M | G28: 35 | H28: Blacksmith | J28: Cam
A29: N6 | C29: BARNFIELD | D29: Ann | E29: W | F29: M | G29: 35 | H29: Blacksmith's wife | J29: Dursley
A30: N6 | C30: LONG | D30: William | E30: Stepson | G30: 17 | H30: Blacksmith | J30: Dursley
A31: N6 | C31: BARNFIELD | D31: Alfred | E31: S | G31: 10 | H31: Scholar | I31: School | J31: Woodchester
A32: N6 | C32: BARNFIELD | D32: George | E32: S | G32: 7 | H32: Scholar | I32: School | J32: Woodchester
A33: N6 | C33: BARNFIELD | D33: Rhoda | E33: D | G33: 5 | H33: Scholar | I33: School | J33: Woodchester
A34: N6 | C34: BARNFIELD | D34: Ann | E34: D | G34: 3 | H34: Scholar | I34: School | J34: Woodchester
A35: N7 | B35: 2 Lagger Lane | C35: HABGOOD | D35: George | E35: H | F35: M | G35: 37 | H35: Engine Fitter | J35: Woodchester
A36: N7 | C36: HABGOOD | D36: Eliza | E36: W | F36: M | G36: 33 | H36: Engine Fitter's Wife | J36: Uley
A37: N7 | C37: HABGOOD | D37: Arthur | E37: S | G37: 12 | H37: Scholar | I37: School | J37: Woodchester
A38: N7 | C38: HABGOOD | D38: Mary | E38: D | G38: 8 | H38: Scholar | I38: School | J38: Woodchester
A39: N7 | C39: HABGOOD | D39: William | E39: S | G39: 9 | H39: Scholar | I39: School | J39: Woodchester
A40: N7 | C40: HABGOOD | D40: Ruth | E40: D | G40: 6 | H40: Scholar | I40: School | J40: Woodchester
A41: N7 | C41: HABGOOD | D41: Calvin | E41: S | G41: 5 | H41: Scholar | I41: School | J41: Woodchester
A42: N7 | C42: HABGOOD | D42: James | E42: S | G42: 4 | H42: Scholar | I42: School | J42: Woodchester
A43: N7 | C43: HABGOOD | D43: Francis | E43: S | G43: 2 | J43: Woodchester
A44: N7 | C44: HABGOOD | D44: Minnie | E44: D | G44: 8mths | J44: Woodchester
A45: N8 | B45: 3 Lagger Lane | C45: CHAMBERLAIN | D45: John | E45: H | F45: M | G45: 38 | H45: Farmer | J45: Hinkley, Leic
A46: N8 | C46: CHAMBERLAIN | D46: Sarah Hill | E46: W | F46: M | G46: 31 | H46: Farmer's Wife | J46: Woodchester
A47: N8 | C47: CHAMBERLAIN | D47: Morris J | E47: S | G47: 10 | H47: Scholar | I47: School | J47: Painswick
A48: N8 | C48: CHAMBERLAIN | D48: Henry W | E48: S | G48: 9 | H48: Scholar | I48: School | J48: Woodchester
A49: N8 | C49: CHAMBERLAIN | D49: Sarah Ann | E49: D | G49: 7 | H49: Scholar | I49: School | J49: Woodchester
A50: N8 | C50: CHAMBERLAIN | D50: George | E50: S | G50: 5 | H50: Scholar | I50: School | J50: Woodchester
A51: N8 | C51: CHAMBERLAIN | D51: Frederick | E51: S | G51: 1 | J51: Woodchester
A52: N8 | C52: CHAMBERLAIN | D52: Arthur | E52: S | G52: 2mths | J52: Woodchester
A53: N9 | B53: 4 Lagger Lane | C53: MARMONT | D53: Mary | E53: H | F53: U | G53: 69 | H53: Wool Picker | J53: Woodchester
A54: N10 | B54: 5 Lagger Lane | C54: SMITH | D54: Mary | E54: H | F54: U | G54: 46 | H54: Cloth Worker | J54: Newmarket, Glos
A55: N10 | C55: HARRISON | D55: Joseph | E55: Boarder | F55: U | G55: 29 | H55: Rag Flocker | J55: Rockness Hill
A56: N11 | B56: 6 Lagger Lane | C56: MAIDSTONE | D56: Henry | E56: H | F56: M | G56: 44 | H56: Cloth Dresser | J56: Dursley
A57: N11 | C57: MAIDSTONE | D57: Mary | E57: W | F57: M | G57: 43 | H57: Cloth Dresser's Wife | J57: Woodchester
A58: N11 | C58: MAIDSTONE | D58: Henry | E58: S | G58: 20 | H58: Pin Maker | J58: Woodchester
A59: N11 | C59: MAIDSTONE | D59: Sarah Ann | E59: D | G59: 13 | H59: Scholar | I59: School | J59: Woodchester
A60: N11 | C60: MAIDSTONE | D60: Reginald J | E60: S | G60: 8 | H60: Scholar | I60: School | J60: Woodchester
A61: N11 | C61: MAIDSTONE | D61: Minnie A | E61: D | G61: 3 | H61: Scholar | I61: School | J61: Woodchester
A62: N11 | C62: MAIDSTONE | D62: Mary A | E62: D | G62: 6 | H62: Scholar | I62: School | J62: Woodchester
A63: N11 | C63: BROWNING | D63: Cecilia A | E63: Boarder | G63: 2 | J63: Woodchester
A64: N12 | B64: Bown Hill Farm | C64: RACTLIFFE | D64: Enoch | E64: H | F64: M | G64: 30 | H64: Farmer | J64: Woodchester
A65: N12 | C65: RACTLIFFE | D65: Sarah | E65: W | F65: M | G65: 27 | H65: Farmer's Wife | J65: Tortworth
A66: N12 | C66: RACTLIFFE | D66: Sarah Helen ? | E66: D | G66: 14mths | J66: Woodchester
A67: N12 | C67: SHERMAN | D67: Alice | E67: Servant | F67: U | G67: 20 | H67: Dairymaid | J67: Nibley
A68: N12 | C68: HARWOOD | D68: Mary | E68: Servant | F68: U | G68: 12 | H68: Nursemaid | I68: Servant | J68: Woodchester
A69: N12 | C69: PARK | D69: Jesse | E69: Servant | F69: U | G69: 19 | H69: Farm Servant | J69: Bisley
A70: N13 | B70: Boundary Farm Selsley Hill | C70: EARL | D70: Isaac | E70: H | F70: M | G70: 75 | H70: Farmer | J70: Horsley
A71: N13 | C71: EARL | D71: Elizabeth | E71: W | F71: M | G71: 70 | H71: Farmer's Wife | J71: Kings Stanley
A72: N13 | C72: EARL | D72: John T | E72: S | F72: U | G72: 48 | H72: Farmer's Son | J72: Minchinhampton
A73: N13 | C73: EARL | D73: Obadiah | E73: S | F73: U | G73: 44 | J73: Kings Stanley
A74: N13 | C74: EARL | D74: Albert E | E74: S | F74: U | G74: 40 | J74: Avening
A75: N13 | C75: EARL | D75: Hiram T | E75: S | F75: U | G75: 36 | J75: Kings Stanley
A76: N13 | C76: EARL | D76: Frederick | E76: S | F76: U | G76: 26 | J76: Kings Stanley
A77: N13 | C77: EARL | D77: Charles | E77: Cousin | F77: U | G77: 13 | H77: Farm Labourer | I77: Agricultural | J77: Middlesex | K77: Imbecile
A78: N14 | B78: 1 Selsley Hill | C78: BIRD | D78: Leonard | E78: H | F78: Widower | G78: 41 | H78: Master Boot Maker | J78: Woodchester
A79: N14 | C79: BIRD | D79: Charlotte | E79: D | G79: 9 | H79: Scholar | I79: School | J79: Shoeburyness, Essex
A80: N14 | C80: BIRD | D80: Grace | E80: D | G80: 8 | H80: Scholar | I80: School | J80: Shoeburyness, Essex
A81: N15 | B81: The Grange Selsley Hill | C81: HOLLAND | D81: William | E81: H | F81: M | G81: 26 | H81: Master Brewer | J81: Collingham, Yorks
A82: N15 | C82: HOLLAND | D82: Louisa Jane | E82: W | F82: M | G82: 28 | H82: Master Brewer's Wife | J82: Rodborough
A83: N15 | C83: HOLLAND | D83: Henry Angus | E83: S | G83: 10mths | J83: Gloucester
A84: N15 | C84: COOPER | D84: Edwin | E84: Father in law | F84: Widower | G84: 75 | H84: Interest a/c? | J84: Rodborough
A85: N15 | C85: GARDNER | D85: Ernest A | E85: Pupil | G85: 17 | H85: Pupil | J85: Painswick
A86: N15 | C86: BLICK | D86: Eliza A | E86: Servant | F86: U | G86: 20 | H86: Servant (domestic) | J86: Australia
A87: N15 | C87: BARRANDINE | D87: Nancy | E87: Servant | F87: U | G87: 14 | H87: Nurse | I87: Servant | J87: Gloucester
A88: N16 | B88: Larch Grove Selsley Hill | C88: STATHER | D88: William C | E88: H | F88: M | G88: 63 | H88: Lt Col Rtd Bombay Army | J88: W Indies, Nevis
A89: N16 | C89: STATHER | D89: Mary | E89: W | F89: M | G89: 60 | J89: Kings Stanley
A90: N16 | C90: CROWE | D90: Evelyn N | E90: Nephew | G90: 8 | H90: Scholar | I90: School | J90: London
A91: N16 | C91: LUSTY | D91: Rhoda | E91: Servant | F91: U | G91: 45 | H91: Cook | J91: Kings Stanley
A92: N16 | C92: BIRD | D92: Ellen | E92: Servant | F92: U | G92: 20 | H92: Housemaid | J92: Minchinhampton
A93: N17 | B93: 2 Selsley Hill | C93: HEAVEN | D93: John | E93: H | F93: M | G93: 65 | H93: Gardener | J93: Charford
A94: N17 | C94: HEAVEN | D94: Ann | E94: W | F94: M | G94: 65 | H94: Cloth Worker | J94: Avening
A95: N18 | B95: Selsley Lodge Selsley Hill | C95: CLISSOLD | D95: Emily | E95: Servant | F95: U | G95: 22 | H95: Cook | J95: Horsley
A96: N18 | C96: COX | D96: Rosetta W | E96: Servant | F96: U | G96: 20 | H96: Housemaid | J96: Woodchester
A97: N19 | B97: 3 Selsley Road | C97: LANE | D97: Alfred | E97: H | F97: M | G97: 49 | H97: Painter & Carpenter | J97: Stonehouse
A98: N19 | C98: LANE | D98: Sophia | E98: W | F98: M | G98: 50 | H98: Cloth Weaver | J98: Woodchester
A99: N20 | B99: 4 Selsley Road | C99: CAUDLE | D99: William | E99: H | F99: M | G99: 39 | H99: Carpenter | J99: Dowdeswell
A100: N20 | C100: CAUDLE | D100: Mary Ann | E100: W | F100: M | G100: 41 | H100: Carpenter's Wife | J100: Charlton Kings
A101: N20 | C101: CAUDLE | D101: Mary Ann | E101: D | G101: 9 | H101: Scholar | I101: School | J101: Charlton Kings
A102: N21 | B102: 5 Selsley Road | C102: BROWNING | D102: Anthony | E102: H | F102: M | G102: 60 | H102: Coachman | J102: Woodchester
A103: N21 | C103: BROWNING | D103: Charlotte | E103: W | F103: M | G103: 60 | H103: Coachman's Wife | J103: Woodchester
A104: N21 | C104: BROWNING | D104: Emma | E104: D | G104: 14 | H104: Cloth Worker | I104: Cloth | J104: Woodchester
A105: N21 | C105: BROWNING | D105: Alfred | E105: Grandson | G105: 15 | H105: Blacksmith | I105: Misc | J105: Woodchester
A106: N21 | C106: BROWNING | D106: Nathan | E106: Nephew | G106: 13 | H106: Groom | I106: Servant | J106: Woodchester
A107: N22 | B107: 6 Selsley Road | C107: COX | D107: Henry | E107: H | F107: M | G107: 33 | H107: Tailor | J107: St Lukes Chelsea
A108: N22 | C108: COX | D108: Jane Elizabeth | E108: W | F108: M | G108: 32 | H108: Tailor's Wife | J108: Meon Stoke, Hants
A109: N22 | C109: COX | D109: William John | E109: S | G109: 4 | J109: Woodchester
A110: N22 | C110: COX | D110: Harry Thomas | E110: S | G110: 2 | J110: Woodchester
A111: N22 | C111: COX | D111: Herbert Robert | E111: S | G111: 5mths | J111: Woodchester
A112: N24 | B112: 8 Selsley Road | C112: JAMES | D112: Isaac | E112: H | F112: M | G112: 37 | H112: Baker & Butcher | J112: Berkeley
A113: N24 | C113: JAMES | D113: Adelaide | E113: W | F113: M | G113: 32 | H113: Baker & Butcher's Wife | J113: Woodchester
A114: N24 | C114: JAMES | D114: Frederick | E114: S | G114: 13 | H114: Baker & Butcher's Son | I114: Misc | J114: Woodchester
A115: N24 | C115: JAMES | D115: Frances M | E115: D | G115: 11 | H115: Scholar | I115: School | J115: Woodchester
A116: N24 | C116: JAMES | D116: William John | E116: S | G116: 9 | H116: Scholar | I116: School | J116: Woodchester
A117: N24 | C117: JAMES | D117: Henry A | E117: S | G117: 8 | H117: Scholar | I117: School | J117: Woodchester
A118: N24 | C118: JAMES | D118: Louisa A | E118: D | G118: 6 | H118: Scholar | I118: School | J118: Woodchester
A119: N24 | C119: JAMES | D119: Edward S | E119: S | G119: 4 | J119: Woodchester
A120: N24 | C120: JAMES | D120: Arthur J | E120: S | G120: 2 | J120: Woodchester
A121: N24 | C121: JAMES | D121: Charles N | E121: S | G121: 1 | J121: Woodchester
A122: N25 | B122: The Lawn Selsley Road | C122: BOALER | D122: Martha | E122: Servant | F122: U | G122: 57 | H122: Lady's Maid | J122: Tean, Staffs
A123: N25 | C123: WATMOUTH | D123: Elizabeth | E123: Servant | F123: U | G123: 44 | H123: Parlourmaid | J123: Bootle
A124: N25 | C124: HUNT | D124: Elizabeth | E124: Servant | F124: U | G124: 30 | H124: Cook | J124: Fairford
A125: N25 | C125: HARRISON | D125: Samuel | E125: Servant | F125: M | G125: 44 | H125: Gardener | J125: Woodchester
A126: N26 | B126: 10 Selsley Road | C126: FISHER | D126: Emma | E126: H | F126: U | G126: 27 | H126: Outfitter's Trimmer | J126: Woodchester
A127: N27 | C127: COX | D127: Elizabeth | E127: H | F127: Widow | G127: 59 | H127: Infant School Mistress | J127: Yarmouth?
A128: N28 | B128: 11 Selsley Road | C128: HOLMES | D128: George | E128: H | F128: M | G128: 42 | H128: Gardener & Bailiff | J128: Kent, Teynham
A129: N28 | C129: HOLMES | D129: Sarah | E129: W | F129: M | G129: 54 | H129: Gardener & Bailiff's Wife | J129: Rodborough
A130: N28 | C130: HOLMES | D130: Lydia | E130: D | G130: 15 | H130: Scholar | I130: School | J130: Rodborough
A131: N29 | B131: 12 Selsley Road | C131: WORKMAN | D131: Francis | E131: H | F131: M | G131: 31 | H131: Farmer & Haulier | J131: Woodchester
A132: N29 | C132: WORKMAN | D132: Mary A | E132: W | F132: M | G132: 32 | H132: Farmer & Haulier's wife | J132: Westonbirt?
A133: N29 | C133: WORKMAN | D133: Annie | E133: D | G133: 11 | J133: Woodchester
A134: N29 | C134: WORKMAN | D134: Henry | E134: Brother | F134: U | G134: 30 | H134: Carpenter & Builder | J134: Woodchester
A135: N29 | C135: WORKMAN | D135: Nicholas | E135: Brother | G135: 19 | H135: Carpenter & Builder | J135: Woodchester
A136: N29 | C136: WORKMAN | D136: Elizabeth | E136: Visitor | F136: M | G136: 55 | H136: Gamekeeper's Wife | J136: Rodmarton
A137: N29 | C137: WORKMAN | D137: Ellen | E137: Sister | G137: 17 | H137: Housekeeper | J137: Woodchester
A138: N30 | B138: Priory | C138: CHOLMELEY | D138: Penelope | E138: H | F138: Widow | G138: 53 | H138: Landowner | J138: Yeovil
A139: N30 | C139: CHOLMELEY | D139: Catherine Maud | E139: Step Daughter | G139: 16 | H139: Scholar | I139: School | J139: Woodchester
A140: N30 | C140: CHOLMELEY | D140: Olivia Millicent | E140: Step Daughter | G140: 15 | H140: Scholar | I140: School | J140: Woodchester
A141: N30 | C141: PARSONS | D141: Alfred | E141: Servant | F141: M | G141: 47 | H141: Butler | J141: Sussex
A142: N30 | C142: CLOSE | D142: Mary | E142: Servant | F142: U | G142: 47 | H142: Cook | J142: Westbury
A143: N30 | C143: THOMAS | D143: Emma | E143: Servant | F143: U | G143: 46 | H143: Lady's Maid | J143: Newbury, Glos
A144: N30 | C144: FEARNLEY | D144: Elizabeth | E144: Servant | F144: U | G144: 28 | H144: Housemaid | J144: Southend, Lewisham, Kent
A145: N30 | C145: THOMAS | D145: Maria | E145: Servant | F145: U | G145: 19 | H145: Young Ladt's maid | J145: Bristol
A146: N30 | C146: EDWARDS | D146: Mary | E146: Servant | F146: U | G146: 17 | H146: Kitchenmaid | J146: Newton St Loe
A147: N30 | C147: WISE | D147: Annie M | E147: Visitor | F147: Widow | G147: 58 | H147: Private Funded Property | J147: Sussex, Stanstead Park
A148: N30 | C148: SALKELD | D148: Mary | E148: Servant | F148: U | G148: 47 | H148: Lady's Maid | J148: Cumberland, Keswick
A149: N31 | B149: 14 Selsley Road | C149: COOK | D149: Thomas | E149: H | F149: M | G149: 38 | H149: Coachman | J149: Cirencester
A150: N31 | C150: COOK | D150: Harriet | E150: W | F150: M | G150: 32 | H150: Coachman's Wife | J150: Cirencester
A151: N31 | C151: COOK | D151: Mary L B | E151: D | G151: 7 | H151: Scholar | I151: Clith | J151: Stroud
A152: N31 | C152: COOK | D152: Alice G | E152: D | G152: 3 | H152: Scholar | I152: School | J152: Woodchester
A153: N32 | B153: Rectory | C153: EVANS | D153: George H | E153: H | F153: M | G153: 65 | H153: Rector | J153: County Tyrone
A154: N32 | C154: EVANS | D154: Maria H | E154: W | F154: M | G154: 50 | H154: Rector's Wife | J154: Halifax, Nova Scotia
A155: N32 | C155: EVANS | D155: Harriet E | E155: D | F155: U | G155: 24 | H155: Rector's Daughter | J155: Securderburd, East Indies
A156: N32 | C156: BAUTT | D156: Grace B | E156: Niece | G156: 14 | H156: Scholar | I156: School | J156: Bath
A157: N32 | C157: EVANS | D157: Caroline E | E157: D | G157: 13 | H157: Scholar | I157: School | J157: Bangalore, E Indies
A158: N32 | C158: EVANS | D158: Charles F | E158: S | G158: 12 | H158: Scholar | I158: School | J158: Woodchester
A159: N32 | C159: EVANS | D159: George H H | E159: S | G159: 10 | H159: Scholar | I159: School | J159: Woodchester
A160: N32 | C160: WHITE | D160: William G | E160: Boarder | G160: 10 | H160: Scholar | I160: School | J160: Madras
A161: N32 | C161: WHITE | D161: Charles D | E161: Boarder | G161: 9 | H161: Scholar | I161: School | J161: Madras Presidency
A162: N32 | C162: WHITE | D162: Mary s | E162: Boarder | G162: 7 | H162: Scholar | I162: School | J162: Madras Presidency
A163: N32 | C163: WHITE | D163: Emily M | E163: Boarder | G163: 6 | H163: Scholar | I163: School | J163: Madras Presidency
A164: N32 | C164: HUNT | D164: Harriet | E164: Servant | F164: Widow | G164: 54 | H164: Cook | J164: Elkstone
A165: N32 | C165: CRUPP | D165: Susan | E165: Servant | F165: U | G165: 39 | H165: Nurse | J165: Painswick
A166: N32 | C166: CLARKE | D166: Sophia | E166: Servant | F166: U | G166: 17 | H166: Parlourmaid | J166: Stroud
A167: N32 | C167: NEATE | D167: Elizabeth | E167: Servant | F167: U | G167: 17 | H167: Housemaid | J167: Herefs, Alingmore
A168: N33 | B168: 17 Selsley Road | C168: HILL | D168: Sarah | E168: H | F168: Widow | G168: 70 | H168: Laundress | J168: Cam
A169: N33 | C169: HILL | D169: Margaret | E169: D | F169: U | G169: 40 | H169: Laundress | J169: Cam
A170: N34 | B170: 18 Selsley Road | C170: HORWOOD | D170: Joseph | E170: H | F170: M | G170: 62 | H170: Ag Lab | J170: Woodchester
A171: N34 | C171: HORWOOD | D171: Mary | E171: W | F171: M | G171: 45 | H171: Ag Lab's Wife | J171: Woodchester
A172: N34 | C172: HORWOOD | D172: James | E172: S | F172: U | G172: 23 | H172: Ag Lab | J172: Woodchester
A173: N34 | C173: HORWOOD | D173: Maria | E173: D | G173: 21 | H173: Servant (out of employment) | J173: Woodchester
A174: N34 | C174: HORWOOD | D174: Martha | E174: D | G174: 20 | H174: Cloth Worker | J174: Woodchester
A175: N34 | C175: HORWOOD | D175: Jane | E175: D | G175: 15 | H175: Cloth Worker | I175: Cloth | J175: Woodchester
A176: N34 | C176: HORWOOD | D176: Tryphena | E176: D | G176: 11 | H176: Scholar | I176: School | J176: Woodchester
A177: N34 | C177: HORWOOD | D177: Septemina | E177: D | G177: 10 | H177: Scholar | I177: School | J177: Woodchester
A178: N34 | C178: HORWOOD | D178: Elizabeth | E178: D | G178: 8 | H178: Scholar | I178: School | J178: Woodchester
A179: N34 | C179: HORWOOD | D179: Edward | E179: S | G179: 9mths | J179: Woodchester
A180: N35 | B180: 19 Selsley Road | C180: WHITE | D180: Elijah | E180: H | F180: M | G180: 49 | H180: Carpenter & Joiner | J180: Stroud
A181: N35 | C181: WHITE | D181: Alice | E181: W | F181: M | G181: 57 | H181: Carpenter & Joiner's wife | J181: Kings Stanley
A182: N35 | C182: WHITE | D182: Catherine | E182: D | F182: U | G182: 18 | H182: Scholar & Teacher | J182: Stroud
A183: N36 | B183: 20 Selsley Road | C183: ROBERTS | D183: Charles | E183: H | F183: M | G183: 59 | H183: Gardener | J183: Stanley
A184: N36 | C184: ROBERTS | D184: Winifred | E184: W | F184: M | G184: 66 | H184: House Cleaner | J184: Woodchester
A185: N36 | C185: ROBERTS | D185: George Rodsay | E185: S | F185: U | G185: 29 | H185: Dyer | J185: Woodchester
A186: N37 | B186: 21 Selsley Road | C186: HERBERT | D186: Harriet | E186: H | F186: Widow | G186: 55 | H186: Wool Picker | J186: Avening
A187: N37 | C187: HERBERT | D187: Ellen | E187: D | F187: U | G187: 30 | H187: Cloth Weaver | J187: Avening
A188: N38 | B188: 22 Selsley Road | C188: HERBERT | D188: John | E188: H | F188: Widower | G188: 78 | H188: Retired Butcher | J188: Stanley
A189: N38 | C189: HERBERT | D189: Hannah | E189: D | F189: U | G189: 42 | H189: Father's Housekeeper | J189: Stanley
A190: N39 | B190: 23 Selsley Road | C190: PEYTON | D190: William | E190: H | F190: M | G190: 43 | H190: Plumber & Painter | J190: Stroud
A191: N39 | C191: PEYTON | D191: Anne | E191: W | F191: M | G191: 42 | H191: Plumber & Painter's Wife | J191: Horsley
A192: N39 | C192: TWINING | D192: Louisa | E192: Niece/Visitor | G192: 10 | H192: Visitor | J192: Warwicks, Birmingham
A193: N40 | B193: 24 Selsley Road | C193: SMART | D193: Thomas | E193: H | F193: M | G193: 37 | H193: Cloth Worker | J193: Stroud
A194: N40 | C194: SMART | D194: Caroline | E194: W | F194: M | G194: 37 | H194: Cloth worker's Wife | J194: Stroud
A195: N40 | C195: SMART | D195: George | E195: S | G195: 16 | H195: Cloth Worker | I195: Cloth | J195: Stroud
A196: N40 | C196: SMART | D196: Sarah | E196: D | G196: 14 | H196: Cloth Worker | I196: Cloth | J196: Stroud
A197: N40 | C197: SMART | D197: Emma | E197: D | G197: 12 | J197: Stroud
A198: N40 | C198: SMART | D198: Fanny | E198: D | G198: 11 | J198: Stroud
A199: N40 | C199: SMART | D199: Walter | E199: S | G199: 3 | J199: Woodchester
A200: N40 | C200: SMART | D200: Frank | E200: S | G200: 1 | J200: Woodchester
... 762 more rows

Sheet Woodcensus81
A1: No | B1: Road, Street etc | C1: Surname | D1: Christian Name | E1: Relationship to Head | F1: Married Status | G1: Age | H1: Occupation | I1: Occ Type | J1: Place of Birth
A2: N1 | B2: Bown Hill Farm | C2: RACTLIFFE | D2: Enoch | E2: H | F2: M | G2: 39 | H2: Farmer | J2: Woodchester
A3: N1 | C3: RACTLIFFE | D3: Sarah | E3: W | F3: M | G3: 37 | H3: Farmer's Wife | J3: Tortworth
A4: N1 | C4: RACTLIFFE | D4: Matilda | E4: Mother | F4: W | G4: 79 | H4: Annuitant | J4: G Waston | O4: Age | P4: Total | Q4: School | R4: Cloth | S4: Pins | T4: Servant | U4: Agricultural | V4: Apprentice | W4: Misc | X4: Not Recorded
A5: N1 | C5: RACTLIFFE | D5: Sarah H C | E5: D | G5: 11 | H5: Scholar | I5: School | J5: Woodchester | O5: 5 | P5: =COUNTIFS($G$2:$G$816,$O5) -> 21 | Q5: =COUNTIFS($G$2:$G$816,$O5,$I$2:$I$816,Q$4) -> 17 | R5: =COUNTIFS($G$2:$G$816,$O5,$I$2:$I$816,R$4) -> 0 | S5: 0 | T5: 0 | U5: 0 | V5: 0 | W5: 0 | X5: =P5-SUM(Q5:W5) -> 4
A6: N1 | C6: RACTLIFFE | D6: Julia C H | E6: D | G6: 9 | H6: Scholar | I6: School | J6: Woodchester | O6: 6 | P6: =COUNTIFS($G$2:$G$816,$O6) -> 17 | Q6: =COUNTIFS($G$2:$G$816,$O6,$I$2:$I$816,Q$4) -> 16 | R6: 0 | S6: 0 | T6: 0 | U6: 0 | V6: 0 | W6: 0 | X6: =P6-SUM(Q6:W6) -> 1
A7: N1 | C7: RACTLIFFE | D7: Alice M M | E7: D | G7: 8 | J7: Woodchester | O7: 7 | P7: 14 | Q7: 13 | R7: 0 | S7: 0 | T7: 0 | U7: 0 | V7: 0 | W7: 0 | X7: 1
A8: N1 | C8: RACTLIFFE | D8: George E W | E8: S | G8: 6 | J8: Woodchester | O8: 8 | P8: 21 | Q8: 19 | R8: 0 | S8: 0 | T8: 0 | U8: 0 | V8: 0 | W8: 0 | X8: 2
A9: N1 | C9: RACTLIFFE | D9: Frank C J | E9: S | G9: 5 | J9: Woodchester | O9: 9 | P9: 15 | Q9: 14 | R9: 0 | S9: 0 | T9: 0 | U9: 0 | V9: 0 | W9: 0 | X9: 1
A10: N1 | C10: RACTLIFFE | D10: Robert H A | E10: S | G10: 2 | J10: Woodchester | O10: 10 | P10: 23 | Q10: 22 | R10: 0 | S10: 0 | T10: 0 | U10: 0 | V10: 0 | W10: 0 | X10: 1
A11: N1 | C11: RACTLIFFE | D11: Kate E C | E11: D | G11: 3mths | J11: Woodchester | O11: 11 | P11: 22 | Q11: 22 | R11: 0 | S11: 0 | T11: 0 | U11: 0 | V11: 0 | W11: 0 | X11: 0
A12: N1 | C12: JONES | D12: Agnes | E12: Servant | F12: U | G12: 14 | H12: General Servant | I12: Servant | J12: Newnham | O12: 12 | P12: 26 | Q12: 24 | R12: 0 | S12: 0 | T12: 0 | U12: 0 | V12: 0 | W12: 0 | X12: 2
A13: N2 | B13: Bown Hill Cottage | C13: WHITE | D13: George | E13: H | F13: M | G13: 37 | H13: Loco Engine Driver | J13: Avening | O13: 13 | P13: 17 | Q13: 14 | R13: 0 | S13: 1 | T13: 0 | U13: 0 | V13: 0 | W13: 1 | X13: 1
A14: N2 | C14: WHITE | D14: Caroline | E14: W | F14: M | G14: 39 | J14: Tetbury | O14: 14 | P14: 25 | Q14: 6 | R14: 1 | S14: 3 | T14: 5 | U14: 0 | V14: 1 | W14: 4 | X14: 5
A15: N2 | C15: WHITE | D15: John | E15: S | G15: 19 | H15: Coachman | J15: Tetbury | O15: 15 | P15: 16 | Q15: 1 | R15: 2 | S15: 1 | T15: 4 | U15: 0 | V15: 2 | W15: 5 | X15: 1
A16: N2 | C16: WHITE | D16: Harriet | E16: D | G16: 18 | H16: General Servant | J16: Tetbury | O16: 16 | P16: 20 | Q16: 1 | R16: 3 | S16: 7 | T16: 2 | U16: 0 | V16: 0 | W16: 5 | X16: 2
A17: N2 | C17: WHITE | D17: George | E17: S | G17: 16 | J17: Tetbury
A18: N2 | C18: WHITE | D18: Sarah | E18: D | G18: 14 | J18: Tetbury
A19: N2 | C19: WHITE | D19: Ellen | E19: D | G19: 10 | H19: Scholar | I19: School | J19: Tetbury
A20: N2 | C20: WHITE | D20: Fanny | E20: D | G20: 7 | H20: Scholar | I20: School | J20: Tetbury
A21: N3 | B21: Boundary Farm Selsley Road | C21: EARL | D21: Elizabeth | E21: H | F21: W | G21: 84 | H21: Farmer | J21: Stanley
A22: N3 | C22: EARL | D22: John T | E22: S | G22: 50 | H22: Farmer | J22: Stanley
A23: N3 | C23: EARL | D23: Albert E | E23: S | G23: 40 | H23: Farmer | J23: Avening
A24: N3 | C24: EARL | D24: Hiram T | E24: S | G24: 37 | H24: Farmer | J24: Stanley
A25: N3 | C25: EARL | D25: Frederic P | E25: S | G25: 35 | H25: Farmer | J25: Stanley
A26: N3 | C26: EARL | D26: Charles | E26: Boarder | F26: U | G26: 22 | H26: No occup | J26: Middlesex | K26: imbecile
A27: N3 | C27: TRANTER | D27: Eliza | E27: Servant | F27: U | G27: 20 | H27: General Servant | J27: Stonehouse
A28: N3 | C28: WILSON | D28: George | E28: SR | F28: U | G28: 18 | H28: Ag Lab | J28: Cirencester
A29: N3 | C29: CURTIS | D29: Jesse | E29: Servant | F29: U | G29: 18 | H29: Ag Lab | J29: Ley, Wilts
A30: N4 | B30: Old Boundary Farm Cottage Selsley Road | C30: MARKS | D30: William | E30: H | F30: M | G30: 22 | H30: Workman in Cloth mill | J30: Horsley
A31: N4 | C31: MARKS | D31: Elizabeth | E31: W | F31: M | G31: 27 | J31: Bisley
A32: N4 | C32: LAMBERT | D32: Albert J | E32: S | G32: 6 | H32: Scholar | I32: School | J32: Bisley
A33: N4 | C33: MARKS | D33: William A | E33: S | G33: 1 | J33: Stanley
A34: N4 | C34: MARKS | D34: Gertrude L | E34: D | G34: 4mths | J34: Woodchester
A35: N5 | B35: The Grange Selsley Road | C35: FOX | D35: Edward T | E35: H | F35: M | G35: 38 | H35: Woollen Cloth Manufacturer | J35: Wanstead, Essex
A36: N5 | C36: FOX | D36: Elizabeth A | E36: W | F36: M | G36: 30 | J36: India, Calcutta
A37: N5 | C37: FOX | D37: Edward J | E37: S | G37: 5 | J37: Surrey, Sutton
A38: N5 | C38: FOX | D38: Alice M | E38: D | G38: 3 | J38: Surrey, Sutton
A39: N5 | C39: FOX | D39: Frances E | E39: D | G39: 5mths | J39: Woodchester
A40: N5 | C40: FITZWILLIAM | D40: Maria | E40: V | F40: U | G40: 48 | H40: Annuitant | J40: Malta
A41: N5 | C41: BASKERVILLE | D41: Emily | E41: Servant | F41: U | G41: 23 | H41: Nurse (Domestic) | J41: Monmouth
A42: N5 | C42: WEBB | D42: Sarah | E42: Servant | F42: U | G42: 15 | H42: General Servant | I42: Servant | J42: Worcs, Berrow
A43: N6 | B43: Larch Grove Selsley Road | C43: STATHER | D43: William C | E43: H | F43: M | G43: 73 | H43: Lt Col retd list Bombay | J43: Nevis, W Indies
A44: N6 | C44: STATHER | D44: Mary C | E44: W | F44: M | G44: 70 | J44: Stanley
A45: N6 | C45: CROWE | D45: Evelyn N | E45: Nephew | F45: U | G45: 18 | J45: Middx
A46: N6 | C46: PINFOLD | D46: Lucy G | E46: Servant | F46: U | G46: 17 | H46: General Servant | J46: Woodchester
A47: N6 | C47: PINFOLD | D47: Alice | E47: Servant | F47: U | G47: 14 | H47: General Servant | I47: Servant | J47: Woodchester
A48: N6 | C48: LUSTY | D48: Rhoda | E48: V | F48: U | G48: 59 | H48: Former Servant | J48: Stanley
A49: N7 | B49: The Lodge Selsley Road | C49: DUNN | D49: Grace C | E49: H | F49: W | G49: 74 | H49: Annuitant | J49: Stroud
A50: N7 | C50: WILKINS | D50: Grace M | E50: Granddaughter | F50: U | G50: 14 | H50: Dependent Relative | J50: Woodchester
A51: N7 | C51: NASH | D51: Catherine H M | E51: Boarder | F51: U | G51: 31 | H51: Annuitant | J51: Cork, Queenstown
A52: N7 | C52: COX | D52: Rosetta W | E52: Servant | F52: U | G52: 30 | H52: General Servant | J52: Woodchester
A53: N7 | C53: BROWNING | D53: Amy C | E53: Servant | F53: U | G53: 14 | H53: General Servant | I53: Servant | J53: Woodchester
A54: N8 | B54: Selsley Road | C54: MILLS | D54: Arthur | E54: H | F54: M | G54: 31 | H54: Gardener | J54: Avening
A55: N8 | C55: MILLS | D55: Emma | E55: W | F55: M | G55: 29 | H55: Woollen Cloth Worker | J55: Woodchester
A56: N10 | B56: Selsley Road | C56: SMITH | D56: George | E56: H | F56: M | G56: 66 | H56: Parish Clerk, Shoemaker | J56: Woodchester
A57: N10 | C57: SMITH | D57: Elizabeth | E57: W | F57: M | G57: 65 | H57: Sextoness | J57: Devon, Chittlehampton
A58: N11 | B58: Selsley Road | C58: CORDWELL | D58: Edward | E58: H | F58: M | G58: 35 | H58: Builder | J58: Woodchester
A59: N11 | C59: CORDWELL | D59: Sarah A | E59: W | F59: M | G59: 33 | J59: Woodchester
A60: N11 | C60: CORDWELL | D60: Veronique | E60: D | G60: 7 | H60: Scholar | I60: School | J60: Middx, Pimlico
A61: N11 | C61: CORDWELL | D61: Montague | E61: S | G61: 5 | J61: Middx, Pimlico
A62: N11 | C62: CORDWELL | D62: Lillie | E62: D | G62: 4 | J62: Woodchester
A63: N11 | C63: CORDWELL | D63: Vera | E63: D | G63: 3 | J63: Woodchester
A64: N11 | C64: CORDWELL | D64: Charles | E64: S | G64: 4mths | J64: Woodchester
A65: N12 | B65: Selsley Road | C65: COX | D65: Jane E | E65: H | F65: W | G65: 42 | H65: Needlewoman | J65: Hants, Meonstoke
A66: N12 | C66: COX | D66: William J | E66: S | G66: 14 | H66: App. To Ironmonger | I66: Apprentice | J66: Woodchester
A67: N12 | C67: COX | D67: Harry T | E67: S | G67: 12 | H67: Scholar | I67: School | J67: Woodchester
A68: N12 | C68: COX | D68: Florence E | E68: D | G68: 8 | H68: Scholar | I68: School | J68: Woodchester
A69: N12 | C69: COX | D69: Ernest E | E69: S | G69: 6 | H69: Scholar | I69: School | J69: Woodchester
A70: N12 | C70: COX | D70: Kate E | E70: D | G70: 3 | J70: Woodchester
A71: N12 | C71: MILES | D71: Matthew | E71: Father | F71: W | G71: 80 | H71: Wheelwright | J71: Hants, Meonstoke
A72: N13 | B72: Selsley Road | C72: COLLETT | D72: Elizabeth | E72: H | F72: W | G72: 65 | H72: Retired Landlady | J72: Stroud
A73: N14 | B73: Selsley Road | C73: JAMES | D73: Isaac | E73: H | F73: M | G73: 45 | H73: Baker & Butcher | J73: Berkeley
A74: N14 | C74: JAMES | D74: Adelaide | E74: W | F74: M | G74: 42 | J74: Woodchester
A75: N14 | C75: JAMES | D75: Henry | E75: S | G75: 18 | H75: Carpenter | J75: Woodchester
A76: N14 | C76: JAMES | D76: Louisa | E76: D | G76: 16 | H76: Pupil teacher | I76: Misc | J76: Woodchester
A77: N14 | C77: JAMES | D77: Edward | E77: S | G77: 14 | H77: Baker's Assistant | I77: Misc | J77: Woodchester
A78: N14 | C78: JAMES | D78: Arthur | E78: S | G78: 12 | H78: Scholar | I78: School | J78: Woodchester
A79: N14 | C79: JAMES | D79: Charles | E79: S | G79: 11 | H79: Scholar | I79: School | J79: Woodchester
A80: N14 | C80: JAMES | D80: Lavinia | E80: D | G80: 9 | H80: Scholar | I80: School | J80: Woodchester
A81: N14 | C81: JAMES | D81: Kate | E81: D | G81: 6 | H81: Scholar | I81: School | J81: Woodchester
A82: N14 | C82: JAMES | D82: Florence | E82: D | G82: 5 | J82: Woodchester
A83: N14 | C83: JAMES | D83: George | E83: S | G83: 3 | J83: Woodchester
A84: N14 | C84: JAMES | D84: Frank | E84: S | G84: 2 | J84: Woodchester
A85: N14 | C85: BURFORD | D85: Charles | E85: Servant | F85: U | G85: 16 | H85: Baker | I85: Misc | J85: Minchinhampton
A86: N14 | C86: SHERBORNE | D86: Ellen | E86: Servant | F86: U | G86: 21 | H86: General Servant | J86: Tetbury
A87: N15 | B87: Royal Oak Church Road | C87: JENNER | D87: Jeremiah | E87: H | F87: M | G87: 62 | H87: Publican | J87: Woodchester | K87: Royal Oak
A88: N15 | C88: JENNER | D88: Mary | E88: W | F88: M | G88: 61 | J88: Woodchester
A89: N16 | B89: Oakley House Church Road | C89: PERKINS | D89: Alfred | E89: H | F89: M | G89: 60 | H89: Pin Manufacture | J89: Eastington
A90: N16 | C90: PERKINS | D90: Penninah | E90: W | F90: M | G90: 58 | J90: Wotton under Edge
A91: N16 | C91: PERKINS | D91: Cecilia E | E91: D | G91: 30 | J91: Woodchester
A92: N16 | C92: PERKINS | D92: Edward | E92: S | G92: 16 | H92: Pin Manufacture | I92: Pins | J92: Woodchester
A93: N16 | C93: PERKINS | D93: Ernest G | E93: S | G93: 13 | H93: Scholar | I93: School | J93: Woodchester
A94: N16 | C94: PHELPS | D94: Annie O | E94: Servant | F94: U | G94: 18 | H94: General Servant | J94: Bisley
A95: N17 | B95: Berry Moor | C95: PEGLER | D95: Emily | E95: H | F95: W | G95: 55 | J95: Painswick
A96: N17 | C96: PEGLER | D96: Ellen E | E96: D | F96: U | G96: 23 | H96: Infant school Teacher | J96: The Slad
A97: N18 | B97: Berry Moor | C97: THURLEY | D97: Frank | E97: L | F97: U | G97: 21 | H97: Mechanic-Fitter | J97: Walthamstead
A98: N19 | B98: Berry Moor | C98: PRIDE | D98: Henry H | E98: H | F98: M | G98: 39 | H98: Coachman & Gardener | J98: Selsley
A99: N19 | C99: PRIDE | D99: Alice | E99: W | F99: M | G99: 32 | J99: Wilts, Poole Keynes
A100: N19 | C100: PRIDE | D100: Henry T | E100: S | G100: 1 | J100: Woodchester
A101: N20 | B101: Berry Moor | C101: TRINDER | D101: Walter | E101: L | F101: U | G101: 19 | H101: Groom | J101: Caudlegreen
A102: N21 | B102: Berry Moor | C102: MOREMAN | D102: Charles | E102: L | F102: U | G102: 20 | H102: Groom | J102: Cirencester
A103: N22 | B103: Berry Moor | C103: PINNOCK | D103: William | E103: L | F103: U | G103: 18 | H103: Carter to a Farmer | J103: Hatherop
A104: N23 | B104: Berry Moor | C104: PAYNE | D104: George | E104: H | F104: M | G104: 24 | H104: Carter to a Farmer | J104: Worcs, Dorn
A105: N23 | C105: PAYNE | D105: Fanny | E105: W | F105: M | G105: 26 | J105: Woodchester
A106: N23 | C106: PAYNE | D106: Edith | E106: D | G106: 1 | J106: Woodchester
A107: N23 | C107: PAYNE | D107: George | E107: S | G107: 2mths | J107: Woodchester
A108: N24 | B108: Berry Moor | C108: PAYNE | D108: George | E108: H | F108: W | G108: 58 | H108: Cowman | J108: Wickrisington
A109: N24 | C109: HUNT | D109: Tom | E109: Grandson | G109: 11 | H109: Scholar | I109: School | J109: Woodchester
A110: N24 | C110: TOWNSEND | D110: Thomas | E110: L | F110: U | G110: 17 | H110: Cowman | J110: Barnsley
A111: N25 | B111: Berry Moor | C111: HILL | D111: Margaret | E111: H | F111: U | G111: 56 | H111: Waistcoat Maker | J111: Dursley
A112: N26 | B112: Bospin Lane | C112: HABGOOD | D112: George | E112: H | F112: M | G112: 47 | H112: Engine Fitter | J112: Woodchester
A113: N26 | C113: HABGOOD | D113: Arthur | E113: S | G113: 22 | H113: Clerk (unempl) | J113: Woodchester
A114: N26 | C114: HABGOOD | D114: William | E114: S | G114: 19 | H114: Baker | J114: Woodchester
A115: N26 | C115: HABGOOD | D115: Ruth | E115: D | G115: 16 | H115: Servant (unemp) | I115: Servant | J115: Woodchester
A116: N26 | C116: HABGOOD | D116: Edward | E116: S | G116: 15 | H116: Baker | I116: Misc | J116: Woodchester
A117: N26 | C117: HABGOOD | D117: James | E117: S | G117: 13 | H117: Errand boy | I117: Misc | J117: Woodchester
A118: N26 | C118: HABGOOD | D118: Francis | E118: S | G118: 12 | H118: Scholar | I118: School | J118: Woodchester
A119: N26 | C119: HABGOOD | D119: Minnie | E119: D | G119: 9 | H119: Scholar | I119: School | J119: Woodchester
A120: N26 | C120: HABGOOD | D120: Annie | E120: D | G120: 8 | H120: Scholar | I120: School | J120: Woodchester
A121: N26 | C121: HABGOOD | D121: Helen | E121: D | G121: 6 | H121: Scholar | I121: School | J121: Woodchester
A122: N27 | B122: The Farm Lagger Lane | C122: CHAMBERLAIN | D122: John | E122: H | F122: M | G122: 47 | H122: Farmer | J122: Leics, Hinkley
A123: N27 | C123: CHAMBERLAIN | D123: Sarah H | E123: W | F123: M | G123: 42 | H123: Farmer's Wife | J123: Woodchester
A124: N27 | C124: CHAMBERLAIN | D124: Maurice J | E124: S | G124: 20 | H124: Carpenter | J124: Painswick
A125: N27 | C125: CHAMBERLAIN | D125: Henry W | E125: S | G125: 19 | H125: App to Carpenter | J125: Woodchester
A126: N27 | C126: CHAMBERLAIN | D126: Sarah A | E126: D | G126: 17 | J126: Woodchester
A127: N27 | C127: CHAMBERLAIN | D127: George | E127: S | G127: 14 | H127: App to Baker | I127: Misc | J127: Woodchester
A128: N27 | C128: CHAMBERLAIN | D128: Frederick | E128: S | G128: 11 | H128: Scholar | I128: School | J128: Woodchester
A129: N27 | C129: CHAMBERLAIN | D129: Arthur | E129: S | G129: 10 | H129: Scholar | I129: School | J129: Woodchester
A130: N27 | C130: CHAMBERLAIN | D130: Albert E | E130: S | G130: 8 | H130: Scholar | I130: School | J130: Woodchester
A131: N27 | C131: CHAMBERLAIN | D131: Martha | E131: D | G131: 4 | H131: Scholar | I131: School | J131: Woodchester
A132: N27 | C132: CHAMBERLAIN | D132: Charlotte M | E132: D | G132: 1 | J132: Woodchester
A133: N28 | B133: Lagger Lane | C133: MAIDSTONE | D133: Henry | E133: H | F133: M | G133: 54 | H133: Woollen Cloth Dresser | J133: Dursley
A134: N28 | C134: MAIDSTONE | D134: Mary | E134: W | F134: M | G134: 53 | J134: Woodchester
A135: N28 | C135: MAIDSTONE | D135: Reginald | E135: S | G135: 18 | H135: Railway Clerk | J135: Woodchester
A136: N28 | C136: MAIDSTONE | D136: Minnie | E136: D | G136: 13 | H136: Scholar | I136: School | J136: Woodchester
A137: N29 | B137: Selsley Road | C137: COX | D137: Elizabeth | E137: H | F137: W | G137: 69 | H137: Infant school Teacher | J137: Yarmouth
A138: N29 | C138: COX | D138: Louisa Jane | E138: D | F138: U | G138: 33 | J138: Birdlip
A139: N30 | B139: Farm House Selsley Road | C139: WORKMAN | D139: Francis H | E139: H | F139: M | G139: 41 | H139: Farmer | J139: Woodchester
A140: N30 | C140: WORKMAN | D140: Mary A | E140: W | F140: M | G140: 43 | J140: Monmouth, Mather
A141: N30 | C141: WORKMAN | D141: Eliza A | E141: D | G141: 21 | J141: Woodchester
A142: N30 | C142: WORKMAN | D142: Frank E | E142: S | G142: 4 | J142: Woodchester
A143: N30 | C143: WORKMAN | D143: Henry | E143: Brother | F143: U | G143: 40 | H143: Timber Merchant | J143: Woodchester
A144: N30 | C144: MAY | D144: Elizabeth | E144: Servant | F144: U | G144: 15 | H144: General Servant | I144: Servant | J144: Bisley
A145: N31 | B145: Selsley Road | C145: HOLBY | D145: Louisa | E145: W | F145: M | G145: 33 | J145: Clifton
A146: N31 | C146: HOLBY | D146: William H | E146: S | G146: 4 | J146: Salop, Burford
A147: N31 | C147: HOLBY | D147: Albert E | E147: S | G147: 1 | J147: Woodchester
A148: N32 | B148: Selsley Road | C148: BROWNING | D148: Anthony | E148: H | F148: M | G148: 69 | H148: Coachman | J148: Woodchester
A149: N32 | C149: BROWNING | D149: Charlotte | E149: W | F149: M | G149: 69 | J149: Woodchester
A150: N32 | C150: BROWNING | D150: Agnes | E150: D | G150: 30 | J150: Woodchester
A151: N33 | B151: Selsley Road | C151: WHITE | D151: Elijah | E151: H | F151: M | G151: 55 | H151: Carpenter & Joiner | J151: Stroud
A152: N33 | C152: WHITE | D152: Alice | E152: W | F152: M | G152: 58 | J152: Stanley
A153: N33 | C153: WHITE | D153: Catherine | E153: D | G153: 25 | H153: Dressmaker | J153: Woodchester
A154: N34 | B154: Selsley Road | C154: ADEY | D154: Sarah | E154: H | F154: W | G154: 78 | J154: Minchinhampton
A155: N34 | C155: TURNER | D155: Jonathan | E155: Boarder | F155: M | G155: 25 | H155: Gardener | J155: Charlton Kings
A156: N35 | B156: Selsley Road | C156: ROBERTS | D156: Charles | E156: H | F156: M | G156: 73 | H156: Gardener | J156: Leonard Stanley
A157: N35 | C157: ROBERTS | D157: Winifred | E157: W | F157: M | G157: 76 | H157: Charwoman | J157: Woodchester
A158: N36 | B158: Selsley Road | C158: HERBERT | D158: Hannah | E158: H | F158: U | G158: 54 | H158: Charwoman | J158: Forest Green
A159: N36 | C159: HERBERT | D159: Emma | E159: Sister | F159: U | G159: 43 | H159: Needlewoman | J159: Selsley
A160: N37 | B160: Selsley Road | C160: PEYTON | D160: William | E160: H | F160: M | G160: 54 | H160: Plumber, Painter & Glazier | J160: Rodborough
A161: N37 | C161: PEYTON | D161: Anne | E161: W | F161: M | G161: 53 | J161: Horsley
A162: N37 | C162: TWINING | D162: Lavinia | E162: Niece | F162: U | G162: 20 | J162: ???
A163: N38 | B163: Selsley Road | C163: JONES | D163: Eli | E163: H | F163: M | G163: 62 | H163: Retired Grocer | J163: Minchinhampton
A164: N38 | C164: JONES | D164: Ann | E164: W | F164: M | G164: 68 | J164: Stroud
A165: N39 | B165: The Firs Selsley Road | C165: EDMONDS | D165: Elizabeth | E165: H | F165: W | G165: 74 | H165: Annuitant | J165: Cowley | K165: The Firs
A166: N39 | C166: HUMPHRIES | D166: Hannah | E166: Sister | F166: U | G166: 64 | H166: Annuitant | J166: Cowley
A167: N39 | C167: CULKIN | D167: Mary C | E167: V | F167: U | G167: 35 | J167: Monmouth, Newport
A168: N39 | C168: CLACK | D168: Fanny | E168: Cook | F168: U | G168: 30 | H168: Cook | J168: Reading
A169: N39 | C169: WISE | D169: Ellen | E169: Servant | F169: U | G169: 23 | H169: Servant | J169: Tewkesbury
A170: N39 | C170: HUNT | D170: Emma | E170: Adop Orph | G170: 12 | H170: Scholar | I170: School | J170: Woodchester
A171: N40 | B171: Selsley Road | C171: WALL | D171: George | E171: H | F171: M | G171: 40 | H171: Gardener | J171: Minchinhampton
A172: N40 | C172: WALL | D172: Mary | E172: W | F172: M | G172: 40 | H172: Washerwoman | J172: Coberley
A173: N40 | C173: WALL | D173: Annie | E173: D | G173: 16 | H173: Servant | I173: Servant | J173: Minchinhampton
A174: N40 | C174: WALL | D174: Georgina | E174: D | G174: 11 | H174: Scholar | I174: School | J174: Woodchester
A175: N40 | C175: WALL | D175: Katie | E175: D | G175: 6 | H175: Scholar | I175: School | J175: Woodchester
A176: N41 | B176: Selsley Road | C176: COLLINS | D176: Annie M | E176: H | F176: W | G176: 69 | H176: Nurse | J176: Harrow
A177: N41 | C177: HERBERT | D177: George | E177: Grandson | F177: U | G177: 17 | H177: Worker at Pin Mill | J177: Woodchester
A178: N41 | C178: HERBERT | D178: Henry | E178: Grandson | G178: 13 | H178: Scholar | I178: School | J178: Woodchester
A179: N42 | B179: Selsley Road | C179: BEARD | D179: Charles | E179: H | F179: W | G179: 55 | H179: Gardener | J179: Avening
A180: N42 | C180: BEARD | D180: Fanny | E180: D | G180: 17 | H180: Flock Mill Hand | J180: Minchinhampton
A181: N42 | C181: BEARD | D181: George | E181: S | G181: 15 | H181: Woollen Cloth Worker | I181: Cloth | J181: Minchinhampton
A182: N42 | C182: BEARD | D182: Rose | E182: D | G182: 10 | H182: Scholar | I182: School | J182: Minchinhampton
A183: N43 | B183: Selsley Road | C183: BURFORD | D183: Sarah | E183: H | F183: U | G183: 62 | H183: Cook & Housekeeper | J183: Stroud
A184: N44 | B184: Selsley Road | C184: GREENLAND | D184: William | E184: H | F184: M | G184: 60 | H184: Invalid | J184: Rodborough
A185: N44 | C185: GREENLAND | D185: Ruth | E185: W | F185: M | G185: 58 | J185: Stroud
A186: N45 | B186: Selsley Road | C186: WOOD | D186: Annie D | E186: Lodger | F186: M | G186: 26 | H186: Visitor from America | J186: USA
A187: N45 | C187: WOOD | D187: Julia M | E187: D | G187: 2mths | J187: Woodchester
A188: N45 | C188: SEANEY | D188: Esther | E188: Servant | F188: W | G188: 30 | H188: Nursemaid | J188: Ticehurst
A189: N46 | C189: HAINES | D189: Edward | E189: H | F189: M | G189: 69 | H189: Tin Plate Worker | J189: Woodchester
A190: N46 | B190: Selsley Road | C190: HAINES | D190: Martha | E190: W | F190: M | G190: 70 | J190: Woodchester
A191: N46 | C191: WEAL | D191: Edward | E191: Lodger | F191: U | G191: 23 | H191: Foreman in Saw Mill | J191: Westonbirt
A192: N47 | B192: Selsley Road | C192: CORDWELL | D192: Tom H | E192: H | F192: M | G192: 30 | H192: Woolsorter & Grocer | J192: Woodchester
A193: N47 | C193: CORDWELL | D193: Annie | E193: W | F193: M | G193: 30 | J193: Rodborough
A194: N47 | C194: CORDWELL | D194: Harold R | E194: S | G194: 5 | H194: Scholar | I194: School | J194: Rodborough
A195: N47 | C195: CORDWELL | D195: Ewart C | E195: S | G195: 2 | J195: Woodchester
A196: N47 | C196: RIGSBY | D196: Harriet | E196: Servant | F196: U | G196: 23 | H196: Domestic Servant | J196: Avening
A197: N48 | B197: The Rectory Selsley Road | C197: SMITH | D197: Frederick | E197: H | F197: M | G197: 51 | H197: Rector | J197: Lancs, Eccles
A198: N48 | C198: SMITH | D198: Clara | E198: W | F198: M | G198: 48 | J198: Tring
A199: N48 | C199: SMITH | D199: Henrietta L | E199: D | G199: 22 | J199: Kent, Minster
A200: N48 | C200: SMITH | D200: Amy G | E200: D | G200: 21 | J200: Widicombe
... 747 more rows

Sheet Woodcensus91
A1: No | B1: Road, Street etc | C1: Surname | D1: Christian Name | E1: Relationship to Head | F1: Single or Married | G1: Age | H1: Occupation | I1: Occ Type | J1: County of Birth | K1: Place of Birth
A2: 1 | B2: Churches | C2: BURTON | D2: Harriet | E2: Wife | F2: M | G2: 26 | J2: Gloucestershire | K2: Tetbury
C3: BURTON | D3: Mabel Eleanor | E3: Daur | G3: 5 | H3: Scholar | I3: School | J3: Gloucestershire | K3: Woodchester
C4: BURTON | D4: George F V | E4: Son | G4: 3 | H4: Scholar | I4: School | J4: Gloucestershire | K4: Woodchester | O4: Age | P4: Total | Q4: School | R4: Cloth | S4: Pins | T4: Servant | U4: Agricultural | V4: Apprentice | W4: Misc | X4: Not Recorded
C5: BURTON | D5: Arthur James | E5: Son | G5: 2 | J5: Gloucestershire | K5: Woodchester | O5: 5 | P5: =COUNTIFS($G$2:$G$871,$O5) -> 20 | Q5: =COUNTIFS($G$2:$G$871,$O5,$I$2:$I$871,Q$4) -> 18 | R5: =COUNTIFS($G$2:$G$871,$O5,$I$2:$I$871,R$4) -> 0 | S5: 0 | T5: 0 | U5: 0 | V5: 0 | W5: 0 | X5: =P5-SUM(Q5:W5) -> 2
C6: WHITE | D6: Ellen | E6: Sister in law | F6: S | G6: 20 | H6: General Servant | J6: Gloucestershire | K6: Tetbury | O6: 6 | P6: =COUNTIFS($G$2:$G$871,$O6) -> 22 | Q6: =COUNTIFS($G$2:$G$871,$O6,$I$2:$I$871,Q$4) -> 21 | R6: 0 | S6: 0 | T6: 0 | U6: 0 | V6: 0 | W6: 0 | X6: =P6-SUM(Q6:W6) -> 1
C7: WHITE | D7: Fanny | E7: Sister in law | F7: S | G7: 17 | H7: General Servant | J7: Gloucestershire | K7: Tetbury | O7: 7 | P7: 19 | Q7: 18 | R7: 0 | S7: 0 | T7: 0 | U7: 0 | V7: 0 | W7: 0 | X7: 1
A8: 2 | B8: Churches | C8: ADAMS | D8: Matthew | E8: Head | F8: M | G8: 62 | H8: Agricultural Lab | J8: Gloucestershire | K8: Horsley | O8: 8 | P8: 21 | Q8: 18 | R8: 0 | S8: 0 | T8: 0 | U8: 0 | V8: 0 | W8: 0 | X8: 3
C9: ADAMS | D9: Emma | E9: Wife | F9: M | G9: 62 | H9: Cloth Worker | J9: Gloucestershire | K9: Horsley | O9: 9 | P9: 19 | Q9: 16 | R9: 0 | S9: 0 | T9: 0 | U9: 0 | V9: 0 | W9: 0 | X9: 3
C10: ADAMS | D10: Wallis | E10: Son | F10: S | G10: 17 | H10: Sawyer | J10: Gloucestershire | K10: Avening | O10: 10 | P10: 23 | Q10: 21 | R10: 0 | S10: 0 | T10: 0 | U10: 0 | V10: 0 | W10: 0 | X10: 2
A11: 3 | B11: Churches | C11: CLOSE | D11: William | E11: Head | F11: M | G11: 54 | H11: Engine Driver | J11: Gloucestershire | K11: Minchinhamton | O11: 11 | P11: 22 | Q11: 22 | R11: 0 | S11: 0 | T11: 0 | U11: 0 | V11: 0 | W11: 0 | X11: 0
C12: CLOSE | D12: Jane | E12: Wife | F12: M | G12: 55 | J12: Gloucestershire | K12: Kingstanley | O12: 12 | P12: 20 | Q12: 19 | R12: 0 | S12: 0 | T12: 0 | U12: 0 | V12: 0 | W12: 0 | X12: 1
C13: CLOSE | D13: Edward | E13: Son | F13: S | G13: 23 | H13: Agricultural Lab | J13: Gloucestershire | K13: Stonehouse | O13: 13 | P13: 26 | Q13: 17 | R13: 0 | S13: 1 | T13: 4 | U13: 0 | V13: 0 | W13: 3 | X13: 1
C14: GADD | D14: Charles A | E14: Son in law | F14: M | G14: 25 | H14: Coal Agent | J14: Gloucestershire | K14: Stroud | O14: 14 | P14: 29 | Q14: 12 | R14: 2 | S14: 1 | T14: 4 | U14: 0 | V14: 2 | W14: 5 | X14: 3
C15: GADD | D15: Sarah A | E15: Daur | F15: M | G15: 21 | J15: Gloucestershire | K15: Rodborough | O15: 15 | P15: 18 | Q15: 1 | R15: 2 | S15: 0 | T15: 6 | U15: 0 | V15: 3 | W15: 4 | X15: 2
C16: GADD | D16: Harold C | E16: Grandson | G16: 1mth | J16: Gloucestershire | K16: Stonehouse | O16: 16 | P16: 16 | Q16: 0 | R16: 1 | S16: 1 | T16: 5 | U16: 0 | V16: 3 | W16: 6 | X16: 0
A17: 4 | B17: Woodchester House Lodge | C17: VIRGO | D17: Elizabeth | E17: Head | F17: W | G17: 55 | H17: Lodge Keeper | J17: Gloucestershire | K17: Bisley
C18: VIRGO | D18: Mary A | E18: Daur | F18: S | G18: 26 | H18: Flock & Shoddy Worker | J18: Gloucestershire | K18: Woodchester
A19: 5 | B19: Churches | C19: WORKMAN | D19: Nicholas | E19: Head | F19: M | G19: 39 | H19: Manager of Timber Yard | J19: Gloucestershire | K19: Woodchester
C20: WORKMAN | D20: Mary M | E20: Wife | F20: M | G20: 30 | J20: Gloucestershire | K20: Woodchester
C21: WORKMAN | D21: Charles W | E21: Son | G21: 13 | H21: Scholar | I21: School | J21: Gloucestershire | K21: Woodchester
C22: WORKMAN | D22: Mabel K | E22: Daur | G22: 8 | H22: Scholar | I22: School | J22: Gloucestershire | K22: Woodchester
C23: WORKMAN | D23: Edith | E23: Daur | G23: 5 | H23: Scholar | I23: School | J23: Gloucestershire | K23: Woodchester
A24: 6 | B24: Churches | C24: BROWNING | D24: Ellen | E24: Head | F24: W | G24: 47 | H24: Laundress | J24: Gloucestershire | K24: Woodchester
C25: BROWNING | D25: Elizabeth | E25: Daur | F25: S | G25: 21 | H25: Cloth Minder | J25: Gloucestershire | K25: Woodchester
C26: BROWNING | D26: Edith | E26: Daur | F26: S | G26: 17 | H26: Cloth Minder | J26: Gloucestershire | K26: Woodchester
C27: BROWNING | D27: Charles | E27: Son | F27: S | G27: 15 | H27: Printer | I27: Misc | J27: Gloucestershire | K27: Woodchester
C28: BROWNING | D28: Eliza | E28: Daur | F28: S | G28: 13 | H28: General Servant | I28: Servant | J28: Gloucestershire | K28: Woodchester
C29: BROWNING | D29: Minnie | E29: Daur | F29: S | G29: 11 | H29: Scholar | I29: School | J29: Gloucestershire | K29: Woodchester
C30: WEBB | D30: William | E30: Lodger | F30: S | G30: 28 | H30: Gardener | J30: Gloucestershire | K30: Cirencester
A31: 7 | B31: Churches | C31: LUGG | D31: Francis William | E31: Head | F31: M | G31: 52 | H31: Blacksmith | J31: Wiltshire | K31: Malmesbury
C32: LUGG | D32: Emily J | E32: Wife | F32: M | G32: 36 | J32: Gloucestershire | K32: Horsley
C33: LUGG | D33: Fanny M | E33: Daur | F33: S | G33: 18 | H33: General Servant Domestic | J33: Gloucestershire | K33: Woodchester
C34: LUGG | D34: Francis W | E34: Son | G34: 14 | H34: Blacksmith's Apprentice | I34: Apprentice | J34: Gloucestershire | K34: Woodchester
C35: LUGG | D35: Sidney T | E35: Son | G35: 10 | H35: Scholar | I35: School | J35: Gloucestershire | K35: Woodchester
C36: LUGG | D36: Albert S | E36: Son | G36: 7 | H36: Scholar | I36: School | J36: Gloucestershire | K36: Woodchester
A37: 8 | B37: Churches | C37: CHAPMAN | D37: Henry R | E37: Head | F37: M | G37: 42 | H37: Engine Driver Stationary | J37: Gloucestershire | K37: Avening
C38: CHAPMAN | D38: Ellen R | E38: Wife | F38: M | G38: 38 | J38: Gloucestershire | K38: Minchinhamton
C39: CHAPMAN | D39: Alfred E | E39: Son | F39: S | G39: 20 | H39: Blacksmith | J39: Gloucestershire | K39: Minchinhamton
C40: CHAPMAN | D40: George Fre? | E40: Son | G40: 16 | H40: Millwright's Apprentice | I40: Apprentice | J40: Gloucestershire | K40: Minchinhamton
C41: CHAPMAN | D41: Charles A | E41: Son | G41: 14 | H41: Painter | I41: Misc | J41: Gloucestershire | K41: Woodchester
C42: CHAPMAN | D42: Thomas A | E42: Son | G42: 13 | H42: Errand Boy | I42: Misc | J42: Gloucestershire | K42: Woodchester
C43: CHAPMAN | D43: Alick | E43: Son | G43: 12 | H43: Scholar | I43: School | J43: Gloucestershire | K43: Woodchester
C44: CHAPMAN | D44: Mabel Jane | E44: Daur | G44: 7 | H44: Scholar | I44: School | J44: Gloucestershire | K44: Woodchester
C45: CHAPMAN | D45: Lily E | E45: Daur | G45: 6 | H45: Scholar | I45: School | J45: Gloucestershire | K45: Woodchester
A46: 9 | B46: Churches | C46: GARLAND | D46: Elizabeth S | E46: Head | F46: W | G46: 66 | H46: Living on own means | J46: Gloucestershire | K46: Woodchester
C47: GARLAND | D47: George William | E47: Son | F47: S | G47: 24 | H47: Carpenter | J47: Gloucestershire | K47: Woodchester
A48: 10 | B48: Churches | C48: BROWNING | D48: Harriet | E48: Head | F48: W | G48: 50 | H48: Grocer | J48: Gloucestershire | K48: Woodchester
C49: BROWNING | D49: Amy | E49: Daur | F49: S | G49: 24 | H49: Pin Packer | J49: Gloucestershire | K49: Woodchester
C50: BROWNING | D50: Nellie | E50: Daur | F50: S | G50: 18 | H50: Pin Sticker | J50: Gloucestershire | K50: Woodchester
C51: HEMMING | D51: William | E51: Lodger | F51: M | G51: 56 | H51: Circular Sawyer | J51: Gloucestershire | K51: Camden
A52: 11 | B52: Church Road | C52: RUBBER | D52: Charles | E52: Head | F52: M | G52: 50 | H52: General Lab | J52: Gloucestershire | K52: Rodborough
C53: RUBBER | D53: Esther | E53: Wife | F53: M | G53: 47 | J53: Gloucestershire | K53: Woodchester
C54: RUBBER | D54: Raymond | E54: Son | F54: S | G54: 23 | H54: Gardener | J54: Gloucestershire | K54: Woodchester
C55: RUBBER | D55: Florence | E55: Daur | G55: 15 | H55: Cloth Worker | I55: Cloth | J55: Gloucestershire | K55: Woodchester
C56: RUBBER | D56: Edith | E56: Daur | G56: 12 | H56: Scholar | I56: School | J56: Gloucestershire | K56: Woodchester
C57: RUBBER | D57: Allan | E57: Son | G57: 9 | H57: Scholar | I57: School | J57: Gloucestershire | K57: Woodchester
C58: RUBBER | D58: Annie | E58: Daur | G58: 5 | H58: Scholar | I58: School | J58: Gloucestershire | K58: Woodchester
A59: 12 | B59: Church Road | C59: WILKS | D59: John | E59: Head | F59: M | G59: 76 | J59: Herefordshire | K59: Weston
C60: WILKS | D60: Leah | E60: Wife | F60: M | G60: 75 | J60: Herefordshire | K60: Weston
A61: 13 | B61: Church Road | C61: GUY | D61: Joseph | E61: Head | F61: M | G61: 54 | H61: Gardener | J61: Gloucestershire | K61: Avening
C62: GUY | D62: Elizabeth | E62: Wife | F62: M | G62: 59 | J62: Gloucestershire | K62: Woodchester
C63: GUY | D63: Ann S | E63: Daur | F63: S | G63: 18 | H63: Stick Worker | J63: Gloucestershire | K63: Woodchester
A64: 14 | B64: Church Road | C64: BEARD | D64: Fanny | E64: Head | F64: S | G64: 22 | H64: Flock & Shoddy Worker | J64: Gloucestershire | K64: Minchinhamton
A65: 15 | B65: Church Road | C65: BARNFIELD | D65: Mary | E65: Head | F65: W | G65: 56 | H65: Worsted Weaver | J65: Gloucestershire | K65: Cam
C66: BARNFIELD | D66: Annie | E66: Daur | F66: S | G66: 35 | H66: Worsted Weaver | J66: Gloucestershire | K66: Woodchester
A67: 16 | B67: Tower House | C67: MATHEW | D67: Harriet J | E67: Head | F67: W | G67: 76 | H67: Living on own means | J67: British Subject | K67: Calcutta East India
C68: FOX | D68: Helen | E68: Friend | F68: S | G68: 36 | H68: Ladies Companion | J68: Hant | K68: Faversham
C69: SCRIVENS | D69: Harriet | E69: Servant | F69: W | G69: 36 | H69: Cook Domestic Servant | J69: Gloucestershire | K69: Longhope
C70: HABGOOD | D70: Susan Annie | E70: Servant | F70: S | G70: 18 | H70: ????maid | J70: Gloucestershire | K70: Woodchester
A71: 17 | B71: Lagger Lane | C71: SOLES | D71: Jesse | E71: Head | F71: M | G71: 39 | H71: Farmer | J71: Gloucestershire | K71: Gloucester
C72: SOLES | D72: Alice M | E72: Wife | F72: M | G72: 42 | J72: Gloucestershire | K72: Woodchester
C73: WALKER | D73: George | E73: Servant | F73: S | G73: 14 | H73: Farm Lab | I73: Agriculture | J73: Gloucestershire | K73: Longney
B74: Rosare
A75: 18 | B75: Lagger Lane | C75: MAIDSTONE | D75: Henry | E75: Head | F75: M | G75: 64 | H75: Cloth Dresser | J75: Gloucestershire | K75: Dursley
C76: MAIDSTONE | D76: Mary | E76: Wife | F76: M | G76: 62 | J76: Gloucestershire | K76: Woodchester
C77: MAIDSTONE | D77: Minnie A | E77: Daur | F77: S | G77: 23 | J77: Gloucestershire | K77: Woodchester
C78: NEAM | D78: William George | E78: Lodger | F78: S | G78: 16 | H78: Railway Clerk | I78: Misc | J78: Isle of Wight | K78: Ryde
A79: 19 | B79: Bospin Lane | C79: BOND | D79: Alfred | E79: Head | F79: M | G79: 69 | H79: Pin Mill Worker | J79: Gloucestershire | K79: Woodchester
C80: BOND | D80: Charlotte | E80: Wife | F80: M | G80: 38 | J80: Gloucestershire | K80: Rodborough
C81: BOND | D81: George Alfred | E81: Son | F81: S | G81: 14 | H81: Umbrella Furniture Worker | I81: Misc | J81: Gloucestershire | K81: Woodchester
C82: BOND | D82: Alice | E82: Daur | G82: 13 | H82: Scholar | I82: School | J82: Gloucestershire | K82: Woodchester
C83: BOND | D83: Sebastian S | E83: Son | G83: 11 | H83: Scholar | I83: School | J83: Gloucestershire | K83: Woodchester
C84: BOND | D84: Florence | E84: Daur | G84: 10 | H84: Scholar | I84: School | J84: Gloucestershire | K84: Woodchester
C85: BOND | D85: Charlotte | E85: Daur | G85: 9 | H85: Scholar | I85: School | J85: Gloucestershire | K85: Woodchester
C86: BOND | D86: Frank H | E86: Son | G86: 6 | H86: Scholar | I86: School | J86: Gloucestershire | K86: Kingswood
C87: BOND | D87: Mary A | E87: Daur | G87: 4 | H87: Scholar | I87: School | J87: Gloucestershire | K87: Kingswood
C88: BOND | D88: Matilda | E88: Daur | G88: 3 | H88: Scholar | I88: School | J88: Gloucestershire | K88: Woodchester
C89: BOND | D89: William J | E89: Son | G89: < 8mths | J89: Gloucestershire | K89: Woodchester
A90: 20 | B90: Bospin Lane | C90: BOULTON | D90: Harriet | E90: Head | F90: W | G90: 51 | H90: Laundress | J90: Wiltshire | K90: Crudwell
C91: BOULTON | D91: Henry | E91: Son | F91: S | G91: 25 | H91: General Lab | J91: Gloucestershire | K91: Alford
C92: BOULTON | D92: William | E92: Son | G92: 20 | H92: Wood Sawyer | J92: Gloucestershire | K92: Shutons
C93: BOULTON | D93: Charles W | E93: Son | G93: 14 | H93: Wood Worker | I93: Misc | J93: Gloucestershire | K93: Shutons
C94: BOULTON | D94: Mary | E94: Daur | G94: 11 | H94: Scholar | I94: School | J94: Gloucestershire | K94: Stoke Orchard
C95: BOULTON | D95: Joseph A | E95: Son | G95: 7 | H95: Scholar | I95: School | J95: Gloucestershire | K95: Woodchester
A96: 21 | B96: Bown Hill Farm | C96: BOZWORTH | D96: Albert J | E96: Head | F96: M | G96: 27 | H96: Farmer | J96: Gloucestershire | K96: Moreton
C97: BOZWORTH | D97: Amy | E97: Wife | F97: M | G97: 27 | J97: Gloucestershire | K97: Uley
C98: BOZWORTH | D98: Elton | E98: Son | G98: < 1 | J98: Gloucestershire | K98: Woodchester
C99: WALTHAM | D99: Jane | E99: Servant | F99: S | G99: 17 | H99: General Servant | J99: Gloucestershire | K99: Saul
C100: SMITH | D100: Joseph | E100: Servant | F100: S | G100: 17 | H100: Agricultural Lab | J100: Gloucestershire | K100: Coaley
A101: 22 | B101: Bown Hill Cottages | C101: COOK | D101: John | E101: Head | F101: M | G101: 25 | H101: Agricultural Lab Carter | J101: Gloucestershire | K101: Haresfield
C102: COOK | D102: Christianna | E102: Wife | F102: M | G102: 30 | J102: Gloucestershire | K102: Haresfield
C103: MILLS | D103: Alice | E103: Step Daur | G103: 4 | H103: Scholar | I103: School | J103: Gloucestershire | K103: Haresfield
C104: COOK | D104: Ellen | E104: Daur | G104: 8mths | J104: Gloucestershire | K104: Stonehouse
A105: 23 | B105: Bown Hill Cottages | C105: GOBEY | D105: William | E105: Head | F105: M | G105: 31 | H105: Shepherd Agricultural Lab | J105: Gloucestershire | K105: Kemsford
C106: GOBEY | D106: Caroline S | E106: Wife | F106: M | G106: 26 | J106: Gloucestershire | K106: Cirencester
C107: GOBEY | D107: Ursula R | E107: Daur | G107: 7 | H107: Scholar | I107: School | J107: Gloucestershire | K107: Arlington
C108: GOBEY | D108: Arthur W | E108: Son | G108: 6 | H108: Scholar | I108: School | J108: Gloucestershire | K108: Arlington
C109: GOBEY | D109: George V | E109: Son | G109: 4 | H109: Scholar | I109: School | J109: Gloucestershire | K109: Arlington
C110: GOBEY | D110: Amy A | E110: Daur | J110: Gloucestershire | K110: Elkston
A111: 24 | B111: Selsley Hill Cottage | C111: REED | D111: Charles | E111: Head | F111: M | G111: 50 | H111: Shepherd Agricultural Lab | J111: Gloucestershire | K111: Tetbury
C112: REED | D112: Mary | E112: Wife | F112: M | G112: 52 | J112: Gloucestershire | K112: Tetbury
C113: REED | D113: Fanny | E113: Daur | F113: S | G113: 23 | J113: Gloucestershire | K113: Ashbury Upton
A114: 25 | B114: Selsley Hill Cottage | C114: KING | D114: Sidney | E114: Head | F114: M | G114: 30 | H114: Carter Agricultural Lab | J114: Gloucestershire | K114: Berinton
C115: KING | D115: Kate | E115: Wife | F115: M | G115: 23 | J115: Wiltshire | K115: Noston
C116: KING | D116: Frederick W | E116: Son | G116: 1 | J116: Gloucestershire | K116: Woodchester
A117: 26 | B117: The Grange | C117: PERKINS | D117: Edward P | E117: Head | F117: M | G117: 26 | H117: Manufacturer Pin | J117: Gloucestershire | K117: Woodchester
C118: PERKINS | D118: Louise | E118: Wife | F118: M | G118: 23 | J118: Wiltshire | K118: Crudwell
C119: SAUNDUS | D119: Mary J | E119: Servant | F119: S | G119: 24 | H119: Domestic Servant | J119: Wiltshire | K119: Kemble
A120: 27 | B120: Larchgrove | C120: BEALE | D120: Mary H | E120: Head | F120: S | G120: 64 | H120: Living on own means | J120: Essex | K120: West Ham
C121: BEALE | D121: Margaret | E121: Sister | F121: S | G121: 52 | H121: Living on own means | J121: Middlesex | K121: London
C122: FRUYARD | D122: Rosa Annie | E122: Servant | F122: S | G122: 19 | H122: Housemaid | J122: Wiltshire | K122: Melksham
C123: COX | D123: Clara E | E123: Servant | F123: S | G123: 30 | H123: Cook Domestic Servant | J123: Gloucestershire | K123: Tetbury
A124: 28 | B124: Larchgrove Lodge | C124: GARDINER | D124: Samuel | E124: Head | F124: M | G124: 46 | H124: Gardener | J124: Gloucestershire | K124: Bisley
C125: GARDINER | D125: Diniah Fanny | E125: Wife | F125: M | G125: 44 | J125: Herefordshire | K125: Weston
A126: 29 | B126: Selsley Lodge | C126: SMITH | D126: Mary | E126: Head | F126: S | G126: 71 | H126: Living on own means | J126: Lancashire | K126: Manchester
C127: WHITE | D127: Elizabeth S | E127: Servant | F127: S | G127: 42 | H127: Cook Domestic Servant | J127: Gloucestershire | K127: Nympsfield
C128: LEWIS | D128: Emily | E128: Servant | F128: S | G128: 25 | H128: Housemaid | J128: Gloucestershire | K128: Avening
A129: 30 | B129: Selsley Road | C129: LANE | D129: Sophia | E129: Head | F129: W | G129: 74 | J129: Gloucestershire | K129: Woodchester
A130: 31 | B130: Selsley Road | C130: SMITH | D130: Elizabeth | E130: Head | F130: W | G130: 73 | H130: Sextoness | J130: Devon | K130: Chislehamholt
A131: 32 | B131: Selsley Road | C131: CORDWELL | D131: Edward | E131: Head | F131: M | G131: 45 | H131: Carpenter | J131: Gloucestershire | K131: Woodchester
C132: CORDWELL | D132: Annie | E132: Wife | F132: M | G132: 43 | J132: Gloucestershire | K132: Woodchester
C133: CORDWELL | D133: Veronique | E133: Daur | F133: S | G133: 17 | H133: Dressmaker | K133: London
C134: CORDWELL | D134: Montague | E134: Son | G134: 15 | H134: Carpenter's Apprentice | I134: Apprentice | K134: London
C135: CORDWELL | D135: Lillie | E135: Daur | G135: 14 | H135: Scholar | I135: School | J135: Gloucestershire | K135: Woodchester
C136: CORDWELL | D136: Vera | E136: Daur | G136: 13 | H136: Scholar | I136: School | J136: Gloucestershire | K136: Woodchester
C137: CORDWELL | D137: Sybil | E137: Daur | G137: 8 | H137: Scholar | I137: School | J137: Gloucestershire | K137: Woodchester
C138: CORDWELL | D138: Charles | E138: Son | G138: 10 | H138: Scholar | I138: School | J138: Gloucestershire | K138: Woodchester
C139: CORDWELL | D139: Clair | E139: Daur | G139: 5 | H139: Scholar | I139: School | J139: Gloucestershire | K139: Woodchester
A140: 33 | B140: Selsley Road | C140: SMART | D140: Thomas | E140: Head | F140: M | G140: 56 | H140: Cloth Worker | J140: Gloucestershire | K140: Stroud
C141: SMART | D141: Caroline | E141: Wife | F141: M | G141: 56 | J141: Gloucestershire | K141: Stroud
C142: SMART | D142: Arthur | E142: Son | F142: S | G142: 14 | H142: Cloth Worker's Assistant | I142: Cloth | J142: Gloucestershire | K142: Stroud
C143: SMART | D143: Ethel | E143: Daur | F143: S | G143: 13 | H143: Scholar | I143: School | J143: Gloucestershire | K143: Stroud
A144: 34 | B144: Selsley Road | C144: COX | D144: Jane E | E144: Head | F144: W | G144: 52 | H144: Dressmaker | J144: Hampshire | K144: Meon Stoke
C145: COX | D145: William J | E145: Son | F145: S | G145: 24 | H145: Ironmonger's Assistant | J145: Gloucestershire | K145: Woodchester
C146: COX | D146: Ernest E | E146: Son | F146: S | G146: 16 | H146: Blacksmith's Apprentice | I146: Apprentice | J146: Gloucestershire | K146: Woodchester
C147: COX | D147: Kate E | E147: Daur | F147: S | G147: 13 | H147: Scholar | I147: School | J147: Gloucestershire | K147: Woodchester
A148: 35 | B148: Selsley Road | C148: SMITH | D148: Arthur W | E148: Head | F148: M | G148: 30 | H148: Baker | J148: Gloucestershire | K148: Stonehouse
C149: SMITH | D149: Mary J | E149: Wife | F149: M | G149: 27 | J149: Gloucestershire | K149: Rodborough
C150: SMITH | D150: Lillian | E150: Daur | G150: 7 | H150: Scholar | I150: School | J150: Gloucestershire | K150: Woodchester
C151: SMITH | D151: Sidney Layton | E151: Son | G151: 6 | H151: Scholar | I151: School | J151: Gloucestershire | K151: Woodchester
A152: 36 | B152: Royal Oak Inn | C152: JENNER | D152: Charlotte | E152: Head | F152: W | G152: 39 | H152: Innkeeper | J152: Gloucestershire | K152: Parish not known
C153: ILES | D153: Francis | E153: Visitor | F153: S | G153: 30 | J153: Gloucestershire | K153: Yate
C154: LEONARD | D154: Charles | E154: Visitor | F154: M | G154: 30 | H154: Gardener | J154: Gloucestershire | K154: Avening
C155: LEONARD | D155: Emily | E155: Visitor | F155: M | G155: 28 | J155: Gloucestershire | K155: Cinderford
C156: LEONARD | D156: Millicent | E156: Visitor | G156: 4 | J156: Gloucestershire | K156: Woodchester
A157: 37 | B157: Church Road | C157: LUSTY | D157: John George | E157: Head | F157: M | G157: 26 | H157: Cloth Worker | J157: Gloucestershire | K157: Kingstanley
C158: LUSTY | D158: Emily J | E158: Wife | F158: M | G158: 26 | H158: Cloth Worker | J158: Gloucestershire | K158: Kingstanley
C159: LUSTY | D159: Effie L | E159: Daur | G159: 3 | J159: Gloucestershire | K159: Kingstanley
C160: LUSTY | D160: Mabel A | E160: Daur | G160: 2 | J160: Gloucestershire | K160: Kingstanley
C161: SMITH | D161: Julie A | E161: Servant | F161: S | G161: 16 | H161: General Servant Domestic | I161: Servant | J161: Gloucestershire | K161: Kingstanley
A162: 38 | B162: Church Road | C162: DAVIES | D162: Edward | E162: Head | F162: M | G162: 35 | H162: Cloth Fulling | J162: Gloucestershire | K162: Eastwick
C163: DAVIES | D163: Alice M | E163: Wife | F163: M | G163: 37 | H163: Cloth Mending | J163: Gloucestershire | K163: Kingstanley
C164: DAVIES | D164: George K | E164: Son | G164: 10 | H164: Scholar | I164: School | J164: Gloucestershire | K164: Rodborough
C165: DAVIES | D165: Edward R | E165: Son | G165: 5 | H165: Scholar | I165: School | J165: Gloucestershire | K165: Rodborough
C166: HABGOOD | D166: Ruth | E166: Boarder | F166: S | G166: 27 | H166: Cloth Mending | J166: Gloucestershire | K166: Woodchester
A167: 39 | B167: Oakley House | C167: PERKINS | D167: Alfred | E167: Head | F167: M | G167: 70 | H167: Pin Manufacturer | J167: Gloucestershire | K167: Eastington
C168: PERKINS | D168: Penninah | E168: Wife | F168: M | G168: 69 | J168: Gloucestershire | K168: Wotton u Edge
C169: PERKINS | D169: Catherine E | E169: Daur | F169: S | G169: 44 | J169: Gloucestershire | K169: Kingstanley
C170: MILLS | D170: Alice | E170: Daur | F170: S | G170: 43 | H170: General Servant Domestic | J170: Gloucestershire | K170: Painswick
A171: 40 | B171: Berrymore Cotts | C171: HERBERT | D171: Adolphus | E171: Head | F171: M | G171: 32 | H171: Pattern Maker | J171: Gloucestershire | K171: Woodchester
C172: HERBERT | D172: Ellen | E172: Wife | F172: M | G172: 33 | J172: Gloucestershire | K172: Avening
C173: HERBERT | D173: Ellen | E173: Daur | G173: 9 | H173: Scholar | I173: School | J173: Gloucestershire | K173: Woodchester
C174: HERBERT | D174: Edith | E174: Daur | G174: 7 | H174: Scholar | I174: School | J174: Gloucestershire | K174: Woodchester
A175: 41 | B175: Berrymore Cotts | C175: CARTER | D175: George | E175: Head | F175: M | G175: 26 | H175: Cowman Agricultural Lab | J175: Gloucestershire | K175: South Cerney
C176: CARTER | D176: Rose | E176: Wife | F176: M | G176: 24 | J176: Gloucestershire | K176: Horsley
C177: CARTER | D177: George N | E177: Son | G177: 8mths | J177: Gloucestershire | K177: Horsley
A178: 42 | B178: Berrymore Cotts | C178: PRIDE | D178: Henry H | E178: Head | F178: M | G178: 49 | H178: Gardener Dom Serv | J178: Gloucestershire | K178: Selsley
C179: PRIDE | D179: Alice | E179: Wife | F179: M | G179: 42 | H179: Housemaid Dom Serv | J179: Wiltshire | K179: Poole Keynes
C180: PRIDE | D180: Henry T | E180: Son | G180: 11 | H180: Scholar | I180: School | J180: Gloucestershire | K180: Woodchester
C181: PRIDE | D181: John H | E181: Son | G181: 9 | J181: Gloucestershire | K181: Woodchester
C182: PRIDE | D182: Alice L | E182: Daur | G182: 8 | J182: Gloucestershire | K182: Woodchester
C183: PRIDE | D183: Frank L | E183: Son | G183: 4 | J183: Gloucestershire | K183: Woodchester
A184: 43 | B184: Berrymore Cotts | C184: PAYNE | D184: George | E184: Head | F184: M | G184: 67 | H184: Cowman Agricultural Lab | J184: Gloucestershire | K184: Wick Rissington
C185: PAYNE | D185: Caroline M | E185: Wife | F185: M | G185: 67 | J185: Gloucestershire | K185: Cam
A186: 44 | C186: TOVEY | D186: Albert | E186: Head | F186: M | G186: 27 | H186: Carter Agricultural Lab | J186: Gloucestershire | K186: Lechlade
C187: TOVEY | D187: Emily | E187: Wife | F187: M | G187: 26 | J187: Berkshire | K187: Childre
C188: TOVEY | D188: Eliza A | E188: Daur | G188: 5 | H188: Scholar | I188: School | J188: Gloucestershire | K188: Fairford
C189: TOVEY | D189: Elsie M | E189: Daur | G189: 1 | J189: Gloucestershire | K189: Woodchester
C190: DAVIS | D190: Charlotte | E190: Visitor | G190: 12 | H190: Scholar | I190: School | J190: Gloucestershire | K190: Painswick
C191: DAVIS | D191: Annie | E191: Visitor | G191: 10 | H191: Scholar | I191: School | J191: Gloucestershire | K191: Miserden
A192: 45 | B192: Berrymore Cotts | C192: BARTLETT | D192: Charles | E192: Head | F192: M | G192: 34 | H192: Cloth Mill Hand | J192: Gloucestershire | K192: Chedworth
C193: BARTLETT | D193: Ellen | E193: Wife | F193: M | G193: 29 | J193: Gloucestershire | K193: Aldswith
C194: BARTLETT | D194: Frank C | E194: Son | G194: 6 | H194: Scholar | I194: School | J194: Gloucestershire | K194: Woodchester
C195: BARTLETT | D195: Arthur F | E195: Son | G195: 2 | J195: Gloucestershire | K195: Woodchester
C196: BARTLETT | D196: Fred | E196: Brother | F196: S | G196: 17 | H196: Carter Agricultural Lab | J196: Gloucestershire | K196: Chedworth
C197: ROBERTS | D197: Winifred | E197: Boarder | F197: W | G197: 86 | J197: Gloucestershire | K197: Woodchester
A198: 46 | B198: Berrymore Cotts | C198: NOTLEY | D198: Henry | E198: Head | F198: M | G198: 41 | H198: Coachman Dom Serv | J198: Somerset | K198: Huntspill
C199: NOTLEY | D199: Louisa | E199: Wife | F199: M | G199: 42 | J199: Gloucestershire | K199: Bristol
C200: NOTLEY | D200: William N | E200: Son | F200: S | G200: 14 | H200: Scholar | I200: School | J200: Shropshire | K200: The Nash
... 821 more rows

Sheet Woodcensus01
A1: No | B1: Road, Street etc | C1: Surname | D1: Christian Name | E1: Relationship to Head | F1: Single or Married | G1: Age | H1: Occupation | I1: Occ Type | J1: County of Birth | K1: Place of Birth
A2: 1 | B2: Priory Cottage | C2: DAVIS | D2: Richard | E2: Head | F2: M | G2: 34 | H2: Gardener Domestic | J2: Gloucestershire | K2: Pitchcombe
C3: DAVIS | D3: Elizabeth J | E3: Wife | F3: M | G3: 39 | J3: Gloucestershire | K3: Nailsworth
C4: DAVIS | D4: Lilian H | E4: Daur | F4: S | G4: 10 | J4: Gloucestershire | K4: Stroud | O4: Age | P4: Total | Q4: School | R4: Training | S4: Cloth | T4: Pins | U4: Servant | V4: Agricultural | W4: Apprentice | X4: Misc | Y4: Not Recorded
C5: DAVIS | D5: Alfred J | E5: Son | F5: S | G5: 9 | J5: Gloucestershire | K5: Woodchester | O5: 5 | P5: =COUNTIFS($G$2:$G$823,$O5) -> 22 | Q5: =COUNTIFS($G$2:$G$823,$O5,$I$2:$I$823,Q$4) -> 5 | R5: =COUNTIFS($G$2:$G$823,$O5,$I$2:$I$823,R$4) -> 0 | S5: 0 | T5: 0 | U5: 0 | V5: 0 | W5: 0 | X5: 0 | Y5: =P5-SUM(Q5:X5) -> 17
C6: DAVIS | D6: Richard R | E6: Son | G6: 4 | J6: Gloucestershire | K6: Woodchester | O6: 6 | P6: =COUNTIFS($G$2:$G$823,$O6) -> 10 | Q6: =COUNTIFS($G$2:$G$823,$O6,$I$2:$I$823,Q$4) -> 2 | R6: 0 | S6: 0 | T6: 0 | U6: 0 | V6: 0 | W6: 0 | X6: 0 | Y6: =P6-SUM(Q6:X6) -> 8
A7: 2 | B7: The Priory | C7: CHOLMELEY | D7: Penelope | E7: Head | F7: W | G7: 82 | H7: Living on own means | J7: Somerset | K7: Yeovil | O7: 7 | P7: 16 | Q7: 5 | R7: 0 | S7: 0 | T7: 0 | U7: 0 | V7: 0 | W7: 0 | X7: 0 | Y7: 11
C8: METCALFE | D8: Catherine M | E8: Step Daur | F8: W | G8: 46 | H8: Living on own means | J8: Gloucestershire | K8: Woodchester | O8: 8 | P8: 25 | Q8: 13 | R8: 0 | S8: 0 | T8: 0 | U8: 0 | V8: 0 | W8: 0 | X8: 0 | Y8: 12
C9: WILLIS | D9: Sarah | E9: Servant | F9: S | G9: 48 | H9: Cook Domestic | J9: Derbyshire | K9: Findon | O9: 9 | P9: 17 | Q9: 4 | R9: 0 | S9: 0 | T9: 0 | U9: 0 | V9: 0 | W9: 0 | X9: 0 | Y9: 13
C10: GODWEN | D10: Ann | E10: Servant | F10: S | G10: 30 | H10: Lady's Maid Domestic | J10: Worcs | K10: Alverchurch | O10: 10 | P10: 14 | Q10: 4 | R10: 2 | S10: 0 | T10: 0 | U10: 0 | V10: 0 | W10: 0 | X10: 0 | Y10: 8
C11: BREADMORE | D11: Alice | E11: Servant | F11: S | G11: 26 | H11: Housemaid Domestic | J11: Berks | K11: Bright Walton | O11: 11 | P11: 14 | Q11: 9 | R11: 1 | S11: 0 | T11: 0 | U11: 0 | V11: 0 | W11: 0 | X11: 0 | Y11: 4
C12: BALLEN | D12: Lily | E12: Servant | F12: S | G12: 24 | H12: Parlourmaid Domestic | J12: Somerset | K12: Chilton Cantils | O12: 12 | P12: 15 | Q12: 7 | R12: 0 | S12: 0 | T12: 0 | U12: 0 | V12: 0 | W12: 0 | X12: 1 | Y12: 7
C13: TAYLOR | D13: Mary K | E13: Servant | F13: S | G13: 16 | H13: Kitchenmaid Domestic | I13: Servant | J13: Hampshire | K13: Tadley | O13: 13 | P13: 13 | Q13: 5 | R13: 1 | S13: 1 | T13: 0 | U13: 1 | V13: 0 | W13: 0 | X13: 3 | Y13: 2
A14: 3 | B14: Selsley Road | C14: KNIGHT | D14: William | E14: Head | F14: M | G14: 43 | H14: Saw Sharpener | J14: Gloucestershire | K14: Longhope | O14: 14 | P14: 12 | Q14: 0 | R14: 0 | S14: 0 | T14: 2 | U14: 2 | V14: 0 | W14: 0 | X14: 5 | Y14: 3
C15: KNIGHT | D15: Emily J | E15: Wife | F15: M | G15: 37 | H15: Cloth Weaver | J15: Gloucestershire | K15: Woodchester | O15: 15 | P15: 16 | Q15: 0 | R15: 3 | S15: 1 | T15: 3 | U15: 1 | V15: 0 | W15: 3 | X15: 3 | Y15: 2
C16: KNIGHT | D16: Florence E | E16: Daur | F16: S | G16: 15 | H16: Teacher Elementary School | I16: Misc | J16: Gloucestershire | K16: Woodchester | O16: 16 | P16: 18 | Q16: 2 | R16: 2 | S16: 0 | T16: 2 | U16: 4 | V16: 0 | W16: 1 | X16: 5 | Y16: 2
C17: KNIGHT | D17: Lillie M | E17: Daur | F17: S | G17: 13 | J17: Gloucestershire | K17: Woodchester
A18: 4 | B18: Mill Cottages | C18: ADAMS | D18: Jacob | E18: Head | F18: M | G18: 46 | H18: Railway Porter | J18: Gloucestershire | K18: Horsley
C19: ADAMS | D19: Annie | E19: Wife | F19: M | G19: 44 | H19: Dressmaker | J19: Gloucestershire | K19: Horsley
C20: ADAMS | D20: Alma | E20: Daur | F20: S | G20: 24 | H20: Tailoress | J20: Gloucestershire | K20: Horsley
C21: ADAMS | D21: Theresa | E21: Daur | F21: S | G21: 21 | H21: Tailoress | J21: Gloucestershire | K21: Woodchester
C22: ADAMS | D22: Rupert | E22: Son | F22: S | G22: 17 | H22: Pattern Maker Brass Foundry | J22: Gloucestershire | K22: Woodchester
C23: ADAMS | D23: Margaret | E23: Daur | F23: S | G23: 14 | H23: Tailoress | I23: Misc | J23: Gloucestershire | K23: Woodchester
C24: ADAMS | D24: Percy | E24: Son | F24: S | G24: 13 | H24: Mill Hand Cutters Room Cloth Mill | I24: Cloth | J24: Gloucestershire | K24: Woodchester
C25: BEST | D25: Mabel | E25: Boarder | F25: S | G25: 22 | H25: Teacher Elementary School | J25: Gloucestershire | K25: Gloucester
A26: 5 | B26: Mill Cottages | C26: HOWELL | D26: John | E26: Head | F26: M | G26: 26 | H26: Carter Saw Mill | J26: Gloucestershire | K26: Downend, Horsley
C27: HOWELL | D27: Lucy | E27: Wife | F27: M | G27: 26 | J27: Gloucestershire | K27: Bartonend, Horsley
C28: HOWELL | D28: Morris | E28: Son | G28: 2 | J28: Gloucestershire | K28: Theescombe
C29: HOWELL | D29: Francis | E29: Son | G29: 11mths | J29: Gloucestershire | K29: Woodchester
A30: 6 | B30: Mill Cottages | C30: BOWIS | D30: John | E30: Head | F30: M | G30: 54 | H30: Banker Mason | J30: Gloucestershire | K30: Avening
C31: BOWIS | D31: Mary A | E31: Wife | F31: M | G31: 48 | H31: Tailoress | J31: Gloucestershire | K31: Avening
C32: BOWIS | D32: Ewart E | E32: Son | F32: S | G32: 18 | H32: Iron Moulder Engineering | J32: Gloucestershire | K32: Avening
C33: PEGLER | D33: Sidney | E33: Boarder | F33: S | G33: 17 | H33: Coachman Domestic | J33: Gloucestershire | K33: Bisley
A34: 7 | B34: Mill Cottages | C34: DEE | D34: John W | E34: Head | F34: M | G34: 34 | H34: Engine Driver?? Stick Factory | J34: Gloucestershire | K34: Avening
C35: DEE | D35: Jane | E35: Wife | F35: M | G35: 28 | J35: Gloucestershire | K35: Forest Green
C36: DEE | D36: George H | E36: Son | G36: 10 | J36: Gloucestershire | K36: Forest Green
C37: DEE | D37: Ethel F | E37: Daur | G37: 8 | J37: Gloucestershire | K37: Forest Green
C38: DEE | D38: Flossie M | E38: Daur | G38: 3 | J38: Gloucestershire | K38: Forest Green
C39: DEE | D39: John W | E39: Son | G39: 7mths | J39: Gloucestershire | K39: Woodchester
A40: 8 | B40: Selsley Road | C40: CORDWELL | D40: Edward W | E40: Head | F40: M | G40: 55 | H40: Joiner | J40: Gloucestershire | K40: Woodchester
B41: Lancaster House | C41: CORDWELL | D41: Annie | E41: Wife | F41: M | G41: 53 | J41: Gloucestershire | K41: Horsley
B42: Sub Post Office | C42: CORDWELL | D42: Lillie H | E42: Daur | F42: S | G42: 24 | J42: Gloucestershire | K42: Woodchester
C43: CORDWELL | D43: Innocontuta S | E43: Daur | F43: S | G43: 18 | H43: Assists in Post Office | J43: Gloucestershire | K43: Woodchester
C44: CORDWELL | D44: Marjorie C | E44: Daur | F44: S | G44: 15 | J44: Gloucestershire | K44: Woodchester
A45: 9 | B45: Selsley Road | C45: HUNT | D45: Annie | E45: Head | F45: W | G45: 59 | H45: Flock Worker | J45: Gloucestershire | K45: Rodborough
A46: 10 | B46: The Cottage | C46: BARTLETT | D46: Charles | E46: Head | F46: M | G46: 43 | H46: Coachman Domestic | J46: Gloucestershire | K46: Chedworth
B47: Woodchester Lodge | C47: BARTLETT | D47: Ellen | E47: Wife | F47: M | G47: 39 | J47: Gloucestershire | K47: Gloucester
C48: BARTLETT | D48: Frank | E48: Son | F48: S | G48: 16 | H48: Butchery Assistant in shop | I48: Misc | J48: Gloucestershire | K48: Woodchester
C49: BARTLETT | D49: Frederick | E49: Son | F49: S | G49: 12 | J49: Gloucestershire | K49: Woodchester
C50: BARTLETT | D50: Percy | E50: Son | G50: 8 | J50: Gloucestershire | K50: Amberley
C51: BARTLETT | D51: Wallis | E51: Son | G51: 6mths | J51: Gloucestershire | K51: Woodchester
C52: ANDREWS | D52: Sophia | E52: M in law | F52: W | G52: 60 | J52: Worcs | K52: Worcester
A53: 11 | B53: Woodchester Lodge | C53: WORKMAN | D53: Francis N | E53: Head | F53: M | G53: 61 | H53: Timber Merchant | J53: Gloucestershire | K53: Woodchester
C54: WORKMAN | D54: Mary A | E54: Wife | F54: M | G54: 63 | J54: Monmouth | K54: Chepstow
C55: WORKMAN | D55: Eliza A | E55: Daur | F55: S | G55: 41 | J55: Gloucestershire | K55: Woodchester
C56: WORKMAN | D56: Frank E | E56: Son | F56: S | G56: 24 | J56: Gloucestershire | K56: Woodchester
C57: WORKMAN | D57: Henry | E57: Brother | F57: S | G57: 60 | H57: Timber Merchant | J57: Gloucestershire | K57: Woodchester
C58: LA TROBE | D58: Edith S | E58: Visitor | F58: S | G58: 24 | J58: New Zealand
C59: HISCOX | D59: Kate R | E59: Servant | F59: S | G59: 23 | H59: Cook Domestic | J59: Wiltshire | K59: Blunsdon St Andrews
C60: MORGAN | D60: Charlotte | E60: Servant | F60: S | G60: 19 | H60: Housemaid Domestic | J60: Gloucestershire | K60: Old Croft
A61: 12 | B61: Southfields | C61: FIELD | D61: Ellen Emma | E61: Servant in charge | F61: S | G61: 19 | H61: General Servant | J61: Gloucestershire | K61: Stroud
C62: WYMAN | D62: Edith E | E62: Servant | F62: S | G62: 16 | H62: Nurse | I62: Servant | J62: Gloucestershire | K62: Stroud
C63: HUMPIDGE | D63: Rose M | E63: Daur | G63: 5 | J63: Gloucestershire | K63: Rodborough
C64: HUMPIDGE | D64: Annie M | E64: Daur | G64: 1 | J64: Gloucestershire | K64: Rodborough
A65: 13 | B65: Southfields Cottage | C65: HASTE | D65: William | E65: Head | F65: M | G65: 49 | H65: Packer on Railway | J65: Somerset | K65: Bridgwater
C66: HASTE | D66: Susan | E66: Wife | F66: M | G66: 45 | J66: Gloucestershire | K66: Beverstone
C67: HASTE | D67: Edith M | E67: Daur | F67: S | G67: 12 | J67: Gloucestershire | K67: Woodchester
C68: HASTE | D68: Ethel E | E68: Daur | F68: S | G68: 11 | J68: Gloucestershire | K68: Woodchester
C69: HASTE | D69: Alfred W | E69: Son | F69: S | G69: 8 | J69: Gloucestershire | K69: Woodchester
A70: 14 | B70: Church Cottages | C70: CAUDLE | D70: Ann | E70: Head | F70: W | G70: 72 | H70: Living on own means | J70: Gloucestershire | K70: Rodborough
C71: FUGE | D71: Ellen | E71: Boarder | F71: W | G71: 75 | H71: Sewing Mistress Elementary School | J71: Carmarthen | K71: Carmarthen
A72: 15 | B72: Church Cottages | C72: LUSTY | D72: George J | E72: Head | F72: M | G72: 49 | H72: Gardener Domestic | J72: Gloucestershire | K72: Stroud
C73: LUSTY | D73: Harriet L | E73: Wife | F73: M | G73: 58 | J73: Gloucestershire | K73: Wotton u Edge
C74: LUSTY | D74: William | E74: Son | F74: S | G74: 16 | H74: Tailor's Cutter | I74: Misc | J74: Gloucestershire | K74: Rodborough
C75: LUSTY | D75: Kate | E75: Daur | F75: S | G75: 16 | J75: Gloucestershire | K75: Rodborough
A76: 16 | B76: Elmslea | C76: NEWMAN | D76: Cecilia | E76: Head | F76: S | G76: 50 | H76: Living on own means | J76: Russia | K76: British Subject
C77: GARDNER | D77: Emily | E77: Servant | F77: S | G77: 32 | H77: General Servant Domestic | J77: Gloucestershire | K77: Bisley
A78: 17 | B78: Selsley Road | C78: ELLIOT | D78: William | E78: Head | F78: W | G78: 63 | H78: Traveller for Woollen Manufacturer | J78: Cumberland | K78: Carlisle
C79: ELLIOT | D79: Daisy | E79: Daur | F79: S | G79: 25 | H79: Daily Governess | J79: Gloucestershire | K79: Stroud
C80: LONG | D80: Elizabeth | E80: Servant | F80: S | G80: 19 | H80: General Servant Domestic | J80: Gloucestershire | K80: Bisley
A81: 18 | B81: Selsley Road | C81: SMITH | D81: William | E81: Head | F81: M | G81: 34 | H81: Coachman Domestic | J81: Gloucestershire | K81: Coaley
C82: SMITH | D82: Minnie | E82: Wife | F82: M | G82: 34 | J82: Gloucestershire | K82: Coaley
C83: SMITH | D83: Olive | E83: Daur | F83: S | G83: 7 | J83: Glamorgan | K83: Pontyclun
C84: SMITH | D84: Winifred | E84: Daur | F84: S | G84: 5 | J84: Glamorgan | K84: Pontyclun
A85: 19 | B85: Selsley Road | C85: DAVIES | D85: Edward | E85: Head | F85: M | G85: 45 | H85: Grocer | J85: Gloucestershire | K85: Eastington
C86: DAVIES | D86: Alice M | E86: Wife | F86: M | G86: 47 | H86: Cloth Forewoman Mending Room | J86: Gloucestershire | K86: Kingstanley
C87: DAVIES | D87: George W | E87: Son | F87: S | G87: 19 | H87: Carpenter | J87: Gloucestershire | K87: Rodborough
C88: DAVIES | D88: Edward R | E88: sp | F88: S | G88: 15 | H88: Clerk Cloth Mill | I88: Cloth | J88: Gloucestershire | K88: Rodborough
A89: 20 | B89: Selsley Road | C89: BOWSTEAD | D89: Constance M | E89: Head | F89: S | G89: 51 | H89: Living on own means | J89: Gloucestershire | K89: Hyde Minchinhampton
B90: The Firs | C90: MARMONT | D90: Millicent J | E90: Servant | F90: S | G90: 48 | H90: Housekeeper Domestic | J90: Gloucestershire | K90: Chalford
C91: GRIFFIN | D91: Kate L | E91: Servant | F91: S | G91: 20 | H91: House Parlourmaid Domestic | J91: Gloucestershire | K91: Chalford
A92: 21 | B92: Selsley Road | C92: MABBETT | D92: John | E92: Head | F92: M | G92: 45 | H92: Pin Manufacturer's Assistant | J92: Gloucestershire | K92: Cainscross
C93: MABBETT | D93: Clara | E93: Wife | F93: M | G93: 46 | J93: Gloucestershire | K93: Woodchester
C94: MABBETT | D94: Clara M | E94: Daur | F94: S | G94: 21 | J94: London | K94: Shepherds Bush
C95: MABBETT | D95: Henry P | E95: Son | F95: S | G95: 18 | H95: Journalist | J95: London | K95: Shepherds Bush
C96: MABBETT | D96: William E | E96: Son | F96: S | G96: 15 | H96: Clothier's Apprentice | I96: Apprentice | J96: Kent | K96: Tonbridge
C97: MABBETT | D97: Ethel K | E97: Daur | G97: 13 | J97: Kent | K97: Tonbridge
C98: MABBETT | D98: Ernest J | E98: Son | G98: 12 | J98: Kent | K98: Tonbridge
C99: MABBETT | D99: Valentine | E99: Son | G99: 9 | J99: Kent | K99: Tonbridge
C100: MABBETT | D100: Cecil C | E100: Son | G100: 7 | J100: London | K100: Shepherds Bush
C101: MABBETT | D101: Dorothy | E101: Daur | G101: 4 | J101: Gloucestershire | K101: Rodborough
C102: MABBETT | D102: Irene | E102: Daur | G102: 3 | J102: Gloucestershire | K102: Woodchester
A103: 22 | B103: Selsley Road | C103: HERBERT | D103: Henry | E103: Head | F103: M | G103: 70 | H103: Retired Gardener | J103: Gloucestershire | K103: Stanley
C104: HERBERT | D104: Mary | E104: Wife | F104: M | G104: 69 | H104: Laundress | J104: Gloucestershire | K104: Amberley
C105: SMART | D105: Lilian R | E105: Grand daur | F105: S | G105: 25 | H105: Laundress | J105: Gloucestershire | K105: Uplands Stroud
C106: WOODWARD | D106: Albert | E106: Boarder | F106: S | G106: 15 | H106: Groom Domestic | I106: Servant | J106: Gloucestershire | K106: Nympsfield
A107: 23 | B107: Selsley Road | C107: ALDER | D107: Emma | E107: Head | F107: W | G107: 51 | H107: Weaver Woollen Mill | J107: Gloucestershire | K107: Woodchester
C108: ALDER | D108: Frederick | E108: Son | F108: S | G108: 21 | H108: Bricklayer's Labourer | J108: Gloucestershire | K108: Woodchester
A109: 24 | B109: Selsley Road | C109: BEARD | D109: Fanny | E109: Head | F109: S | G109: 33 | H109: Flock & Shoddy Mill Hand | J109: Gloucestershire | K109: Amberley
C110: BEARD | D110: Harry | E110: Nephew | F110: S | G110: 13 | H110: Soapping Stick Umbrella Stick Mill | I110: Misc | J110: Gloucestershire | K110: Woodchester
A111: 25 | B111: Selsley Road | C111: GOULDING | D111: Harry | E111: Head | F111: M | G111: 29 | H111: Labourer Saw Mill | J111: Gloucestershire | K111: Woodchester
C112: GOULDING | D112: Mabel | E112: Wife | F112: M | G112: 24 | J112: Gloucestershire | K112: Coaley
A113: 26 | B113: Selsley Road | C113: WHITE | D113: Elijah | E113: Head | F113: M | G113: 81 | H113: Retired Carpenter | J113: Gloucestershire | K113: Randwick
C114: WHITE | D114: Alice | E114: Wife | F114: M | G114: 86 | J114: Gloucestershire | K114: Kingstanley
C115: WHITE | D115: Mary A C | E115: Daur | F115: S | G115: 49 | J115: Gloucestershire | K115: Woodchester
A116: 27 | B116: Selsley Road | C116: WALL | D116: Mary Ann | E116: Head | F116: W | G116: 66 | H116: Laundress | J116: Gloucestershire | K116: Woodchester
C117: WALL | D117: Georgina | E117: Daur | F117: S | G117: 22 | H117: Laundress | J117: Gloucestershire | K117: Woodchester
A118: 28 | B118: Berrymore Cottages | C118: PAYNE | D118: George | E118: Head | F118: W | G118: 78 | H118: Retired Cowman | J118: Gloucestershire | K118: Wick Rissington
A119: 29 | B119: Berrymore Cottages | C119: BOULTON | D119: Henry | E119: Head | F119: M | G119: 34 | H119: Labourer on the Roads | J119: Gloucestershire | K119: Efford
C120: BOULTON | D120: Lucy | E120: Wife | F120: M | G120: 30 | J120: Gloucestershire | K120: Randwick
C121: BOULTON | D121: Charles H | E121: Son | F121: S | G121: 6 | J121: Gloucestershire | K121: Woodchester
C122: BOULTON | D122: Beatrice S | E122: Daur | G122: 2 | J122: Gloucestershire | K122: Woodchester
C123: BOULTON | D123: Percy A J | E123: Son | G123: 3mths | J123: Gloucestershire | K123: Woodchester
A124: 30 | B124: Berrymore Cottages | C124: UZZELL | D124: William | E124: Head | F124: M | G124: 40 | H124: Cowman on Farm | J124: Gloucestershire | K124: Westonbirt
C125: UZZELL | D125: Ellen L | E125: Wife | F125: M | G125: 30 | J125: Somerset | K125: West Camel
C126: UZZELL | D126: Minnie E | E126: Daur | F126: S | G126: 10 | J126: Wiltshire | K126: Swindon
C127: UZZELL | D127: John W C | E127: Son | G127: 8 | J127: Wiltshire | K127: Swindon
C128: UZZELL | D128: Daisy M | E128: Daur | G128: 5 | J128: Gloucestershire | K128: Bristol
C129: UZZELL | D129: William G | E129: Son | G129: 2 | J129: Wiltshire | K129: Coate Swindon
C130: UZZELL | D130: Charles J W | E130: Son | G130: 4mths | J130: Gloucestershire | K130: Woodchester
A131: 31 | B131: The Dairy Farm | C131: FAWKES | D131: Ernest L A | E131: Head | F131: M | G131: 27 | H131: Farmer & Milk Purveyor | J131: Gloucestershire | K131: Thrupp
B132: Selsley Road | C132: FAWKES | D132: Mary | E132: Wife | F132: M | G132: 27 | J132: Gloucestershire | K132: Cam
C133: FAWKES | D133: Victor L | E133: Son | G133: 2mths | J133: Gloucestershire | K133: Woodchester
C134: PEGLER | D134: Annie | E134: Sister in law | F134: S | G134: 25 | H134: Mother's Help Domestic | J134: Gloucestershire | K134: Cam
A135: 32 | B135: Woodchester Rectory | C135: SMITH | D135: Frederick | E135: Head | F135: M | G135: 71 | H135: Clergyman Church of England | J135: Lancashire | K135: Eccles
C136: SMITH | D136: Clara | E136: Wife | F136: M | G136: 68 | J136: Herts | K136: Tring
C137: SMITH | D137: Amy G Litt | E137: Daur | F137: S | G137: 41 | H137: Lecturer (Educational) | J137: Somerset | K137: Widcombe
C138: SAUNDERS | D138: Sarah H | E138: Servant | F138: S | G138: 37 | H138: Cook Domestic | J138: Gloucestershire | K138: Whiteshill
C139: THACKER | D139: Lily L | E139: Servant | F139: S | G139: 17 | H139: Housemaid Domestic | J139: Gloucestershire | K139: Amberley
A140: 33 | B140: Cottage | C140: MOORE | D140: John | E140: Head | F140: M | G140: 29 | H140: Coachman Domestic | J140: Cheshire | K140: Wilmslow
B141: Woodchester Lawn | C141: MOORE | D141: Annie | E141: Wife | F141: M | G141: 26 | J141: Somerset | K141: N Cheriton
C142: MOORE | D142: Hettie | E142: Daur | G142: 5 | J142: Somerset | K142: N Cheriton
C143: MOORE | D143: Joe | E143: Son | G143: 4 | J143: Somerset | K143: N Cheriton
A144: 34 | B144: Woodchester Lawn | C144: AIKIN-SNEATH | D144: Thomas | E144: Head | F144: M | G144: 66 | H144: Clergyman Church of England | J144: Cambridge | K144: Cambridge
C145: AIKIN-SNEATH | D145: Jessie | E145: Wife | F145: M | G145: 62 | K145: London
C146: AIKIN-SNEATH | D146: Edith E | E146: Daur | F146: S | G146: 33 | J146: Norfolk | K146: Tivetshall Rectory
C147: AIKIN-SNEATH | D147: Eva M | E147: Daur | F147: S | G147: 26 | J147: Bucks | K147: Blealow Rectory
C148: SUMMERS | D148: Solomon | E148: Servant | F148: S | G148: 39 | H148: Butler Domestic | J148: Wales | K148: Cardiff
C149: HARWOOD | D149: Minnie | E149: Servant | F149: S | G149: 28 | H149: Housemaid Domestic | J149: Somerset | K149: Aller
C150: MILES | D150: Lily L | E150: Servant | F150: S | G150: 20 | H150: Lady's Maid Domestic | J150: Wiltshire | K150: Heptesbury
C151: CHANDLER | D151: Ethel I | E151: Servant | F151: S | G151: 21 | H151: Kitchenmaid Domestic | J151: Gloucestershire | K151: Rodborough
C152: MILLS | D152: Ethel G | E152: Servant | F152: S | G152: 16 | H152: Gardener Domestic | I152: Servant | J152: Gloucestershire | K152: Chalford
A153: 35 | B153: Selsley Road | C153: MILLARD | D153: Isaac | E153: Head | F153: M | G153: 36 | J153: Wiltshire | K153: Littleton Drew
C154: MILLARD | D154: Annie | E154: Wife | F154: M | G154: 31 | J154: Wiltshire | K154: Nettleton
C155: MILLARD | D155: Walter | E155: Son | G155: 3 | J155: Wiltshire | K155: Grittleton
C156: MILLARD | D156: Wifrid | E156: Son | G156: 1 | J156: Wiltshire | K156: Grittleton
A157: 36 | B157: Royal Oak | C157: HIGGINS | D157: Clifford | E157: Head | F157: M | G157: 31 | H157: Tailor's Cutter | J157: Gloucestershire | K157: Coaley nr Dursley
C158: HIGGINS | D158: Annie | E158: Wife | F158: M | G158: 31 | J158: Gloucestershire | K158: Stroud
C159: HIGGINS | D159: Winnie | E159: Daur | G159: 6 | J159: Gloucestershire | K159: Stroud
C160: HIGGINS | D160: Horace | E160: Son | G160: 5 | J160: Gloucestershire | K160: Stroud
C161: HIGGINS | D161: Gilbert | E161: Son | G161: 3 | J161: Gloucestershire | K161: Woodchester
A162: 37 | B162: Oak Villas | C162: GARDNER | D162: Frederick | E162: Head | F162: M | G162: 55 | H162: Pin Whitener | J162: Gloucestershire | K162: Forest Green
C163: GARDNER | D163: Mary | E163: Wife | F163: M | G163: 53 | J163: Gloucestershire | K163: Hartley Bridge
C164: GARDNER | D164: Charles | E164: Son | F164: S | G164: 28 | J164: Gloucestershire | K164: Woodchester
C165: GARDNER | D165: Oliver | E165: Son | F165: S | G165: 23 | H165: Pattern Maker Brass Foundry | J165: Gloucestershire | K165: Woodchester
C166: GARDNER | D166: Frank | E166: Son | F166: S | G166: 20 | H166: Mechanic Brass Foundry | J166: Gloucestershire | K166: Woodchester
C167: GARDNER | D167: Walter | E167: Son | F167: S | G167: 18 | H167: Draughtsman Ships | J167: Gloucestershire | K167: Woodchester
C168: GARDNER | D168: Wilfrid | E168: Son | F168: S | G168: 17 | H168: Solicitor's Clerk (jnr) | J168: Gloucestershire | K168: Woodchester
C169: GARDNER | D169: Lily | E169: Daur | F169: S | G169: 16 | H169: Dressmaker's Apprentice | I169: Apprentice | J169: Gloucestershire | K169: Woodchester
C170: GARDNER | D170: Marian | E170: Daur | F170: S | G170: 11 | J170: Gloucestershire | K170: Woodchester
C171: GARDNER | D171: Sidney | E171: Son | F171: S | G171: 22 | H171: Grocer's Assistant in Shop | J171: Gloucestershire | K171: Woodchester
C172: LUSTY | D172: Maud | E172: Visitor | F172: S | G172: 21 | H172: No Occupation | J172: Gloucestershire | K172: Kingstanley
A173: 38 | B173: Oak Villas | C173: PAGE | D173: Arthur T | E173: Head | F173: M | G173: 37 | H173: Assistant Overseer Rate Collector | J173: Gloucestershire | K173: Bishops Cleeve, Cheltenham
C174: PAGE | D174: Gertrude C M | E174: Wife | F174: M | G174: 34 | J174: Gloucestershire | K174: Woodchester
C175: PAGE | D175: Florence L G | E175: Daur | F175: S | G175: 4 | J175: Gloucestershire | K175: Woodchester
A176: 39 | B176: Oakley House | C176: PERKINS | D176: Alfred | E176: Head | F176: M | G176: 80 | H176: Retired Pin Manufacturer | J176: Gloucestershire | K176: Eastington
C177: PERKINS | D177: Penninah | E177: Wife | F177: M | G177: 79 | J177: Gloucestershire | K177: Wotton u Edge
C178: PERKINS | D178: Catherine E | E178: Daur | F178: S | G178: 55 | J178: Gloucestershire | K178: Kingstanley
C179: TURNER | D179: Annie E | E179: Daur | F179: M | G179: 57 | J179: Gloucestershire | K179: Kingstanley
C180: DAKIN | D180: Edith O | E180: Daur | F180: M | G180: 38 | J180: Gloucestershire | K180: Woodchester
C181: RAWLINSON | D181: Anne | E181: Hospital Nurse | F181: S | G181: 35 | H181: Hospital Nurse | J181: Gloucestershire | K181: Woodchester
C182: SMITH | D182: Edith E | E182: Servant | F182: S | G182: 20 | H182: Housemaid Domestic | J182: Gloucestershire | K182: Coaley
C183: SMITH | D183: Annie E | E183: Servant | F183: S | G183: 18 | H183: Cook Domestic | J183: Gloucestershire | K183: Dyehouse Nailsworth
A184: 40 | B184: Berrymore Cottages | C184: HERBERT | D184: Adolphus | E184: Head | F184: M | G184: 42 | H184: Pattern Maker (Engineer) | J184: Gloucestershire | K184: Woodchester
C185: HERBERT | D185: Ellen | E185: Wife | F185: M | G185: 43 | J185: Gloucestershire | K185: Woodchester
C186: HERBERT | D186: Ellen | E186: Daur | F186: S | G186: 19 | H186: Tailoress | J186: Gloucestershire | K186: Woodchester
C187: HERBERT | D187: Edith | E187: Daur | F187: S | G187: 17 | H187: Tailoress | J187: Gloucestershire | K187: Woodchester
A188: 41 | B188: Berrymore Cottages | C188: WAGER | D188: Alfred | E188: Head | F188: M | G188: 36 | H188: Iron Moulder Engineering Works | J188: Gloucestershire | K188: Whiteshill
C189: WAGER | D189: Emily A | E189: Wife | F189: M | G189: 36 | J189: Gloucestershire | K189: Forest Green
C190: WAGER | D190: Henry J | E190: Son | F190: S | G190: 8 | J190: Gloucestershire | K190: Ebley
C191: WAGER | D191: Edith E | E191: Daur | G191: 7 | J191: Gloucestershire | K191: Woodchester
C192: WAGER | D192: Millicent E | E192: Daur | G192: 6 | J192: Gloucestershire | K192: Woodchester
C193: WAGER | D193: Evelyn M | E193: Daur | G193: 4 | J193: Gloucestershire | K193: Woodchester
C194: WAGER | D194: Edward D | E194: Son | G194: <1mth | J194: Gloucestershire | K194: Woodchester
A195: 42 | B195: Berrymore Cottages | C195: KIRBY | D195: Charles | E195: Head | F195: M | G195: 43 | H195: Labourer Timber Yard | J195: Gloucestershire | K195: Bisley
C196: KIRBY | D196: Charlotte B | E196: Wife | F196: M | G196: 42 | J196: Gloucestershire | K196: Selsley
C197: KIRBY | D197: Frederick C | E197: Son | F197: S | G197: 13 | H197: Stick Worker Ferrule Mounter | I197: Misc | J197: Gloucestershire | K197: Woodchester
C198: KIRBY | D198: Edith M | E198: Daur | F198: S | G198: 12 | J198: Gloucestershire | K198: Woodchester
C199: KIRBY | D199: William H | E199: Son | G199: 10 | J199: Gloucestershire | K199: Woodchester
C200: KIRBY | D200: Frances | E200: Daur | G200: 7 | J200: Gloucestershire | K200: Woodchester
... 776 more rows

Sheet Woodcensus11
A1: No | B1: Road, Street etc | C1: Surname | D1: Christian Name | E1: Relationship to Head | F1: Single or Married | G1: Age | H1: Years Married | I1: Children born | J1: Children alive | K1: Children dead | L1: Occupation | M1: Occ Type | N1: Industry or Service | O1: Whether employer, worker or working on own account | P1: County of Birth | Q1: Place of Birth | R1: No of Rooms | S1: Form signed by
A2: Enumeration District 09
A3: 1 | B3: The Priory | C3: CHOLMELEY | D3: Penelope | E3: Head | F3: W | G3: 93 | P3: Somerset | Q3: Yeovil | R3: 21 | S3: Catherine Maude Metcalfe
C4: METCALFE | D4: Catherine Maude | E4: Step dau | F4: W | G4: 56 | P4: Gloucestershire | Q4: Woodchester | W4: Age | X4: Total | Y4: School | Z4: Cloth | AA4: Pins | AB4: Servant | AC4: Agricultural | AD4: Apprentice | AE4: Misc | AF4: Not Recorded
C5: GOODFORD | D5: Emily Selina | E5: Niece | F5: S | G5: 56 | L5: Nurse (sick) | P5: Bucks | Q5: Eton College | W5: 5 | X5: =COUNTIFS($G$2:$G$837,$W5) -> 18 | Y5: =COUNTIFS($G$2:$G$837,$W5,$M$2:$M$837,Y$4) -> 16 | Z5: 0 | AA5: 0 | AB5: 0 | AC5: 0 | AD5: 0 | AE5: 0 | AF5: =X5-SUM(Y5:AE5) -> 2
C6: CHOLMELEY | D6: Margaret Flora | E6: Cousin | F6: S | G6: 40 | L6: Nurse (sick) | Q6: Kingston on Thames | W6: 6 | X6: =COUNTIFS($G$2:$G$837,$W6) -> 13 | Y6: =COUNTIFS($G$2:$G$837,$W6,$M$2:$M$837,Y$4) -> 13 | Z6: =COUNTIFS($G$2:$G$837,$W6,$M$2:$M$837,Z$4) -> 0 | AA6: 0 | AB6: 0 | AC6: 0 | AD6: 0 | AE6: 0 | AF6: 0
C7: PEACOCK | D7: Mary | E7: Servant | F7: S | G7: 56 | L7: Cook Domestic | P7: London | Q7: Chelsea | W7: 7 | X7: 14 | Y7: 12 | Z7: 0 | AA7: 0 | AB7: 0 | AC7: 0 | AD7: 0 | AE7: 0 | AF7: 2
C8: BOWDITCH | D8: Jane | E8: Servant | F8: S | G8: 48 | L8: Lady's Maid Domestic | P8: Dorset | Q8: Stratton Vill | W8: 8 | X8: 15 | Y8: 15 | Z8: 0 | AA8: 0 | AB8: 0 | AC8: 0 | AD8: 0 | AE8: 0 | AF8: 0
C9: DAVIE | D9: Rose | E9: Servant | F9: S | G9: 24 | L9: Housemaid Domestic | P9: Dorset | Q9: Stratton Vill | W9: 9 | X9: 19 | Y9: 18 | Z9: 0 | AA9: 0 | AB9: 0 | AC9: 0 | AD9: 0 | AE9: 0 | AF9: 1
C10: ANDREW | D10: Kate | E10: Servant | F10: S | G10: 22 | L10: Parlourmaid Domestic | P10: Berkshire | Q10: Wickfield | W10: 10 | X10: 17 | Y10: 16 | Z10: 0 | AA10: 0 | AB10: 0 | AC10: 0 | AD10: 0 | AE10: 0 | AF10: 0
C11: MOREMAN | D11: Marian Olinda R | E11: Servant | F11: S | G11: 16 | L11: Kitchenmaid Domestic | M11: Servant | P11: Gloucestershire | Q11: Watermoor Vill | W11: 11 | X11: 16 | Y11: 16 | Z11: 0 | AA11: 0 | AB11: 0 | AC11: 0 | AD11: 0 | AE11: 0 | AF11: 0
C12: WAGER | D12: Harry Melville | E12: Servant | F12: S | G12: 19 | L12: Groom Domestic | P12: Gloucestershire | Q12: Gloucester | W12: 12 | X12: =COUNTIFS($G$2:$G$837,$W12) -> 18 | Y12: =COUNTIFS($G$2:$G$837,$W12,$M$2:$M$837,Y$4) -> 17 | Z12: =COUNTIFS($G$2:$G$837,$W12,$M$2:$M$837,Z$4) -> 0 | AA12: 0 | AB12: 0 | AC12: 0 | AD12: 0 | AE12: 0 | AF12: 1
A13: 2 | B13: Priory Cottage | C13: DAVIS | D13: Richard | E13: Head | F13: M | G13: 44 | L13: Gardener Domestic | O13: Worker | P13: Gloucestershire | Q13: Pitchcombe | R13: 5 | S13: Richard Davis | W13: 13 | X13: 15 | Y13: 10 | Z13: 0 | AA13: 2 | AB13: 0 | AC13: 0 | AD13: 0 | AE13: 3 | AF13: 0
C14: DAVIS | D14: Elizabeth Jane | E14: Wife | F14: M | G14: 49 | H14: 21 | I14: 3 | J14: 3 | P14: Gloucestershire | Q14: Nailsworth | W14: 14 | X14: 15 | Y14: 1 | Z14: 1 | AA14: 3 | AB14: 6 | AC14: 0 | AD14: 1 | AE14: 1 | AF14: 2
C15: DAVIS | D15: Alfred James | E15: Son | F15: S | G15: 19 | L15: House Painter | O15: Worker | P15: Gloucestershire | Q15: Woodchester | W15: 15 | X15: 16 | Y15: 2 | Z15: 1 | AA15: 2 | AB15: 4 | AC15: 0 | AD15: 2 | AE15: 5 | AF15: 0
C16: DAVIS | D16: Richard Raymond | E16: Son | F16: S | G16: 14 | P16: Gloucestershire | Q16: Woodchester | W16: 16 | X16: 12 | Y16: 0 | Z16: 1 | AA16: 0 | AB16: 3 | AC16: 0 | AD16: 0 | AE16: 6 | AF16: 2
A17: 3 | B17: Coachman's Cottage | C17: MOORE | D17: John | E17: Head | F17: M | G17: 36 | L17: Coachman Domestic | P17: Cheshire | Q17: Wilmslow | R17: 7 | S17: John Moore
B18: Woodchester Lawn | C18: MOORE | D18: Annie | E18: Wife | F18: M | G18: 35 | H18: 15 | I18: 4 | J18: 4 | Q18: North Cheriton
C19: MOORE | D19: Harriet | E19: Dau | G19: 14 | L19: Assistant | M19: Misc | N19: Confectioner's Shop | Q19: North Cheriton
C20: MOORE | D20: Joe | E20: Son | G20: 13 | L20: Newsboy | M20: Misc | N20: News Agents | O20: Worker | Q20: North Cheriton
C21: MOORE | D21: Edith | E21: Dau | G21: 9 | L21: School | M21: School | P21: Gloucestershire | Q21: North Woodchester
C22: MOORE | D22: Irene | E22: Dau | G22: 8 | L22: School | M22: School | P22: Gloucestershire | Q22: North Woodchester
C23: MARTIN | D23: Thomas | E23: Nephew | G23: 10 | L23: School | M23: School | P23: Hampshire | Q23: Southampton
A24: 4 | B24: The Rectory | C24: SMITH | D24: Frederick | E24: Head | F24: W | G24: 81 | L24: Clergyman (Established Church) | P24: Lancashire | Q24: Eccles | R24: 12 | S24: Frederick Smith
C25: SMITH | D25: Henrietta Litt | E25: Dau | F25: S | G25: 52 | P25: Kent | Q25: Isle of Thanet
C26: SMITH | D26: Amy Gertrude Litt | E26: Dau | F26: S | G26: 51 | P26: Somerset | Q26: Bath
C27: CROPPER | D27: Charles Henry Edward | E27: Visitor | F27: M | G27: 45 | L27: Clergyman (Established Church) | P27: Yorkshire | Q27: Guisborough
C28: BIGGS | D28: Daisy Elizabeth | E28: Servant | F28: S | G28: 20 | L28: Cook Domestic | P28: Gloucestershire | Q28: S Cerney
C29: GRIFFIN | D29: Beatrice Emily | E29: Servant | F29: S | G29: 15 | L29: House parlourmaid Domestic | M29: Servant | P29: Gloucestershire | Q29: Eastington
A30: 5 | B30: The Grange | C30: PRICHARD | D30: Amos William | E30: Head | F30: M | G30: 52 | L30: Post Office Official (Postmaster) | N30: Post Office Service | O30: Worker | P30: Essex | Q30: Stratford | R30: 9 | S30: A W Prichard
C31: PRICHARD | D31: Jane Agnes | E31: Wife | F31: M | G31: 52 | H31: 30 | I31: 0 | P31: Essex | Q31: Colchester
C32: WITTS | D32: Lilian Maud | E32: Servant | F32: S | G32: 22 | L32: General Servant Domestic | N32: Domestic | O32: Worker | P32: Gloucestershire | Q32: Rodborough, Stroud
A33: 6 | B33: Selsley Hill | C33: HUGHES | D33: Henry | E33: Head | F33: M | G33: 48 | L33: Coachman Domestic | O33: Worker | P33: Wiltshire | Q33: Devizes | R33: 6 | S33: Henry Hughes
C34: HUGHES | D34: Rhoda | E34: Wife | F34: M | G34: 44 | H34: 24 | I34: 10 | J34: 10 | P34: Shropshire | Q34: Not Known
C35: HUGHES | D35: William | E35: Son | F35: S | G35: 16 | L35: Farm Labourer | M35: Agriculture | O35: Worker | P35: Somerset | Q35: Bath
C36: HUGHES | D36: Ethel | E36: Dau | G36: 14 | L36: Helps Mother | P36: Herefordshire | Q36: Ledbury
C37: HUGHES | D37: Arthur | E37: Son | G37: 10 | L37: School | M37: School | P37: Devon | Q37: Plymouth
C38: HUGHES | D38: Daisy | E38: Dau | G38: 8 | L38: School | M38: School | P38: Devon | Q38: Plymouth
C39: HUGHES | D39: Reginald | E39: Son | G39: 5 | L39: School | M39: School | P39: Somerset | Q39: Nailsworth nr Bristol
C40: HUGHES | D40: Lynda | E40: Dau | G40: 2 | P40: Gloucestershire | Q40: Mangotsfield nr Bristol
A41: 7 | B41: Selsley Hill | C41: KING | D41: Sidney | E41: Head | F41: M | G41: 52 | L41: Farm Labourer | O41: Worker | P41: Gloucestershire | Q41: Beverstone | R41: 6 | S41: Sidney King
C42: KING | D42: Catherine Maude | E42: Wife | F42: M | G42: 43 | H42: 22 | I42: 9 | J42: 9 | P42: Wiltshire | Q42: Norton
C43: KING | D43: Fred | E43: Son | F43: S | G43: 21 | L43: Wood Sawyer | N43: Saw Mills | O43: Worker | P43: Gloucestershire | Q43: Woodchester
C44: KING | D44: Florence | E44: Dau | F44: S | G44: 19 | L44: Pin Packer | N44: Perkins Pin Mills | O44: Worker | P44: Gloucestershire | Q44: Woodchester
C45: KING | D45: George | E45: Son | F45: S | G45: 17 | L45: Farm Labourer | O45: Worker | P45: Gloucestershire | Q45: Woodchester
C46: KING | D46: Adeline | E46: Dau | G46: 14 | L46: Pin Packer | M46: Pins | N46: Perkins Pin Mills | O46: Worker | P46: Gloucestershire | Q46: Woodchester
C47: KING | D47: Philip | E47: Son | G47: 12 | L47: School | M47: School | P47: Gloucestershire | Q47: Woodchester
C48: KING | D48: Herbert | E48: Son | G48: 10 | L48: School | M48: School | P48: Gloucestershire | Q48: Woodchester
C49: KING | D49: Douglas | E49: Son | G49: 7 | L49: School | M49: School | P49: Gloucestershire | Q49: Woodchester
C50: KING | D50: Dorothy | E50: Dau | G50: 5 | L50: School | M50: School | P50: Gloucestershire | Q50: Woodchester
C51: KING | D51: Clement | E51: Son | G51: 2 | P51: Gloucestershire | Q51: Woodchester
C52: COLLETT | D52: Rocoa | E52: Nephew | G52: 6 | L52: School | M52: School | P52: South Wales | Q52: Mountain Ash
A53: 8 | B53: Selsley Hill Farm | C53: FOWLER | D53: Albert | E53: Head | F53: M | G53: 38 | L53: Farmer | O53: Employer | P53: Herefordshire | Q53: Dorstone | R53: 9 | S53: Albert Fowler
C54: FOWLER | D54: Selina | E54: Wife | F54: M | G54: 40 | H54: 12 | I54: 1 | J54: 1 | P54: Herefordshire | Q54: Upton Bishop
C55: MELDING | D55: Alice St John | E55: Boarder | F55: S | G55: 53 | L55: Farming | O55: Employer | P55: India | Q55: Raffiafrank?
C56: DELAMERE | D56: Richard St John | E56: Pupil Farm | F56: S | G56: 22 | L56: Farm Student | O56: Worker | P56: Kent | Q56: Bexley
C57: FOWLER | D57: Frederick Russell | E57: Son | G57: 11 | L57: School | M57: School | P57: Herefordshire | Q57: Woolhope
C58: PERKINS | D58: Ethel Mary | E58: Servant | F58: S | G58: 19 | L58: General Servant Domestic | P58: Worcs | Q58: Badseylay?
A59: 9 | B59: Bown Hill | C59: DAVIS | D59: James | E59: Head | F59: M | G59: 54 | L59: Wagoner on Farm | O59: Worker | P59: Gloucestershire | Q59: Horsley | R59: 4 | S59: James Davis
C60: DAVIS | D60: Georgina | E60: Wife | F60: M | G60: 54 | H60: 29 | J60: 1 | P60: Gloucestershire | Q60: Minchinhampton
A61: 10 | B61: Bown Hill | C61: SAUNDERS | D61: Frederick | E61: Head | F61: M | G61: 41 | L61: Cowman on Farm | N61: Mixed Farm | O61: Worker | P61: Gloucestershire | Q61: Drymeadow | R61: 4 | S61: Frederick Saunders
C62: SAUNDERS | D62: May | E62: Wife | F62: M | G62: 40 | H62: 13 | I62: 6 | J62: 6 | P62: Gloucestershire | Q62: Rodborough
C63: SAUNDERS | D63: Wilson | E63: Son | G63: 11 | L63: School | M63: School | P63: Gloucestershire | Q63: Minchinhampton
C64: SAUNDERS | D64: Redvers | E64: Son | G64: 10 | L64: School | M64: School | P64: Gloucestershire | Q64: Minchinhampton
C65: SAUNDERS | D65: Edward | E65: Son | G65: 8 | L65: School | M65: School | P65: Gloucestershire | Q65: Minchinhampton
C66: SAUNDERS | D66: Gertrude | E66: Dau | G66: 6 | L66: School | M66: School | P66: Gloucestershire | Q66: Minchinhampton
C67: SAUNDERS | D67: Margrie | E67: Dau | G67: 4 | P67: Gloucestershire | Q67: Woodchester
C68: SAUNDERS | D68: Frederick | E68: Son | G68: 1 | P68: Gloucestershire | Q68: Woodchester
A69: 11 | B69: Bown Hill Farm | C69: PITT | D69: Sidney Thomas | E69: Head | F69: M | G69: 34 | L69: Builder & Farm Manager | O69: Employer | P69: Gloucestershire | Q69: Ebley | R69: 9 | S69: Sidney Thomas Pitt
C70: PITT | D70: Rosa Ellen | E70: Wife | F70: M | G70: 34 | H70: 7 | P70: Gloucestershire | Q70: Stanley
C71: SPRATT | D71: Caroline | E71: Visitor | F71: W | G71: 70 | H71: 51 | I71: 5 | J71: 4 | K71: 1 | L71: None | P71: Gloucestershire | Q71: Norton
C72: BINGHAM | D72: William | E72: Visitor | F72: M | G72: 59 | H72: 38 | I72: 6 | J72: 6 | L72: Managing Director | N72: Bacon Curer | O72: Employer | Q72: London
A73: 12 | B73: Bospin Lane | C73: WILKINS | D73: Charles Henry | E73: Head | F73: M | G73: 31 | L73: Gardener Domestic | O73: Worker | P73: Gloucestershire | Q73: Ebley
C74: WILKINS | D74: Edith May | E74: Wife | F74: M | G74: 31 | H74: 9 | I74: 7 | J74: 5 | K74: 2 | P74: Gloucestershire | Q74: Woodchester | R74: 3 | S74: Charles Henry Wilkins
C75: WILKINS | D75: Freda Harriet Amelia | E75: Dau | G75: 9 | L75: School | M75: School | P75: Gloucestershire | Q75: Woodchester
C76: WILKINS | D76: Frederick George | E76: Son | G76: 6 | L76: School | M76: School | P76: Gloucestershire | Q76: Woodchester
C77: WILKINS | D77: Linda Maud | E77: Dau | G77: 5 | L77: School | M77: School | P77: Gloucestershire | Q77: Woodchester
C78: WILKINS | D78: Florence Ethel | E78: Dau | G78: 3 | P78: Gloucestershire | Q78: Woodchester
C79: WILKINS | D79: William Henry | E79: Son | G79: 1 | P79: Gloucestershire | Q79: Woodchester
A80: 13 | B80: Bospin Lane | C80: BOULTON | D80: Mary | E80: Head | F80: S | G80: 31 | L80: Hosiery Mill Worker | N80: Hosiery Factory | O80: Worker | P80: Gloucestershire | Q80: Stoke Orchard | R80: 3 | S80: Mary Boulton
C81: BOULTON | D81: Joseph Abram | E81: Brother | F81: S | G81: 27 | L81: Wood Turner | N81: Saw Mills | O81: Worker | P81: Gloucestershire | Q81: Woodchester
A82: 14 | B82: Rosare | C82: BEALE | D82: Anna Chrysogon | E82: Head | F82: S | G82: 76 | L82: Spinster | P82: Middlesex | Q82: London
C83: KENNEDY | D83: Ruby | E83: Servant | F83: S | G83: 26 | L83: Lady Companion | O83: Worker | P83: Warwickshire
C84: KNIGHT | D84: Lily Mary | E84: Servant | F84: S | G84: 23 | L84: Servant (General) Domestic | O84: Worker | P84: Gloucestershire | Q84: Woodchester | R84: 11 | S84: Anna Chrysogon Beale
A85: 15 | B85: Laggar Lane | C85: SOLES | D85: Jesse | E85: Head | F85: M | G85: 57 | L85: Farmer | O85: Employer | P85: Gloucestershire | Q85: Gloucester | R85: 7 | S85: Jesse Soles
C86: SOLES | D86: Alice M | E86: Wife | F86: M | G86: 63 | H86: 32 | P86: Gloucestershire | Q86: Woodchester
A87: 16 | B87: Laggar Lane | C87: HARDING | D87: Joesph | E87: Head | F87: M | G87: 67 | L87: Haulier | O87: Employer | P87: Gloucestershire | Q87: Horsley | R87: 6 | S87: Joseph Harding
C88: HARDING | D88: Harriet | E88: Wife | F88: M | G88: 68 | H88: 45 | I88: 5 | J88: 5 | P88: Gloucestershire | Q88: Horsley
C89: HARDING | D89: Dorothy | E89: Grandchild | G89: 4 | P89: Gloucestershire | Q89: Woodchester
A90: 17 | B90: Tower House | C90: EVANS | D90: Frank Gwynne | E90: Head | F90: M | G90: 38 | L90: Retired Barrister | P90: Lincolnshire | Q90: Stamford | R90: 15 | S90: Frank Gwynne Evans
C91: EVANS | D91: Evelyn Gwynne | E91: Wife | F91: M | G91: 39 | H91: 14 | P91: Middlesex | Q91: Winchmore Hill
C92: WARDROP | D92: Annie Maria | E92: Servant | F92: M | G92: 56 | H92: 15 | L92: Cook Domestic | O92: Worker | P92: Gloucestershire | Q92: Woodchester
C93: BARNARD | D93: Lily Harriet | E93: Servant | F93: S | G93: 22 | L93: Housemaid Domestic | O93: Worker | P93: Gloucestershire | Q93: Drybrook
A94: 18 | B94: Tower Cottage | C94: TRUSSLER | D94: Abel | E94: Head | F94: M | G94: 50 | L94: Domestic Gardener | O94: Worker | P94: Somerset | Q94: Chantry | R94: 6 | S94: Abel Trussler
B95: Church Road | C95: TRUSSLER | D95: Louisa | E95: Wife | F95: M | G95: 51 | H95: 28 | I95: 8 | J95: 8 | P95: Somerset | Q95: Mells
C96: TRUSSLER | D96: Francis | E96: Son | F96: S | G96: 20 | L96: Turner (Wood) | N96: Saw Mills | O96: Worker | P96: Somerset | Q96: Mells
C97: TRUSSLER | D97: Percy | E97: Son | F97: S | G97: 18 | L97: Domestic Gardener | O97: Worker | P97: Somerset | Q97: Mells
C98: TRUSSLER | D98: Thomas | E98: Son | F98: S | G98: 16 | L98: Domestic Gardener | M98: Servant | O98: Worker | P98: Somerset | Q98: Mells
C99: TRUSSLER | D99: Elsie | E99: Dau | F99: S | G99: 14 | L99: Tailoress (apprentice) | M99: Apprentice | N99: Clothing Factory | O99: Worker | P99: Somerset | Q99: Mells
C100: TRUSSLER | D100: Albert | E100: Son | G100: 10 | L100: School | M100: School | P100: Somerset | Q100: Mells
A101: 19 | B101: Woodchester House | C101: WISE | D101: Edward Tuppen | E101: Head | F101: S | G101: 59 | L101: Formerly Stockman in Texas US | O101: Employer | P101: Gloucestershire | Q101: Woodchester | R101: 15 | S101: Edward T Wise
C102: WISE | D102: Edith Madeleine | E102: Sister | F102: S | G102: 56 | P102: Gloucestershire | Q102: Woodchester
C103: WISE | D103: Wilhelmina Harriet | E103: Sister | F103: S | G103: 53 | P103: Gloucestershire | Q103: Woodchester
C104: EVERISS | D104: Lilian Mary | E104: Servant | F104: S | G104: 17 | L104: General Servant Domestic | O104: Worker | P104: Gloucestershire | Q104: Woodchester
A105: 20 | B105: Church Road | C105: EVERISS | D105: Herbert | E105: Head | F105: M | G105: 42 | L105: Gardening Domestic | O105: Worker | P105: Gloucestershire | Q105: Nailsworth | R105: 3 | S105: Herbert Everiss
C106: EVERISS | D106: Lily | E106: Wife | F106: M | G106: 42 | H106: 18 | I106: 2 | J106: 2 | P106: Gloucestershire | Q106: Tetbury
C107: EVERISS | D107: Ernest | E107: Son | F107: S | G107: 15 | L107: School | M107: School | P107: Gloucestershire | Q107: Woodchester
A108: 21 | B108: Woodchester Cottage | C108: POTTER | D108: Ellen | E108: Head | F108: W | G108: 74 | H108: 20 | I108: 5 | J108: 2 | K108: 3 | L108: None | P108: Essex | R108: 6 | S108: Ellen Potter
B109: Church Road | C109: NEWTON | D109: Winifred | E109: Granddau | F109: S | G109: 28 | L109: None | Q109: Pimlico
A110: 22 | B110: The Lodge | C110: VIRGO | D110: William | E110: Head | F110: S | G110: 50 | L110: General Labourer | O110: Worker | P110: Gloucestershire | Q110: Woodchester | R110: 2 | S110: William Virgo
B111: Woodchester House | C111: VIRGO | D111: Mary | E111: Sister | F111: S | G111: 56 | L111: Flock Washer | N111: Flock Mills | O111: Worker | P111: Gloucestershire | Q111: Woodchester
A112: 23 | C112: VOAKE | D112: George | E112: Head | F112: M | G112: 41 | L112: Bricklayer Labourer | O112: Worker | P112: Surrey | Q112: Clapham | R112: 3 | S112: George Voake | U112: Enumerator shows address as Cucko Brook, Paganhill Lane, Stroud. This is the wrong page as shows district 11 - should be 9
C113: VOAKE | D113: Carrie | E113: Wife | F113: M | G113: 31 | H113: 5 | I113: 2 | J113: 2 | P113: Gloucestershire | Q113: Hambrook
C114: VOAKE | D114: James | E114: Son | G114: 1 | P114: Gloucestershire | Q114: Kingswood, Bristol
C115: WOODS | D115: Ivy | E115: Dau | G115: 6 | L115: School | M115: School | P115: Essex | Q115: Stanstead
A116: 24 | B116: Station Road | C116: RIGSBY | D116: Frederick | E116: Head | F116: M | G116: 49 | L116: Postman (Naval Pensioner) | N116: Post Office Service | O116: Worker | P116: Gloucestershire | Q116: Avening | R116: 3 | S116: F J? Rigsby
B117: Enumerator says Station Hill | C117: RIGSBY | D117: Elizabeth | E117: Wife | F117: M | G117: 42 | H117: 17 | I117: 7 | J117: 7 | P117: Gloucestershire | Q117: Dursley
C118: RIGSBY | D118: Ernest | E118: Son | F118: S | G118: 16 | L118: Printer? Mill Work | M118: Misc | N118: Pin Mill | O118: Worker | P118: Devon | Q118: Devonport
C119: RIGSBY | D119: Albert | E119: Son | G119: 14 | L119: Gardener Domestic | M119: Servant | O119: Worker | P119: Devon | Q119: Plymouth
C120: RIGSBY | D120: Enslin | E120: Son | G120: 10 | L120: School | M120: School | P120: Gloucestershire | Q120: Woodchester
C121: RIGSBY | D121: Nellie | E121: Dau | G121: 7 | L121: School | M121: School | P121: Gloucestershire | Q121: Woodchester
C122: RIGSBY | D122: Jack | E122: Son | G122: 6 | L122: School | M122: School | P122: Gloucestershire | Q122: Woodchester
C123: RIGSBY | D123: Leslie | E123: Son | G123: 4 | L123: School | M123: School | P123: Gloucestershire | Q123: Woodchester
C124: RIGSBY | D124: Hilda | E124: Dau | G124: 1 | P124: Gloucestershire | Q124: Woodchester
A125: 25 | B125: Church Mill Cottage | C125: BUCKINGHAM | D125: Ephraim | E125: Head | F125: M | G125: 50 | L125: General Labourer | O125: Worker | P125: Gloucestershire | Q125: St Loe Green | R125: 5 | S125: E Buckingham
B126: Enumerator says Station Hill | C126: BUCKINGHAM | D126: Annie | E126: Wife | F126: M | G126: 42 | H126: 21 | I126: 11 | J126: 9 | K126: 2 | L126: Housekeeper | O126: Worker | P126: Gloucestershire | Q126: St Loe Green
C127: BUCKINGHAM | D127: Alfred | E127: Son | F127: S | G127: 22 | L127: General Labourer | O127: Worker | P127: Gloucestershire | Q127: Houndscroft
B128: Crossed out away from home | C128: BUCKINGHAM | D128: Florence | E128: Dau | F128: S | G128: 20 | L128: Housekeeper | O128: Worker | P128: Gloucestershire | Q128: Houndscroft
C129: BUCKINGHAM | D129: Amy | E129: Dau | F129: S | G129: 17 | L129: Stick Varnisher | N129: Stick Mills | O129: Worker | P129: London | Q129: Chelsea
C130: BUCKINGHAM | D130: Frances | E130: Dau | F130: S | G130: 15 | L130: Bobbin Winder | M130: Cloth | N130: Cloth Mills | O130: Worker | P130: London | Q130: Chelsea
C131: BUCKINGHAM | D131: Lucy | E131: Dau | F131: S | G131: 13 | L131: School | M131: School | P131: Gloucestershire | Q131: Minchinhampton
C132: BUCKINGHAM | D132: Lizzie | E132: Dau | F132: S | G132: 10 | L132: School | M132: School | P132: Gloucestershire | Q132: Minchinhampton
C133: BUCKINGHAM | D133: Albert | E133: Son | F133: S | G133: 8 | L133: School | M133: School | P133: Gloucestershire | Q133: Bubblehole
C134: BUCKINGHAM | D134: Fred | E134: Son | F134: S | G134: 6 | L134: School | M134: School | P134: Gloucestershire | Q134: Bubblehole
C135: BUCKINGHAM | D135: Birt | E135: Son | F135: S | G135: 4 | L135: School | M135: School | P135: Gloucestershire | Q135: Bubblehole
A136: 26 | B136: Vale Mills | C136: DAVIS | D136: James | E136: Head | F136: M | G136: 53 | L136: Gas Engine Driver | N136: Woollen Manufacture | O136: Worker | P136: Gloucestershire | Q136: Stroud | R136: 4 | S136: James Davis
B137: Enumerator says Southfields Road | C137: DAVIS | D137: Hannah | E137: Wife | F137: M | G137: 50 | H137: 29 | I137: 6 | J137: 4 | K137: 2 | P137: Gloucestershire | Q137: Bisley
C138: DAVIS | D138: Percival | E138: Son | F138: S | G138: 25 | L138: Loom Turner | N138: Woollen Manufacture | O138: Worker | P138: Gloucestershire | Q138: Nailsworth
C139: DAVIS | D139: Ethel | E139: Dau | G139: 14 | L139: Warper to Winder | M139: Cloth | N139: Woollen Manufacture | O139: Worker | P139: Gloucestershire | Q139: Thrupp
C140: DAVIS | D140: Mabel | E140: Dau | G140: 11 | L140: School | M140: School | P140: Gloucestershire | Q140: Thrupp
A141: 27 | B141: Southfield House | C141: ALLEN | D141: Clement Francis Romilly | E141: Head | F141: M | G141: 67 | L141: Retired Consul | P141: Surrey | Q141: Dulwich | R141: 18 | S141: Clement F R Allen
C142: ALLEN | D142: Edith Louisa | E142: Wife | F142: M | G142: 57 | H142: 33 | I142: 5 | J142: 5 | P142: Gloucestershire | Q142: Dumbleton
C143: ALLEN | D143: Clementina Dorothy | E143: Dau | F143: S | G143: 25 | P143: China | Q143: Pakhoi
C144: WALKER | D144: Lillian Evelyn | E144: Servant | F144: S | G144: 19 | L144: Housemaid Domestic | O144: Worker | P144: Gloucestershire | Q144: Dumbleton
C145: CORBERT | D145: Ellen Nora | E145: Servant | F145: S | G145: 15 | L145: Kitchenmaid Domestic | M145: Servant | O145: Worker | P145: Worcestershire | Q145: Cold Harbour, Rusley Linton
C146: HYDEN? | D146: Elizabeth Anne | E146: Servant | F146: S | G146: 20 | L146: Cook Domestic | O146: Worker | P146: Gloucestershire | Q146: Miserden
C147: BARRETT-FOSTER | D147: Alice | E147: Servant | F147: S | G147: 26 | L147: Parlourmaid Domestic | O147: Worker | P147: Herefordshire | Q147: Bosbury
A148: 28 | B148: Southfields | C148: BENNETT | D148: Arthur James | E148: Head | F148: M | G148: 41 | L148: Domestic Gardener | O148: Worker | P148: Gloucestershire | Q148: Stonehouse | R148: 5 | S148: Arthur James Bennett
B149: Enumerator says Southfields Road | C149: BENNETT | D149: Beatrice Betsy | E149: Wife | F149: M | G149: 49 | H149: 18 | I149: 2 | J149: 2 | P149: Gloucestershire | Q149: Snowshill
C150: BENNETT | D150: Elsie May Beatrice | E150: Dau | F150: S | G150: 17 | L150: Machinist | N150: Shirt Factory | O150: Worker | P150: Gloucestershire | Q150: Stonehouse
C151: BENNETT | D151: Lionel Percy James | E151: Son | G151: 12 | L151: School | M151: School | P151: Gloucestershire | Q151: Stonehouse
C152: MARSTON | D152: William James | E152: Lodger | F152: S | G152: 29 | L152: Chauffeur Mechanic Domestic | O152: Worker | P152: Herefordshire | Q152: Hereford
A153: 29 | B153: Woodchester Lodge | C153: WORKMAN | D153: Henry | E153: Head | F153: S | G153: 70 | L153: Timber Merchant | O153: Employer | P153: Gloucestershire | Q153: Woodchester | R153: 14 | S153: Francis Nicholas Workman
C154: WORKMAN | D154: Francis Nicholas | E154: Head | F154: M | G154: 71 | L154: Timber Merchant | O154: Employer | P154: Gloucestershire | Q154: Woodchester
C155: WORKMAN | D155: Mary Ann | E155: Wife | F155: M | G155: 72 | H155: 51 | I155: 2 | J155: 2 | P155: Gloucestershire | Q155: Westonbirt
C156: WORKMAN | D156: Frank Ernest | E156: Son | F156: W | G156: 34 | L156: Timber Merchant | O156: Employer | P156: Gloucestershire | Q156: Woodchester
C157: PEDLER | D157: Rosa Agatha | E157: Servant | F157: S | G157: 30 | L157: Cook Domestic | O157: Worker | P157: Gloucestershire | Q157: Purton nr Berkeley
C158: HIGGINS | D158: Emily Jane | E158: Servant | F158: M | G158: 32 | H158: 4 | I158: 1 | L158: Housemaid Domestic | O158: Worker | P158: Gloucestershire | Q158: Cranham
A159: 30 | B159: Church Farm | C159: WHITE | D159: Frederick James | E159: Head | F159: M | G159: 58 | L159: Farmer | O159: Employer | P159: Gloucestershire | Q159: Selsley | R159: 5 | S159: Frederick James White
C160: WHITE | D160: Emily | E160: Wife | F160: M | G160: 50 | H160: 1 | P160: Gloucestershire | Q160: Berkeley
C161: ALLEN | D161: Beatrice | E161: Niece | F161: S | G161: 29 | L161: Dressmaker | O161: Own account | P161: Gloucestershire | Q161: Nibley
A162: 31 | B162: North Woodchester | C162: LUKER | D162: George | E162: Head | F162: M | G162: 28 | L162: Midland Railway Porter | O162: Worker | P162: Gloucestershire | Q162: Avening | R162: 5 | S162: George Luker
C163: LUKER | D163: Laura Alice | E163: Wife | F163: M | G163: 24 | H163: 1 | K163: 1 | P163: Gloucestershire | Q163: Horsley
C164: READ | D164: Lily Rose | E164: Boarder | F164: S | G164: 6 | L164: School | M164: School | P164: Hampshire | Q164: Shanklin
C165: READ | D165: Lucy | E165: Boarder | F165: S | G165: 5 | L165: School | M165: School | P165: Hampshire | Q165: Bembridge
A166: 32 | B166: North Woodchester | C166: RUBBER | D166: Charles | E166: Head | F166: M | G166: 43 | L166: Gardener Domestic | O166: Employer | P166: Gloucestershire | Q166: Woodchester
C167: RUBBER | D167: Annie | E167: Wife | F167: M | G167: 45 | H167: 19 | I167: 1 | J167: 1 | P167: Gloucestershire | Q167: Norkot nr Cirencester ? Norcote | R167: 5 | S167: C H Raymond Rubber
C168: RUBBER | D168: Vincent Lewis | E168: Son | F168: S | G168: 18 | L168: Clerk | N168: Saw Mills | O168: Worker | P168: Gloucestershire | Q168: Woodchester
A169: 33 | B169: Elmslea House | C169: PERKINS | D169: Catherine Elizabeth | E169: Head | F169: S | G169: 64 | P169: Gloucestershire | Q169: Selsley | R169: 9 | S169: Catherine Elizabeth Perkins
B170: North Woodchester | C170: SMITH | D170: Annie Elizabeth | E170: Servant | F170: S | G170: 28 | L170: Domestic Servant | O170: Worker | P170: Gloucestershire | Q170: Dyehouse
A171: 34 | B171: Selsley Road | C171: ELLIOTT | D171: Arthur William | E171: Head | F171: M | G171: 29 | L171: Gardener Domestic | O171: Worker | P171: Gloucestershire | Q171: Uley | R171: 5 | S171: Arthur William Elliott
C172: ELLIOTT | D172: Ellen | E172: Wife | F172: M | G172: 36 | H172: 4 | I172: 2 | J172: 2 | P172: Gloucestershire | Q172: Horsley
C173: ELLIOTT | D173: Arthur Neville | E173: Son | G173: 3 | P173: Gloucestershire | Q173: Woodchester
C174: ELLIOTT | D174: William Rowland | E174: Son | G174: 7mths | P174: Gloucestershire | Q174: Woodchester
A175: 35 | B175: Selsley Road | C175: HOWELL | D175: John | E175: Head | F175: M | G175: 36 | L175: Carter at timber factory | N175: Saw Mills | O175: Worker | P175: Gloucestershire | Q175: Horsley | R175: 5 | S175: John Howell
C176: HOWELL | D176: Lucy | E176: Wife | F176: M | G176: 36 | H176: 13 | I176: 4 | J176: 4 | P176: Gloucestershire | Q176: Horsley
C177: HOWELL | D177: Maurice John | E177: Son | F177: S | G177: 12 | P177: Gloucestershire | Q177: Amberley
C178: HOWELL | D178: Francis Edward | E178: Son | F178: S | G178: 10 | P178: Gloucestershire | Q178: Woodchester
C179: HOWELL | D179: Percy Harold | E179: Son | F179: S | G179: 9 | P179: Gloucestershire | Q179: Woodchester
C180: HOWELL | D180: Dennis Albert | E180: Son | F180: S | G180: 3 | P180: Gloucestershire | Q180: Woodchester
A181: 36 | B181: Post Office | C181: CORDWELL | D181: Sarah Ann | E181: Head | F181: W | G181: 63 | H181: 27 | I181: 7 | J181: 7 | L181: Postmistress | N181: Post Office Service | O181: Worker | P181: Gloucestershire | Q181: Horsley | R181: 8 | S181: S Cordwell
B182: North Woodchester | C182: CORDWELL | D182: Vera | E182: Dau | F182: S | G182: 31 | P182: Gloucestershire | Q182: Woodchester
A183: 37 | B183: Selsley Road | C183: CLEAVELEY | D183: William Richard | E183: Head | F183: M | G183: 23 | L183: Gardener Domestic | O183: Worker | P183: Gloucestershire | Q183: Horsley | R183: 2 | S183: William Richard Cleaveley
C184: CLEAVELEY | D184: Ethel | E184: Wife | F184: M | G184: 25 | H184: 3 | P184: Gloucestershire | Q184: Rodborough
A185: 38 | B185: The Briars | C185: MOFFATT | D185: Rowena | E185: Head | F185: W | G185: 67 | I185: 2 | J185: 2 | L185: Private Means | P185: Gloucestershire | Q185: Painswick | R185: 8 | S185: Rowena Moffatt
B186: North Woodchester | C186: MOFFATT | D186: Jessie Blanche | E186: Dau | F186: S | G186: 35 | P186: Gloucestershire | Q186: Gloucester
C187: MOFFATT | D187: Mary Beatrice | E187: Dau | F187: S | G187: 31 | P187: Gloucestershire | Q187: Gloucester
A188: 39 | B188: Selsley Road | C188: EBORN | D188: Charles | E188: Head | F188: M | G188: 50 | L188: Coachman (Domestic) | O188: Worker | P188: Oxon | Q188: Waterstock | R188: 6 | S188: Charles Eborn
B189: North Woodchester | C189: EBORN | D189: Elizabeth | E189: Wife | F189: M | G189: 52 | H189: 19 | I189: 4 | J189: 4 | P189: Oxon | Q189: Tackley
C190: EBORN | D190: Amelia Gladys | E190: Dau | F190: S | G190: 18 | P190: Oxon | Q190: Pyrton
C191: EBORN | D191: Francis Charles | E191: Son | F191: S | G191: 16 | L191: Engineers Fitter | M191: Misc | N191: Iron Works & Gas Engine Manufacturer | O191: Worker | P191: Oxon | Q191: Pyrton
C192: EBORN | D192: Frederick Henry | E192: Son | G192: 12 | L192: School | M192: School | P192: Oxon | Q192: Pyrton
C193: EBORN | D193: Ronald Arthur | E193: Son | G193: 9 | L193: School | M193: School | P193: Oxon | Q193: Pyrton
A194: 40 | B194: Selsley Road | C194: DAVIES | D194: Edward | E194: Head | F194: M | G194: 55 | L194: Shop Keeper | N194: ?Grocery | O194: Own account | P194: Gloucestershire | Q194: Eastington | R194: 6 | S194: Edward Davies
C195: DAVIES | D195: Alice Mary | E195: Wife | F195: M | G195: 57 | H195: 30 | I195: 2 | J195: 2 | L195: Assisting in the business | P195: Gloucestershire | Q195: Stanley
B196: Crossed out from home | C196: DAVIES | D196: George Walter | E196: Son | F196: M
B197: Crossed out from home | C197: DAVIES | D197: Edward Randolph | E197: Son | F197: M
C198: DAVIES | D198: Ida May | E198: Granddau | G198: 7 | L198: School | M198: School | P198: Gloucestershire | Q198: Woodchester
C199: DAVIES | D199: Queenie Dore Lewis | E199: Granddau | G199: 1 | P199: Gloucestershire | Q199: Bristol
C200: WAGER | D200: Mary Evelyn | E200: Servant | G200: 14 | L200: Domestic Servant | M200: Servant | O200: Worker | P200: Gloucestershire | Q200: Woodchester
... 820 more rows

Sheet Child Employment
A1: 1851
A2: =woodcensus51!O4 -> Age | B2: =woodcensus51!P4 -> Total | C2: =woodcensus51!Q4 -> School | D2: =woodcensus51!R4 -> Cloth | E2: =woodcensus51!S4 -> Pins | F2: =woodcensus51!T4 -> Servant | G2: =woodcensus51!U4 -> Agricultural | H2: =woodcensus51!V4 -> Apprentice | I2: =woodcensus51!W4 -> Misc | J2: =woodcensus51!X4 -> Not Recorded | M2: Age | N2: School | O2: Cloth | P2: Pins | Q2: Servant | R2: Agricultural | S2: Apprentice | T2: Misc | U2: Not Recorded
A3: =woodcensus51!O5 -> 5 | B3: =woodcensus51!P5 -> 15 | C3: =woodcensus51!Q5 -> 13 | D3: =woodcensus51!R5 -> 0 | E3: =woodcensus51!S5 -> 0 | F3: =woodcensus51!T5 -> 0 | G3: =woodcensus51!U5 -> 0 | H3: =woodcensus51!V5 -> 0 | I3: =woodcensus51!W5 -> 0 | J3: =woodcensus51!X5 -> 2 | M3: =A3 -> 5 | N3: =C3/$B3 -> 87% | O3: =D3/$B3 -> 0% | P3: =E3/$B3 -> 0% | Q3: =F3/$B3 -> 0% | R3: =G3/$B3 -> 0% | S3: =H3/$B3 -> 0% | T3: =I3/$B3 -> 0% | U3: =J3/$B3 -> 13%
A4: =woodcensus51!O6 -> 6 | B4: =woodcensus51!P6 -> 23 | C4: =woodcensus51!Q6 -> 21 | D4: =woodcensus51!R6 -> 0 | E4: =woodcensus51!S6 -> 0 | F4: =woodcensus51!T6 -> 0 | G4: =woodcensus51!U6 -> 0 | H4: =woodcensus51!V6 -> 0 | I4: =woodcensus51!W6 -> 0 | J4: =woodcensus51!X6 -> 2 | M4: =A4 -> 6 | N4: =C4/$B4 -> 91% | O4: 0% | P4: 0% | Q4: 0% | R4: 0% | S4: 0% | T4: 0% | U4: 9%
A5: =woodcensus51!O7 -> 7 | B5: =woodcensus51!P7 -> 20 | C5: =woodcensus51!Q7 -> 15 | D5: =woodcensus51!R7 -> 0 | E5: =woodcensus51!S7 -> 0 | F5: =woodcensus51!T7 -> 0 | G5: =woodcensus51!U7 -> 0 | H5: =woodcensus51!V7 -> 0 | I5: =woodcensus51!W7 -> 0 | J5: =woodcensus51!X7 -> 5 | M5: 7 | N5: 75% | O5: 0% | P5: 0% | Q5: 0% | R5: 0% | S5: 0% | T5: 0% | U5: 25%
A6: =woodcensus51!O8 -> 8 | B6: =woodcensus51!P8 -> 14 | C6: =woodcensus51!Q8 -> 14 | D6: =woodcensus51!R8 -> 0 | E6: =woodcensus51!S8 -> 0 | F6: =woodcensus51!T8 -> 0 | G6: =woodcensus51!U8 -> 0 | H6: =woodcensus51!V8 -> 0 | I6: =woodcensus51!W8 -> 0 | J6: =woodcensus51!X8 -> 0 | M6: 8 | N6: 100% | O6: 0% | P6: 0% | Q6: 0% | R6: 0% | S6: 0% | T6: 0% | U6: 0%
A7: =woodcensus51!O9 -> 9 | B7: =woodcensus51!P9 -> 24 | C7: =woodcensus51!Q9 -> 21 | D7: =woodcensus51!R9 -> 2 | E7: =woodcensus51!S9 -> 0 | F7: =woodcensus51!T9 -> 0 | G7: =woodcensus51!U9 -> 0 | H7: =woodcensus51!V9 -> 0 | I7: =woodcensus51!W9 -> 0 | J7: =woodcensus51!X9 -> 1 | M7: 9 | N7: 88% | O7: 8% | P7: 0% | Q7: 0% | R7: 0% | S7: 0% | T7: 0% | U7: 4%
A8: =woodcensus51!O10 -> 10 | B8: =woodcensus51!P10 -> 23 | C8: =woodcensus51!Q10 -> 19 | D8: =woodcensus51!R10 -> 2 | E8: =woodcensus51!S10 -> 0 | F8: =woodcensus51!T10 -> 0 | G8: =woodcensus51!U10 -> 0 | H8: =woodcensus51!V10 -> 0 | I8: =woodcensus51!W10 -> 1 | J8: =woodcensus51!X10 -> 1 | M8: 10 | N8: 83% | O8: 9% | P8: 0% | Q8: 0% | R8: 0% | S8: 0% | T8: 4% | U8: 4%
A9: =woodcensus51!O11 -> 11 | B9: =woodcensus51!P11 -> 23 | C9: =woodcensus51!Q11 -> 12 | D9: =woodcensus51!R11 -> 3 | E9: =woodcensus51!S11 -> 3 | F9: =woodcensus51!T11 -> 1 | G9: =woodcensus51!U11 -> 1 | H9: =woodcensus51!V11 -> 0 | I9: =woodcensus51!W11 -> 0 | J9: =woodcensus51!X11 -> 3 | M9: 11 | N9: 52% | O9: 13% | P9: 13% | Q9: 4% | R9: 4% | S9: 0% | T9: 0% | U9: 13%
A10: =woodcensus51!O12 -> 12 | B10: =woodcensus51!P12 -> 23 | C10: =woodcensus51!Q12 -> 12 | D10: =woodcensus51!R12 -> 6 | E10: =woodcensus51!S12 -> 1 | F10: =woodcensus51!T12 -> 1 | G10: =woodcensus51!U12 -> 0 | H10: =woodcensus51!V12 -> 1 | I10: =woodcensus51!W12 -> 1 | J10: =woodcensus51!X12 -> 1 | M10: 12 | N10: 52% | O10: 26% | P10: 4% | Q10: 4% | R10: 0% | S10: 4% | T10: 4% | U10: 4%
A11: =woodcensus51!O13 -> 13 | B11: =woodcensus51!P13 -> 25 | C11: =woodcensus51!Q13 -> 10 | D11: =woodcensus51!R13 -> 10 | E11: =woodcensus51!S13 -> 3 | F11: =woodcensus51!T13 -> 1 | G11: =woodcensus51!U13 -> 0 | H11: =woodcensus51!V13 -> 0 | I11: =woodcensus51!W13 -> 0 | J11: =woodcensus51!X13 -> 1 | M11: 13 | N11: 40% | O11: 40% | P11: 12% | Q11: 4% | R11: 0% | S11: 0% | T11: 0% | U11: 4%
A12: =woodcensus51!O14 -> 14 | B12: =woodcensus51!P14 -> 22 | C12: =woodcensus51!Q14 -> 6 | D12: =woodcensus51!R14 -> 7 | E12: =woodcensus51!S14 -> 1 | F12: =woodcensus51!T14 -> 2 | G12: =woodcensus51!U14 -> 1 | H12: =woodcensus51!V14 -> 0 | I12: =woodcensus51!W14 -> 3 | J12: =woodcensus51!X14 -> 2 | M12: 14 | N12: 27% | O12: 32% | P12: 5% | Q12: 9% | R12: 5% | S12: 0% | T12: 14% | U12: 9%
A13: =woodcensus51!O15 -> 15 | B13: =woodcensus51!P15 -> 21 | C13: =woodcensus51!Q15 -> 4 | D13: =woodcensus51!R15 -> 7 | E13: =woodcensus51!S15 -> 2 | F13: =woodcensus51!T15 -> 3 | G13: =woodcensus51!U15 -> 1 | H13: =woodcensus51!V15 -> 1 | I13: =woodcensus51!W15 -> 1 | J13: =woodcensus51!X15 -> 2 | M13: 15 | N13: 19% | O13: 33% | P13: 10% | Q13: 14% | R13: 5% | S13: 5% | T13: 5% | U13: 10%
A14: =woodcensus51!O16 -> 16 | B14: =woodcensus51!P16 -> 19 | C14: =woodcensus51!Q16 -> 2 | D14: =woodcensus51!R16 -> 7 | E14: =woodcensus51!S16 -> 0 | F14: =woodcensus51!T16 -> 3 | G14: =woodcensus51!U16 -> 1 | H14: =woodcensus51!V16 -> 1 | I14: =woodcensus51!W16 -> 2 | J14: =woodcensus51!X16 -> 3 | M14: 16 | N14: 11% | O14: 37% | P14: 0% | Q14: 16% | R14: 5% | S14: 5% | T14: 11% | U14: 16%
A17: 1861
A18: =Woodcensus61!O4 -> Age | B18: =Woodcensus61!P4 -> Total | C18: =Woodcensus61!Q4 -> School | D18: =Woodcensus61!R4 -> Cloth | E18: =Woodcensus61!S4 -> Pins | F18: =Woodcensus61!T4 -> Servant | G18: =Woodcensus61!U4 -> Agricultural | H18: =Woodcensus61!V4 -> Apprentice | I18: =Woodcensus61!W4 -> Misc | J18: =Woodcensus61!X4 -> Not Recorded | M18: Age | N18: School | O18: Cloth | P18: Pins | Q18: Servant | R18: Agricultural | S18: Apprentice | T18: Misc | U18: Not Recorded
A19: =Woodcensus61!O5 -> 5 | B19: =Woodcensus61!P5 -> 11 | C19: =Woodcensus61!Q5 -> 6 | D19: =Woodcensus61!R5 -> 0 | E19: =Woodcensus61!S5 -> 0 | F19: =Woodcensus61!T5 -> 0 | G19: =Woodcensus61!U5 -> 0 | H19: =Woodcensus61!V5 -> 0 | I19: =Woodcensus61!W5 -> 0 | J19: =Woodcensus61!X5 -> 5 | M19: =A19 -> 5 | N19: =C19/$B19 -> 55% | O19: =D19/$B19 -> 0% | P19: =E19/$B19 -> 0% | Q19: =F19/$B19 -> 0% | R19: =G19/$B19 -> 0% | S19: =H19/$B19 -> 0% | T19: =I19/$B19 -> 0% | U19: =J19/$B19 -> 45%
A20: =Woodcensus61!O6 -> 6 | B20: =Woodcensus61!P6 -> 20 | C20: =Woodcensus61!Q6 -> 12 | D20: =Woodcensus61!R6 -> 0 | E20: =Woodcensus61!S6 -> 0 | F20: =Woodcensus61!T6 -> 0 | G20: =Woodcensus61!U6 -> 0 | H20: =Woodcensus61!V6 -> 0 | I20: =Woodcensus61!W6 -> 0 | J20: =Woodcensus61!X6 -> 8 | M20: =A20 -> 6 | N20: =C20/$B20 -> 60% | O20: 0% | P20: 0% | Q20: 0% | R20: 0% | S20: 0% | T20: 0% | U20: 40%
A21: =Woodcensus61!O7 -> 7 | B21: =Woodcensus61!P7 -> 14 | C21: =Woodcensus61!Q7 -> 11 | D21: =Woodcensus61!R7 -> 0 | E21: =Woodcensus61!S7 -> 0 | F21: =Woodcensus61!T7 -> 0 | G21: =Woodcensus61!U7 -> 0 | H21: =Woodcensus61!V7 -> 0 | I21: =Woodcensus61!W7 -> 0 | J21: =Woodcensus61!X7 -> 3 | M21: 7 | N21: 79% | O21: 0% | P21: 0% | Q21: 0% | R21: 0% | S21: 0% | T21: 0% | U21: 21%
A22: =Woodcensus61!O8 -> 8 | B22: =Woodcensus61!P8 -> 15 | C22: =Woodcensus61!Q8 -> 14 | D22: =Woodcensus61!R8 -> 0 | E22: =Woodcensus61!S8 -> 0 | F22: =Woodcensus61!T8 -> 0 | G22: =Woodcensus61!U8 -> 0 | H22: =Woodcensus61!V8 -> 0 | I22: =Woodcensus61!W8 -> 0 | J22: =Woodcensus61!X8 -> 1 | M22: 8 | N22: 93% | O22: 0% | P22: 0% | Q22: 0% | R22: 0% | S22: 0% | T22: 0% | U22: 7%
A23: =Woodcensus61!O9 -> 9 | B23: =Woodcensus61!P9 -> 15 | C23: =Woodcensus61!Q9 -> 9 | D23: =Woodcensus61!R9 -> 0 | E23: =Woodcensus61!S9 -> 0 | F23: =Woodcensus61!T9 -> 0 | G23: =Woodcensus61!U9 -> 0 | H23: =Woodcensus61!V9 -> 0 | I23: =Woodcensus61!W9 -> 0 | J23: =Woodcensus61!X9 -> 6 | M23: 9 | N23: 60% | O23: 0% | P23: 0% | Q23: 0% | R23: 0% | S23: 0% | T23: 0% | U23: 40%
A24: =Woodcensus61!O10 -> 10 | B24: =Woodcensus61!P10 -> 27 | C24: =Woodcensus61!Q10 -> 17 | D24: =Woodcensus61!R10 -> 0 | E24: =Woodcensus61!S10 -> 0 | F24: =Woodcensus61!T10 -> 2 | G24: =Woodcensus61!U10 -> 0 | H24: =Woodcensus61!V10 -> 0 | I24: =Woodcensus61!W10 -> 1 | J24: =Woodcensus61!X10 -> 7 | M24: 10 | N24: 63% | O24: 0% | P24: 0% | Q24: 7% | R24: 0% | S24: 0% | T24: 4% | U24: 26%
A25: =Woodcensus61!O11 -> 11 | B25: =Woodcensus61!P11 -> 15 | C25: =Woodcensus61!Q11 -> 10 | D25: =Woodcensus61!R11 -> 0 | E25: =Woodcensus61!S11 -> 1 | F25: =Woodcensus61!T11 -> 0 | G25: =Woodcensus61!U11 -> 0 | H25: =Woodcensus61!V11 -> 0 | I25: =Woodcensus61!W11 -> 0 | J25: =Woodcensus61!X11 -> 4 | M25: 11 | N25: 67% | O25: 0% | P25: 7% | Q25: 0% | R25: 0% | S25: 0% | T25: 0% | U25: 27%
A26: =Woodcensus61!O12 -> 12 | B26: =Woodcensus61!P12 -> 11 | C26: =Woodcensus61!Q12 -> 6 | D26: =Woodcensus61!R12 -> 2 | E26: =Woodcensus61!S12 -> 0 | F26: =Woodcensus61!T12 -> 0 | G26: =Woodcensus61!U12 -> 0 | H26: =Woodcensus61!V12 -> 0 | I26: =Woodcensus61!W12 -> 1 | J26: =Woodcensus61!X12 -> 2 | M26: 12 | N26: 55% | O26: 18% | P26: 0% | Q26: 0% | R26: 0% | S26: 0% | T26: 9% | U26: 18%
A27: =Woodcensus61!O13 -> 13 | B27: =Woodcensus61!P13 -> 17 | C27: =Woodcensus61!Q13 -> 7 | D27: =Woodcensus61!R13 -> 2 | E27: =Woodcensus61!S13 -> 2 | F27: =Woodcensus61!T13 -> 2 | G27: =Woodcensus61!U13 -> 0 | H27: =Woodcensus61!V13 -> 0 | I27: =Woodcensus61!W13 -> 2 | J27: =Woodcensus61!X13 -> 2 | M27: 13 | N27: 41% | O27: 12% | P27: 12% | Q27: 12% | R27: 0% | S27: 0% | T27: 12% | U27: 12%
A28: =Woodcensus61!O14 -> 14 | B28: =Woodcensus61!P14 -> 16 | C28: =Woodcensus61!Q14 -> 4 | D28: =Woodcensus61!R14 -> 7 | E28: =Woodcensus61!S14 -> 0 | F28: =Woodcensus61!T14 -> 2 | G28: =Woodcensus61!U14 -> 0 | H28: =Woodcensus61!V14 -> 0 | I28: =Woodcensus61!W14 -> 2 | J28: =Woodcensus61!X14 -> 1 | M28: 14 | N28: 25% | O28: 44% | P28: 0% | Q28: 13% | R28: 0% | S28: 0% | T28: 13% | U28: 6%
A29: =Woodcensus61!O15 -> 15 | B29: =Woodcensus61!P15 -> 20 | C29: =Woodcensus61!Q15 -> 1 | D29: =Woodcensus61!R15 -> 8 | E29: =Woodcensus61!S15 -> 0 | F29: =Woodcensus61!T15 -> 2 | G29: =Woodcensus61!U15 -> 0 | H29: =Woodcensus61!V15 -> 2 | I29: =Woodcensus61!W15 -> 4 | J29: =Woodcensus61!X15 -> 3 | M29: 15 | N29: 5% | O29: 40% | P29: 0% | Q29: 10% | R29: 0% | S29: 10% | T29: 20% | U29: 15%
A30: =Woodcensus61!O16 -> 16 | B30: =Woodcensus61!P16 -> 11 | C30: =Woodcensus61!Q16 -> 2 | D30: =Woodcensus61!R16 -> 2 | E30: =Woodcensus61!S16 -> 2 | F30: =Woodcensus61!T16 -> 2 | G30: =Woodcensus61!U16 -> 0 | H30: =Woodcensus61!V16 -> 0 | I30: =Woodcensus61!W16 -> 1 | J30: =Woodcensus61!X16 -> 2 | M30: 16 | N30: 18% | O30: 18% | P30: 18% | Q30: 18% | R30: 0% | S30: 0% | T30: 9% | U30: 18%
A33: 1871
A34: =Woodcensus71!O4 -> Age | B34: =Woodcensus71!P4 -> Total | C34: =Woodcensus71!Q4 -> School | D34: =Woodcensus71!R4 -> Cloth | E34: =Woodcensus71!S4 -> Pins | F34: =Woodcensus71!T4 -> Servant | G34: =Woodcensus71!U4 -> Agricultural | H34: =Woodcensus71!V4 -> Apprentice | I34: =Woodcensus71!W4 -> Misc | J34: =Woodcensus71!X4 -> Not Recorded | M34: Age | N34: School | O34: Cloth | P34: Pins | Q34: Servant | R34: Agricultural | S34: Apprentice | T34: Misc | U34: Not Recorded
A35: =Woodcensus71!O5 -> 5 | B35: =Woodcensus71!P5 -> 19 | C35: =Woodcensus71!Q5 -> 18 | D35: =Woodcensus71!R5 -> 0 | E35: =Woodcensus71!S5 -> 0 | F35: =Woodcensus71!T5 -> 0 | G35: =Woodcensus71!U5 -> 0 | H35: =Woodcensus71!V5 -> 0 | I35: =Woodcensus71!W5 -> 0 | J35: =Woodcensus71!X5 -> 1 | M35: =A35 -> 5 | N35: =C35/$B35 -> 95% | O35: =D35/$B35 -> 0% | P35: =E35/$B35 -> 0% | Q35: =F35/$B35 -> 0% | R35: =G35/$B35 -> 0% | S35: =H35/$B35 -> 0% | T35: =I35/$B35 -> 0% | U35: =J35/$B35 -> 5%
A36: =Woodcensus71!O6 -> 6 | B36: =Woodcensus71!P6 -> 19 | C36: =Woodcensus71!Q6 -> 17 | D36: =Woodcensus71!R6 -> 0 | E36: =Woodcensus71!S6 -> 0 | F36: =Woodcensus71!T6 -> 0 | G36: =Woodcensus71!U6 -> 0 | H36: =Woodcensus71!V6 -> 0 | I36: =Woodcensus71!W6 -> 0 | J36: =Woodcensus71!X6 -> 2 | M36: =A36 -> 6 | N36: =C36/$B36 -> 89% | O36: 0% | P36: 0% | Q36: 0% | R36: 0% | S36: 0% | T36: 0% | U36: 11%
A37: =Woodcensus71!O7 -> 7 | B37: =Woodcensus71!P7 -> 19 | C37: =Woodcensus71!Q7 -> 17 | D37: =Woodcensus71!R7 -> 0 | E37: =Woodcensus71!S7 -> 0 | F37: =Woodcensus71!T7 -> 0 | G37: =Woodcensus71!U7 -> 0 | H37: =Woodcensus71!V7 -> 0 | I37: =Woodcensus71!W7 -> 0 | J37: =Woodcensus71!X7 -> 2 | M37: 7 | N37: 89% | O37: 0% | P37: 0% | Q37: 0% | R37: 0% | S37: 0% | T37: 0% | U37: 11%
A38: =Woodcensus71!O8 -> 8 | B38: =Woodcensus71!P8 -> 22 | C38: =Woodcensus71!Q8 -> 22 | D38: =Woodcensus71!R8 -> 0 | E38: =Woodcensus71!S8 -> 0 | F38: =Woodcensus71!T8 -> 0 | G38: =Woodcensus71!U8 -> 0 | H38: =Woodcensus71!V8 -> 0 | I38: =Woodcensus71!W8 -> 0 | J38: =Woodcensus71!X8 -> 0 | M38: 8 | N38: 100% | O38: 0% | P38: 0% | Q38: 0% | R38: 0% | S38: 0% | T38: 0% | U38: 0%
A39: =Woodcensus71!O9 -> 9 | B39: =Woodcensus71!P9 -> 17 | C39: =Woodcensus71!Q9 -> 16 | D39: =Woodcensus71!R9 -> 0 | E39: =Woodcensus71!S9 -> 0 | F39: =Woodcensus71!T9 -> 0 | G39: =Woodcensus71!U9 -> 0 | H39: =Woodcensus71!V9 -> 0 | I39: =Woodcensus71!W9 -> 0 | J39: =Woodcensus71!X9 -> 1 | M39: 9 | N39: 94% | O39: 0% | P39: 0% | Q39: 0% | R39: 0% | S39: 0% | T39: 0% | U39: 6%
A40: =Woodcensus71!O10 -> 10 | B40: =Woodcensus71!P10 -> 23 | C40: =Woodcensus71!Q10 -> 19 | D40: =Woodcensus71!R10 -> 0 | E40: =Woodcensus71!S10 -> 0 | F40: =Woodcensus71!T10 -> 0 | G40: =Woodcensus71!U10 -> 2 | H40: =Woodcensus71!V10 -> 0 | I40: =Woodcensus71!W10 -> 0 | J40: =Woodcensus71!X10 -> 2 | M40: 10 | N40: 83% | O40: 0% | P40: 0% | Q40: 0% | R40: 9% | S40: 0% | T40: 0% | U40: 9%
A41: =Woodcensus71!O11 -> 11 | B41: =Woodcensus71!P11 -> 12 | C41: =Woodcensus71!Q11 -> 8 | D41: =Woodcensus71!R11 -> 1 | E41: =Woodcensus71!S11 -> 0 | F41: =Woodcensus71!T11 -> 0 | G41: =Woodcensus71!U11 -> 0 | H41: =Woodcensus71!V11 -> 0 | I41: =Woodcensus71!W11 -> 0 | J41: =Woodcensus71!X11 -> 3 | M41: 11 | N41: 67% | O41: 8% | P41: 0% | Q41: 0% | R41: 0% | S41: 0% | T41: 0% | U41: 25%
A42: =Woodcensus71!O12 -> 12 | B42: =Woodcensus71!P12 -> 16 | C42: =Woodcensus71!Q12 -> 7 | D42: =Woodcensus71!R12 -> 1 | E42: =Woodcensus71!S12 -> 1 | F42: =Woodcensus71!T12 -> 2 | G42: =Woodcensus71!U12 -> 2 | H42: =Woodcensus71!V12 -> 0 | I42: =Woodcensus71!W12 -> 1 | J42: =Woodcensus71!X12 -> 2 | M42: 12 | N42: 44% | O42: 6% | P42: 6% | Q42: 13% | R42: 13% | S42: 0% | T42: 6% | U42: 13%
A43: =Woodcensus71!O13 -> 13 | B43: =Woodcensus71!P13 -> 16 | C43: =Woodcensus71!Q13 -> 8 | D43: =Woodcensus71!R13 -> 1 | E43: =Woodcensus71!S13 -> 2 | F43: =Woodcensus71!T13 -> 1 | G43: =Woodcensus71!U13 -> 1 | H43: =Woodcensus71!V13 -> 0 | I43: =Woodcensus71!W13 -> 3 | J43: =Woodcensus71!X13 -> 0 | M43: 13 | N43: 50% | O43: 6% | P43: 13% | Q43: 6% | R43: 6% | S43: 0% | T43: 19% | U43: 0%
A44: =Woodcensus71!O14 -> 14 | B44: =Woodcensus71!P14 -> 19 | C44: =Woodcensus71!Q14 -> 4 | D44: =Woodcensus71!R14 -> 8 | E44: =Woodcensus71!S14 -> 3 | F44: =Woodcensus71!T14 -> 2 | G44: =Woodcensus71!U14 -> 1 | H44: =Woodcensus71!V14 -> 1 | I44: =Woodcensus71!W14 -> 0 | J44: =Woodcensus71!X14 -> 0 | M44: 14 | N44: 21% | O44: 42% | P44: 16% | Q44: 11% | R44: 5% | S44: 5% | T44: 0% | U44: 0%
A45: =Woodcensus71!O15 -> 15 | B45: =Woodcensus71!P15 -> 18 | C45: =Woodcensus71!Q15 -> 3 | D45: =Woodcensus71!R15 -> 6 | E45: =Woodcensus71!S15 -> 2 | F45: =Woodcensus71!T15 -> 1 | G45: =Woodcensus71!U15 -> 0 | H45: =Woodcensus71!V15 -> 0 | I45: =Woodcensus71!W15 -> 5 | J45: =Woodcensus71!X15 -> 1 | M45: 15 | N45: 17% | O45: 33% | P45: 11% | Q45: 6% | R45: 0% | S45: 0% | T45: 28% | U45: 6%
A46: =Woodcensus71!O16 -> 16 | B46: =Woodcensus71!P16 -> 19 | C46: =Woodcensus71!Q16 -> 5 | D46: =Woodcensus71!R16 -> 6 | E46: =Woodcensus71!S16 -> 2 | F46: =Woodcensus71!T16 -> 4 | G46: =Woodcensus71!U16 -> 0 | H46: =Woodcensus71!V16 -> 0 | I46: =Woodcensus71!W16 -> 1 | J46: =Woodcensus71!X16 -> 1 | M46: 16 | N46: 26% | O46: 32% | P46: 11% | Q46: 21% | R46: 0% | S46: 0% | T46: 5% | U46: 5%
A49: 1881
A50: =Woodcensus81!O4 -> Age | B50: =Woodcensus81!P4 -> Total | C50: =Woodcensus81!Q4 -> School | D50: =Woodcensus81!R4 -> Cloth | E50: =Woodcensus81!S4 -> Pins | F50: =Woodcensus81!T4 -> Servant | G50: =Woodcensus81!U4 -> Agricultural | H50: =Woodcensus81!V4 -> Apprentice | I50: =Woodcensus81!W4 -> Misc | J50: =Woodcensus81!X4 -> Not Recorded | M50: Age | N50: School | O50: Cloth | P50: Pins | Q50: Servant | R50: Agricultural | S50: Apprentice | T50: Misc | U50: Not Recorded
A51: =Woodcensus81!O5 -> 5 | B51: =Woodcensus81!P5 -> 21 | C51: =Woodcensus81!Q5 -> 17 | D51: =Woodcensus81!R5 -> 0 | E51: =Woodcensus81!S5 -> 0 | F51: =Woodcensus81!T5 -> 0 | G51: =Woodcensus81!U5 -> 0 | H51: =Woodcensus81!V5 -> 0 | I51: =Woodcensus81!W5 -> 0 | J51: =Woodcensus81!X5 -> 4 | M51: =A51 -> 5 | N51: =C51/$B51 -> 81% | O51: =D51/$B51 -> 0% | P51: =E51/$B51 -> 0% | Q51: =F51/$B51 -> 0% | R51: =G51/$B51 -> 0% | S51: =H51/$B51 -> 0% | T51: =I51/$B51 -> 0% | U51: =J51/$B51 -> 19%
A52: =Woodcensus81!O6 -> 6 | B52: =Woodcensus81!P6 -> 17 | C52: =Woodcensus81!Q6 -> 16 | D52: =Woodcensus81!R6 -> 0 | E52: =Woodcensus81!S6 -> 0 | F52: =Woodcensus81!T6 -> 0 | G52: =Woodcensus81!U6 -> 0 | H52: =Woodcensus81!V6 -> 0 | I52: =Woodcensus81!W6 -> 0 | J52: =Woodcensus81!X6 -> 1 | M52: =A52 -> 6 | N52: =C52/$B52 -> 94% | O52: 0% | P52: 0% | Q52: 0% | R52: 0% | S52: 0% | T52: 0% | U52: 6%
A53: =Woodcensus81!O7 -> 7 | B53: =Woodcensus81!P7 -> 14 | C53: =Woodcensus81!Q7 -> 13 | D53: =Woodcensus81!R7 -> 0 | E53: =Woodcensus81!S7 -> 0 | F53: =Woodcensus81!T7 -> 0 | G53: =Woodcensus81!U7 -> 0 | H53: =Woodcensus81!V7 -> 0 | I53: =Woodcensus81!W7 -> 0 | J53: =Woodcensus81!X7 -> 1 | M53: 7 | N53: 93% | O53: 0% | P53: 0% | Q53: 0% | R53: 0% | S53: 0% | T53: 0% | U53: 7%
A54: =Woodcensus81!O8 -> 8 | B54: =Woodcensus81!P8 -> 21 | C54: =Woodcensus81!Q8 -> 19 | D54: =Woodcensus81!R8 -> 0 | E54: =Woodcensus81!S8 -> 0 | F54: =Woodcensus81!T8 -> 0 | G54: =Woodcensus81!U8 -> 0 | H54: =Woodcensus81!V8 -> 0 | I54: =Woodcensus81!W8 -> 0 | J54: =Woodcensus81!X8 -> 2 | M54: 8 | N54: 90% | O54: 0% | P54: 0% | Q54: 0% | R54: 0% | S54: 0% | T54: 0% | U54: 10%
A55: =Woodcensus81!O9 -> 9 | B55: =Woodcensus81!P9 -> 15 | C55: =Woodcensus81!Q9 -> 14 | D55: =Woodcensus81!R9 -> 0 | E55: =Woodcensus81!S9 -> 0 | F55: =Woodcensus81!T9 -> 0 | G55: =Woodcensus81!U9 -> 0 | H55: =Woodcensus81!V9 -> 0 | I55: =Woodcensus81!W9 -> 0 | J55: =Woodcensus81!X9 -> 1 | M55: 9 | N55: 93% | O55: 0% | P55: 0% | Q55: 0% | R55: 0% | S55: 0% | T55: 0% | U55: 7%
A56: =Woodcensus81!O10 -> 10 | B56: =Woodcensus81!P10 -> 23 | C56: =Woodcensus81!Q10 -> 22 | D56: =Woodcensus81!R10 -> 0 | E56: =Woodcensus81!S10 -> 0 | F56: =Woodcensus81!T10 -> 0 | G56: =Woodcensus81!U10 -> 0 | H56: =Woodcensus81!V10 -> 0 | I56: =Woodcensus81!W10 -> 0 | J56: =Woodcensus81!X10 -> 1 | M56: 10 | N56: 96% | O56: 0% | P56: 0% | Q56: 0% | R56: 0% | S56: 0% | T56: 0% | U56: 4%
A57: =Woodcensus81!O11 -> 11 | B57: =Woodcensus81!P11 -> 22 | C57: =Woodcensus81!Q11 -> 22 | D57: =Woodcensus81!R11 -> 0 | E57: =Woodcensus81!S11 -> 0 | F57: =Woodcensus81!T11 -> 0 | G57: =Woodcensus81!U11 -> 0 | H57: =Woodcensus81!V11 -> 0 | I57: =Woodcensus81!W11 -> 0 | J57: =Woodcensus81!X11 -> 0 | M57: 11 | N57: 100% | O57: 0% | P57: 0% | Q57: 0% | R57: 0% | S57: 0% | T57: 0% | U57: 0%
A58: =Woodcensus81!O12 -> 12 | B58: =Woodcensus81!P12 -> 26 | C58: =Woodcensus81!Q12 -> 24 | D58: =Woodcensus81!R12 -> 0 | E58: =Woodcensus81!S12 -> 0 | F58: =Woodcensus81!T12 -> 0 | G58: =Woodcensus81!U12 -> 0 | H58: =Woodcensus81!V12 -> 0 | I58: =Woodcensus81!W12 -> 0 | J58: =Woodcensus81!X12 -> 2 | M58: 12 | N58: 92% | O58: 0% | P58: 0% | Q58: 0% | R58: 0% | S58: 0% | T58: 0% | U58: 8%
A59: =Woodcensus81!O13 -> 13 | B59: =Woodcensus81!P13 -> 17 | C59: =Woodcensus81!Q13 -> 14 | D59: =Woodcensus81!R13 -> 0 | E59: =Woodcensus81!S13 -> 1 | F59: =Woodcensus81!T13 -> 0 | G59: =Woodcensus81!U13 -> 0 | H59: =Woodcensus81!V13 -> 0 | I59: =Woodcensus81!W13 -> 1 | J59: =Woodcensus81!X13 -> 1 | M59: 13 | N59: 82% | O59: 0% | P59: 6% | Q59: 0% | R59: 0% | S59: 0% | T59: 6% | U59: 6%
A60: =Woodcensus81!O14 -> 14 | B60: =Woodcensus81!P14 -> 25 | C60: =Woodcensus81!Q14 -> 6 | D60: =Woodcensus81!R14 -> 1 | E60: =Woodcensus81!S14 -> 3 | F60: =Woodcensus81!T14 -> 5 | G60: =Woodcensus81!U14 -> 0 | H60: =Woodcensus81!V14 -> 1 | I60: =Woodcensus81!W14 -> 4 | J60: =Woodcensus81!X14 -> 5 | M60: 14 | N60: 24% | O60: 4% | P60: 12% | Q60: 20% | R60: 0% | S60: 4% | T60: 16% | U60: 20%
A61: =Woodcensus81!O15 -> 15 | B61: =Woodcensus81!P15 -> 16 | C61: =Woodcensus81!Q15 -> 1 | D61: =Woodcensus81!R15 -> 2 | E61: =Woodcensus81!S15 -> 1 | F61: =Woodcensus81!T15 -> 4 | G61: =Woodcensus81!U15 -> 0 | H61: =Woodcensus81!V15 -> 2 | I61: =Woodcensus81!W15 -> 5 | J61: =Woodcensus81!X15 -> 1 | M61: 15 | N61: 6% | O61: 13% | P61: 6% | Q61: 25% | R61: 0% | S61: 13% | T61: 31% | U61: 6%
A62: =Woodcensus81!O16 -> 16 | B62: =Woodcensus81!P16 -> 20 | C62: =Woodcensus81!Q16 -> 1 | D62: =Woodcensus81!R16 -> 3 | E62: =Woodcensus81!S16 -> 7 | F62: =Woodcensus81!T16 -> 2 | G62: =Woodcensus81!U16 -> 0 | H62: =Woodcensus81!V16 -> 0 | I62: =Woodcensus81!W16 -> 5 | J62: =Woodcensus81!X16 -> 2 | M62: 16 | N62: 5% | O62: 15% | P62: 35% | Q62: 10% | R62: 0% | S62: 0% | T62: 25% | U62: 10%
A65: 1891
A66: =Woodcensus91!O4 -> Age | B66: =Woodcensus91!P4 -> Total | C66: =Woodcensus91!Q4 -> School | D66: =Woodcensus91!R4 -> Cloth | E66: =Woodcensus91!S4 -> Pins | F66: =Woodcensus91!T4 -> Servant | G66: =Woodcensus91!U4 -> Agricultural | H66: =Woodcensus91!V4 -> Apprentice | I66: =Woodcensus91!W4 -> Misc | J66: =Woodcensus91!X4 -> Not Recorded | M66: Age | N66: School | O66: Cloth | P66: Pins | Q66: Servant | R66: Agricultural | S66: Apprentice | T66: Misc | U66: Not Recorded
A67: =Woodcensus91!O5 -> 5 | B67: =Woodcensus91!P5 -> 20 | C67: =Woodcensus91!Q5 -> 18 | D67: =Woodcensus91!R5 -> 0 | E67: =Woodcensus91!S5 -> 0 | F67: =Woodcensus91!T5 -> 0 | G67: =Woodcensus91!U5 -> 0 | H67: =Woodcensus91!V5 -> 0 | I67: =Woodcensus91!W5 -> 0 | J67: =Woodcensus91!X5 -> 2 | M67: =A67 -> 5 | N67: =C67/$B67 -> 90% | O67: =D67/$B67 -> 0% | P67: =E67/$B67 -> 0% | Q67: =F67/$B67 -> 0% | R67: =G67/$B67 -> 0% | S67: =H67/$B67 -> 0% | T67: =I67/$B67 -> 0% | U67: =J67/$B67 -> 10%
A68: =Woodcensus91!O6 -> 6 | B68: =Woodcensus91!P6 -> 22 | C68: =Woodcensus91!Q6 -> 21 | D68: =Woodcensus91!R6 -> 0 | E68: =Woodcensus91!S6 -> 0 | F68: =Woodcensus91!T6 -> 0 | G68: =Woodcensus91!U6 -> 0 | H68: =Woodcensus91!V6 -> 0 | I68: =Woodcensus91!W6 -> 0 | J68: =Woodcensus91!X6 -> 1 | M68: =A68 -> 6 | N68: =C68/$B68 -> 95% | O68: 0% | P68: 0% | Q68: 0% | R68: 0% | S68: 0% | T68: 0% | U68: 5%
A69: =Woodcensus91!O7 -> 7 | B69: =Woodcensus91!P7 -> 19 | C69: =Woodcensus91!Q7 -> 18 | D69: =Woodcensus91!R7 -> 0 | E69: =Woodcensus91!S7 -> 0 | F69: =Woodcensus91!T7 -> 0 | G69: =Woodcensus91!U7 -> 0 | H69: =Woodcensus91!V7 -> 0 | I69: =Woodcensus91!W7 -> 0 | J69: =Woodcensus91!X7 -> 1 | M69: 7 | N69: 95% | O69: 0% | P69: 0% | Q69: 0% | R69: 0% | S69: 0% | T69: 0% | U69: 5%
A70: =Woodcensus91!O8 -> 8 | B70: =Woodcensus91!P8 -> 21 | C70: =Woodcensus91!Q8 -> 18 | D70: =Woodcensus91!R8 -> 0 | E70: =Woodcensus91!S8 -> 0 | F70: =Woodcensus91!T8 -> 0 | G70: =Woodcensus91!U8 -> 0 | H70: =Woodcensus91!V8 -> 0 | I70: =Woodcensus91!W8 -> 0 | J70: =Woodcensus91!X8 -> 3 | M70: 8 | N70: 86% | O70: 0% | P70: 0% | Q70: 0% | R70: 0% | S70: 0% | T70: 0% | U70: 14%
A71: =Woodcensus91!O9 -> 9 | B71: =Woodcensus91!P9 -> 19 | C71: =Woodcensus91!Q9 -> 16 | D71: =Woodcensus91!R9 -> 0 | E71: =Woodcensus91!S9 -> 0 | F71: =Woodcensus91!T9 -> 0 | G71: =Woodcensus91!U9 -> 0 | H71: =Woodcensus91!V9 -> 0 | I71: =Woodcensus91!W9 -> 0 | J71: =Woodcensus91!X9 -> 3 | M71: 9 | N71: 84% | O71: 0% | P71: 0% | Q71: 0% | R71: 0% | S71: 0% | T71: 0% | U71: 16%
A72: =Woodcensus91!O10 -> 10 | B72: =Woodcensus91!P10 -> 23 | C72: =Woodcensus91!Q10 -> 21 | D72: =Woodcensus91!R10 -> 0 | E72: =Woodcensus91!S10 -> 0 | F72: =Woodcensus91!T10 -> 0 | G72: =Woodcensus91!U10 -> 0 | H72: =Woodcensus91!V10 -> 0 | I72: =Woodcensus91!W10 -> 0 | J72: =Woodcensus91!X10 -> 2 | M72: 10 | N72: 91% | O72: 0% | P72: 0% | Q72: 0% | R72: 0% | S72: 0% | T72: 0% | U72: 9%
A73: =Woodcensus91!O11 -> 11 | B73: =Woodcensus91!P11 -> 22 | C73: =Woodcensus91!Q11 -> 22 | D73: =Woodcensus91!R11 -> 0 | E73: =Woodcensus91!S11 -> 0 | F73: =Woodcensus91!T11 -> 0 | G73: =Woodcensus91!U11 -> 0 | H73: =Woodcensus91!V11 -> 0 | I73: =Woodcensus91!W11 -> 0 | J73: =Woodcensus91!X11 -> 0 | M73: 11 | N73: 100% | O73: 0% | P73: 0% | Q73: 0% | R73: 0% | S73: 0% | T73: 0% | U73: 0%
A74: =Woodcensus91!O12 -> 12 | B74: =Woodcensus91!P12 -> 20 | C74: =Woodcensus91!Q12 -> 19 | D74: =Woodcensus91!R12 -> 0 | E74: =Woodcensus91!S12 -> 0 | F74: =Woodcensus91!T12 -> 0 | G74: =Woodcensus91!U12 -> 0 | H74: =Woodcensus91!V12 -> 0 | I74: =Woodcensus91!W12 -> 0 | J74: =Woodcensus91!X12 -> 1 | M74: 12 | N74: 95% | O74: 0% | P74: 0% | Q74: 0% | R74: 0% | S74: 0% | T74: 0% | U74: 5%
A75: =Woodcensus91!O13 -> 13 | B75: =Woodcensus91!P13 -> 26 | C75: =Woodcensus91!Q13 -> 17 | D75: =Woodcensus91!R13 -> 0 | E75: =Woodcensus91!S13 -> 1 | F75: =Woodcensus91!T13 -> 4 | G75: =Woodcensus91!U13 -> 0 | H75: =Woodcensus91!V13 -> 0 | I75: =Woodcensus91!W13 -> 3 | J75: =Woodcensus91!X13 -> 1 | M75: 13 | N75: 65% | O75: 0% | P75: 4% | Q75: 15% | R75: 0% | S75: 0% | T75: 12% | U75: 4%
A76: =Woodcensus91!O14 -> 14 | B76: =Woodcensus91!P14 -> 29 | C76: =Woodcensus91!Q14 -> 12 | D76: =Woodcensus91!R14 -> 2 | E76: =Woodcensus91!S14 -> 1 | F76: =Woodcensus91!T14 -> 4 | G76: =Woodcensus91!U14 -> 0 | H76: =Woodcensus91!V14 -> 2 | I76: =Woodcensus91!W14 -> 5 | J76: =Woodcensus91!X14 -> 3 | M76: 14 | N76: 41% | O76: 7% | P76: 3% | Q76: 14% | R76: 0% | S76: 7% | T76: 17% | U76: 10%
A77: =Woodcensus91!O15 -> 15 | B77: =Woodcensus91!P15 -> 18 | C77: =Woodcensus91!Q15 -> 1 | D77: =Woodcensus91!R15 -> 2 | E77: =Woodcensus91!S15 -> 0 | F77: =Woodcensus91!T15 -> 6 | G77: =Woodcensus91!U15 -> 0 | H77: =Woodcensus91!V15 -> 3 | I77: =Woodcensus91!W15 -> 4 | J77: =Woodcensus91!X15 -> 2 | M77: 15 | N77: 6% | O77: 11% | P77: 0% | Q77: 33% | R77: 0% | S77: 17% | T77: 22% | U77: 11%
A78: =Woodcensus91!O16 -> 16 | B78: =Woodcensus91!P16 -> 16 | C78: =Woodcensus91!Q16 -> 0 | D78: =Woodcensus91!R16 -> 1 | E78: =Woodcensus91!S16 -> 1 | F78: =Woodcensus91!T16 -> 5 | G78: =Woodcensus91!U16 -> 0 | H78: =Woodcensus91!V16 -> 3 | I78: =Woodcensus91!W16 -> 6 | J78: =Woodcensus91!X16 -> 0 | M78: 16 | N78: 0% | O78: 6% | P78: 6% | Q78: 31% | R78: 0% | S78: 19% | T78: 38% | U78: 0%
A81: 1901
A82: =Woodcensus01!O4 -> Age | B82: =Woodcensus01!P4 -> Total | C82: =Woodcensus01!Q4 -> School | D82: =Woodcensus01!R4 -> Training | E82: =Woodcensus01!S4 -> Cloth | F82: =Woodcensus01!T4 -> Pins | G82: =Woodcensus01!U4 -> Servant | H82: =Woodcensus01!V4 -> Agricultural | I82: =Woodcensus01!W4 -> Apprentice | J82: =Woodcensus01!X4 -> Misc | K82: =Woodcensus01!Y4 -> Not Recorded | M82: Age | N82: School | O82: Training | P82: Cloth | Q82: Pins | R82: Servant | S82: Agricultural | T82: Apprentice | U82: Misc | V82: Not Recorded
A83: =Woodcensus01!O5 -> 5 | B83: =Woodcensus01!P5 -> 22 | C83: =Woodcensus01!Q5 -> 5 | D83: =Woodcensus01!R5 -> 0 | E83: =Woodcensus01!S5 -> 0 | F83: =Woodcensus01!T5 -> 0 | G83: =Woodcensus01!U5 -> 0 | H83: =Woodcensus01!V5 -> 0 | I83: =Woodcensus01!W5 -> 0 | J83: =Woodcensus01!X5 -> 0 | K83: =Woodcensus01!Y5 -> 17 | M83: =A83 -> 5 | N83: =C83/$B83 -> 23% | O83: =D83/$B83 -> 0% | P83: =E83/$B83 -> 0% | Q83: =F83/$B83 -> 0% | R83: =G83/$B83 -> 0% | S83: =H83/$B83 -> 0% | T83: =I83/$B83 -> 0% | U83: =J83/$B83 -> 0% | V83: 77%
A84: =Woodcensus01!O6 -> 6 | B84: =Woodcensus01!P6 -> 10 | C84: =Woodcensus01!Q6 -> 2 | D84: =Woodcensus01!R6 -> 0 | E84: =Woodcensus01!S6 -> 0 | F84: =Woodcensus01!T6 -> 0 | G84: =Woodcensus01!U6 -> 0 | H84: =Woodcensus01!V6 -> 0 | I84: =Woodcensus01!W6 -> 0 | J84: =Woodcensus01!X6 -> 0 | K84: =Woodcensus01!Y6 -> 8 | M84: =A84 -> 6 | N84: =C84/$B84 -> 20% | O84: 0% | P84: 0% | Q84: 0% | R84: 0% | S84: 0% | T84: 0% | U84: 0% | V84: 80%
A85: =Woodcensus01!O7 -> 7 | B85: =Woodcensus01!P7 -> 16 | C85: =Woodcensus01!Q7 -> 5 | D85: =Woodcensus01!R7 -> 0 | E85: =Woodcensus01!S7 -> 0 | F85: =Woodcensus01!T7 -> 0 | G85: =Woodcensus01!U7 -> 0 | H85: =Woodcensus01!V7 -> 0 | I85: =Woodcensus01!W7 -> 0 | J85: =Woodcensus01!X7 -> 0 | K85: =Woodcensus01!Y7 -> 11 | M85: 7 | N85: 31% | O85: 0% | P85: 0% | Q85: 0% | R85: 0% | S85: 0% | T85: 0% | U85: 0% | V85: 69%
A86: =Woodcensus01!O8 -> 8 | B86: =Woodcensus01!P8 -> 25 | C86: =Woodcensus01!Q8 -> 13 | D86: =Woodcensus01!R8 -> 0 | E86: =Woodcensus01!S8 -> 0 | F86: =Woodcensus01!T8 -> 0 | G86: =Woodcensus01!U8 -> 0 | H86: =Woodcensus01!V8 -> 0 | I86: =Woodcensus01!W8 -> 0 | J86: =Woodcensus01!X8 -> 0 | K86: =Woodcensus01!Y8 -> 12 | M86: 8 | N86: 52% | O86: 0% | P86: 0% | Q86: 0% | R86: 0% | S86: 0% | T86: 0% | U86: 0% | V86: 48%
A87: =Woodcensus01!O9 -> 9 | B87: =Woodcensus01!P9 -> 17 | C87: =Woodcensus01!Q9 -> 4 | D87: =Woodcensus01!R9 -> 0 | E87: =Woodcensus01!S9 -> 0 | F87: =Woodcensus01!T9 -> 0 | G87: =Woodcensus01!U9 -> 0 | H87: =Woodcensus01!V9 -> 0 | I87: =Woodcensus01!W9 -> 0 | J87: =Woodcensus01!X9 -> 0 | K87: =Woodcensus01!Y9 -> 13 | M87: 9 | N87: 24% | O87: 0% | P87: 0% | Q87: 0% | R87: 0% | S87: 0% | T87: 0% | U87: 0% | V87: 76%
A88: =Woodcensus01!O10 -> 10 | B88: =Woodcensus01!P10 -> 14 | C88: =Woodcensus01!Q10 -> 4 | D88: =Woodcensus01!R10 -> 2 | E88: =Woodcensus01!S10 -> 0 | F88: =Woodcensus01!T10 -> 0 | G88: =Woodcensus01!U10 -> 0 | H88: =Woodcensus01!V10 -> 0 | I88: =Woodcensus01!W10 -> 0 | J88: =Woodcensus01!X10 -> 0 | K88: =Woodcensus01!Y10 -> 8 | M88: 10 | N88: 29% | O88: 14% | P88: 0% | Q88: 0% | R88: 0% | S88: 0% | T88: 0% | U88: 0% | V88: 57%
A89: =Woodcensus01!O11 -> 11 | B89: =Woodcensus01!P11 -> 14 | C89: =Woodcensus01!Q11 -> 9 | D89: =Woodcensus01!R11 -> 1 | E89: =Woodcensus01!S11 -> 0 | F89: =Woodcensus01!T11 -> 0 | G89: =Woodcensus01!U11 -> 0 | H89: =Woodcensus01!V11 -> 0 | I89: =Woodcensus01!W11 -> 0 | J89: =Woodcensus01!X11 -> 0 | K89: =Woodcensus01!Y11 -> 4 | M89: 11 | N89: 64% | O89: 7% | P89: 0% | Q89: 0% | R89: 0% | S89: 0% | T89: 0% | U89: 0% | V89: 29%
A90: =Woodcensus01!O12 -> 12 | B90: =Woodcensus01!P12 -> 15 | C90: =Woodcensus01!Q12 -> 7 | D90: =Woodcensus01!R12 -> 0 | E90: =Woodcensus01!S12 -> 0 | F90: =Woodcensus01!T12 -> 0 | G90: =Woodcensus01!U12 -> 0 | H90: =Woodcensus01!V12 -> 0 | I90: =Woodcensus01!W12 -> 0 | J90: =Woodcensus01!X12 -> 1 | K90: =Woodcensus01!Y12 -> 7 | M90: 12 | N90: 47% | O90: 0% | P90: 0% | Q90: 0% | R90: 0% | S90: 0% | T90: 0% | U90: 7% | V90: 47%
A91: =Woodcensus01!O13 -> 13 | B91: =Woodcensus01!P13 -> 13 | C91: =Woodcensus01!Q13 -> 5 | D91: =Woodcensus01!R13 -> 1 | E91: =Woodcensus01!S13 -> 1 | F91: =Woodcensus01!T13 -> 0 | G91: =Woodcensus01!U13 -> 1 | H91: =Woodcensus01!V13 -> 0 | I91: =Woodcensus01!W13 -> 0 | J91: =Woodcensus01!X13 -> 3 | K91: =Woodcensus01!Y13 -> 2 | M91: 13 | N91: 38% | O91: 8% | P91: 8% | Q91: 0% | R91: 8% | S91: 0% | T91: 0% | U91: 23% | V91: 15%
A92: =Woodcensus01!O14 -> 14 | B92: =Woodcensus01!P14 -> 12 | C92: =Woodcensus01!Q14 -> 0 | D92: =Woodcensus01!R14 -> 0 | E92: =Woodcensus01!S14 -> 0 | F92: =Woodcensus01!T14 -> 2 | G92: =Woodcensus01!U14 -> 2 | H92: =Woodcensus01!V14 -> 0 | I92: =Woodcensus01!W14 -> 0 | J92: =Woodcensus01!X14 -> 5 | K92: =Woodcensus01!Y14 -> 3 | M92: 14 | N92: 0% | O92: 0% | P92: 0% | Q92: 17% | R92: 17% | S92: 0% | T92: 0% | U92: 42% | V92: 25%
A93: =Woodcensus01!O15 -> 15 | B93: =Woodcensus01!P15 -> 16 | C93: =Woodcensus01!Q15 -> 0 | D93: =Woodcensus01!R15 -> 3 | E93: =Woodcensus01!S15 -> 1 | F93: =Woodcensus01!T15 -> 3 | G93: =Woodcensus01!U15 -> 1 | H93: =Woodcensus01!V15 -> 0 | I93: =Woodcensus01!W15 -> 3 | J93: =Woodcensus01!X15 -> 3 | K93: =Woodcensus01!Y15 -> 2 | M93: 15 | N93: 0% | O93: 19% | P93: 6% | Q93: 19% | R93: 6% | S93: 0% | T93: 19% | U93: 19% | V93: 13%
A94: =Woodcensus01!O16 -> 16 | B94: =Woodcensus01!P16 -> 18 | C94: =Woodcensus01!Q16 -> 2 | D94: =Woodcensus01!R16 -> 2 | E94: =Woodcensus01!S16 -> 0 | F94: =Woodcensus01!T16 -> 2 | G94: =Woodcensus01!U16 -> 4 | H94: =Woodcensus01!V16 -> 0 | I94: =Woodcensus01!W16 -> 1 | J94: =Woodcensus01!X16 -> 5 | K94: =Woodcensus01!Y16 -> 2 | M94: 16 | N94: 11% | O94: 11% | P94: 0% | Q94: 11% | R94: 22% | S94: 0% | T94: 6% | U94: 28% | V94: 11%
A97: 1911
A98: =Woodcensus11!W4 -> Age | B98: =Woodcensus11!X4 -> Total | C98: =Woodcensus11!Y4 -> School | D98: =Woodcensus11!Z4 -> Cloth | E98: =Woodcensus11!AA4 -> Pins | F98: =Woodcensus11!AB4 -> Servant | G98: =Woodcensus11!AC4 -> Agricultural | H98: =Woodcensus11!AD4 -> Apprentice | I98: =Woodcensus11!AE4 -> Misc | J98: =Woodcensus11!AF4 -> Not Recorded | M98: Age | N98: School | O98: Cloth | P98: Pins | Q98: Servant | R98: Agricultural | S98: Apprentice | T98: Misc | U98: Not Recorded
A99: =Woodcensus11!W5 -> 5 | B99: =Woodcensus11!X5 -> 18 | C99: =Woodcensus11!Y5 -> 16 | D99: =Woodcensus11!Z5 -> 0 | E99: =Woodcensus11!AA5 -> 0 | F99: =Woodcensus11!AB5 -> 0 | G99: =Woodcensus11!AC5 -> 0 | H99: =Woodcensus11!AD5 -> 0 | I99: =Woodcensus11!AE5 -> 0 | J99: =Woodcensus11!AF5 -> 2 | M99: =A99 -> 5 | N99: =C99/$B99 -> 89% | O99: =D99/$B99 -> 0% | P99: =E99/$B99 -> 0% | Q99: =F99/$B99 -> 0% | R99: =G99/$B99 -> 0% | S99: =H99/$B99 -> 0% | T99: =I99/$B99 -> 0% | U99: =J99/$B99 -> 11%
A100: =Woodcensus11!W6 -> 6 | B100: =Woodcensus11!X6 -> 13 | C100: =Woodcensus11!Y6 -> 13 | D100: =Woodcensus11!Z6 -> 0 | E100: =Woodcensus11!AA6 -> 0 | F100: =Woodcensus11!AB6 -> 0 | G100: =Woodcensus11!AC6 -> 0 | H100: =Woodcensus11!AD6 -> 0 | I100: =Woodcensus11!AE6 -> 0 | J100: =Woodcensus11!AF6 -> 0 | M100: =A100 -> 6 | N100: =C100/$B100 -> 100% | O100: 0% | P100: 0% | Q100: 0% | R100: 0% | S100: 0% | T100: 0% | U100: 0%
A101: =Woodcensus11!W7 -> 7 | B101: =Woodcensus11!X7 -> 14 | C101: =Woodcensus11!Y7 -> 12 | D101: =Woodcensus11!Z7 -> 0 | E101: =Woodcensus11!AA7 -> 0 | F101: =Woodcensus11!AB7 -> 0 | G101: =Woodcensus11!AC7 -> 0 | H101: =Woodcensus11!AD7 -> 0 | I101: =Woodcensus11!AE7 -> 0 | J101: =Woodcensus11!AF7 -> 2 | M101: 7 | N101: 86% | O101: 0% | P101: 0% | Q101: 0% | R101: 0% | S101: 0% | T101: 0% | U101: 14%
A102: =Woodcensus11!W8 -> 8 | B102: =Woodcensus11!X8 -> 15 | C102: =Woodcensus11!Y8 -> 15 | D102: =Woodcensus11!Z8 -> 0 | E102: =Woodcensus11!AA8 -> 0 | F102: =Woodcensus11!AB8 -> 0 | G102: =Woodcensus11!AC8 -> 0 | H102: =Woodcensus11!AD8 -> 0 | I102: =Woodcensus11!AE8 -> 0 | J102: =Woodcensus11!AF8 -> 0 | M102: 8 | N102: 100% | O102: 0% | P102: 0% | Q102: 0% | R102: 0% | S102: 0% | T102: 0% | U102: 0%
A103: =Woodcensus11!W9 -> 9 | B103: =Woodcensus11!X9 -> 19 | C103: =Woodcensus11!Y9 -> 18 | D103: =Woodcensus11!Z9 -> 0 | E103: =Woodcensus11!AA9 -> 0 | F103: =Woodcensus11!AB9 -> 0 | G103: =Woodcensus11!AC9 -> 0 | H103: =Woodcensus11!AD9 -> 0 | I103: =Woodcensus11!AE9 -> 0 | J103: =Woodcensus11!AF9 -> 1 | M103: 9 | N103: 95% | O103: 0% | P103: 0% | Q103: 0% | R103: 0% | S103: 0% | T103: 0% | U103: 5%
A104: =Woodcensus11!W10 -> 10 | B104: =Woodcensus11!X10 -> 17 | C104: =Woodcensus11!Y10 -> 16 | D104: =Woodcensus11!Z10 -> 0 | E104: =Woodcensus11!AA10 -> 0 | F104: =Woodcensus11!AB10 -> 0 | G104: =Woodcensus11!AC10 -> 0 | H104: =Woodcensus11!AD10 -> 0 | I104: =Woodcensus11!AE10 -> 0 | J104: =Woodcensus11!AF10 -> 0 | M104: 10 | N104: 94% | O104: 0% | P104: 0% | Q104: 0% | R104: 0% | S104: 0% | T104: 0% | U104: 0%
A105: =Woodcensus11!W11 -> 11 | B105: =Woodcensus11!X11 -> 16 | C105: =Woodcensus11!Y11 -> 16 | D105: =Woodcensus11!Z11 -> 0 | E105: =Woodcensus11!AA11 -> 0 | F105: =Woodcensus11!AB11 -> 0 | G105: =Woodcensus11!AC11 -> 0 | H105: =Woodcensus11!AD11 -> 0 | I105: =Woodcensus11!AE11 -> 0 | J105: =Woodcensus11!AF11 -> 0 | M105: 11 | N105: 100% | O105: 0% | P105: 0% | Q105: 0% | R105: 0% | S105: 0% | T105: 0% | U105: 0%
A106: =Woodcensus11!W12 -> 12 | B106: =Woodcensus11!X12 -> 18 | C106: =Woodcensus11!Y12 -> 17 | D106: =Woodcensus11!Z12 -> 0 | E106: =Woodcensus11!AA12 -> 0 | F106: =Woodcensus11!AB12 -> 0 | G106: =Woodcensus11!AC12 -> 0 | H106: =Woodcensus11!AD12 -> 0 | I106: =Woodcensus11!AE12 -> 0 | J106: =Woodcensus11!AF12 -> 1 | M106: 12 | N106: 94% | O106: 0% | P106: 0% | Q106: 0% | R106: 0% | S106: 0% | T106: 0% | U106: 6%
A107: =Woodcensus11!W13 -> 13 | B107: =Woodcensus11!X13 -> 15 | C107: =Woodcensus11!Y13 -> 10 | D107: =Woodcensus11!Z13 -> 0 | E107: =Woodcensus11!AA13 -> 2 | F107: =Woodcensus11!AB13 -> 0 | G107: =Woodcensus11!AC13 -> 0 | H107: =Woodcensus11!AD13 -> 0 | I107: =Woodcensus11!AE13 -> 3 | J107: =Woodcensus11!AF13 -> 0 | M107: 13 | N107: 67% | O107: 0% | P107: 13% | Q107: 0% | R107: 0% | S107: 0% | T107: 20% | U107: 0%
A108: =Woodcensus11!W14 -> 14 | B108: =Woodcensus11!X14 -> 15 | C108: =Woodcensus11!Y14 -> 1 | D108: =Woodcensus11!Z14 -> 1 | E108: =Woodcensus11!AA14 -> 3 | F108: =Woodcensus11!AB14 -> 6 | G108: =Woodcensus11!AC14 -> 0 | H108: =Woodcensus11!AD14 -> 1 | I108: =Woodcensus11!AE14 -> 1 | J108: =Woodcensus11!AF14 -> 2 | M108: 14 | N108: 7% | O108: 7% | P108: 20% | Q108: 40% | R108: 0% | S108: 7% | T108: 7% | U108: 13%
A109: =Woodcensus11!W15 -> 15 | B109: =Woodcensus11!X15 -> 16 | C109: =Woodcensus11!Y15 -> 2 | D109: =Woodcensus11!Z15 -> 1 | E109: =Woodcensus11!AA15 -> 2 | F109: =Woodcensus11!AB15 -> 4 | G109: =Woodcensus11!AC15 -> 0 | H109: =Woodcensus11!AD15 -> 2 | I109: =Woodcensus11!AE15 -> 5 | J109: =Woodcensus11!AF15 -> 0 | M109: 15 | N109: 13% | O109: 6% | P109: 13% | Q109: 25% | R109: 0% | S109: 13% | T109: 31% | U109: 0%
A110: =Woodcensus11!W16 -> 16 | B110: =Woodcensus11!X16 -> 12 | C110: =Woodcensus11!Y16 -> 0 | D110: =Woodcensus11!Z16 -> 1 | E110: =Woodcensus11!AA16 -> 0 | F110: =Woodcensus11!AB16 -> 3 | G110: =Woodcensus11!AC16 -> 0 | H110: =Woodcensus11!AD16 -> 0 | I110: =Woodcensus11!AE16 -> 6 | J110: =Woodcensus11!AF16 -> 2 | M110: 16 | N110: 0% | O110: 8% | P110: 0% | Q110: 25% | R110: 0% | S110: 0% | T110: 50% | U110: 17%
